Workbook

Sheet Berech. Lagerraum flüssig+fest
A1: Antragsteller (Name, Vorname bzw. Unternehmensbezeichnung) | G1: Betriebsnummer
G2: 09
A3: Anlage zum Antrag vom
A4: nach Richtlinie vom XX. Mai 2023; Az. G4-7271-1/XXXX
A5: Berechnung Lagerraum für Gülle, Jauche und Festmist für tierhaltende Betriebe
A6: Erhöhung der Lagerkapazität für flüssigen Wirtschaftsdünger auf 9 Monate / Festmist auf 4 Monate
P8: Landkreis aus Betriebsnummer
A9: Alle Eingaben aus der Ziellösung! | C9: Zieljahr: | P9: =+H2 -> 0 | Q9: =LEFT(P9,3) -> 0 | R9: =IF(Q9=Niederschläge!A2:A97,Niederschläge!D2:D97,0) -> 0
B10: =IF(BG39=2,IF(B11<3000,"Milchleistung nicht plausibel"," ")," ") -> 
A11: Milchleistung: | C11: kg/Kuh und Jahr | N11: Fläche im grünen Gebiet (%) ab 2020 | T11: =IF(W11=1,0,100) -> 0 | W11: 1 | X11: nein | BD11: =IF(F9=0,0,+(#REF!-#REF!)/(F9-#REF!-#REF!)) -> 0 | BG11: % Grünlandanteil
A12: Niederschlag: | C12: =IF(B12>0,B12,+Niederschläge!L98) -> 0 | D12: mm/Jahr (langj. Mittel) | X12: ja
A15: Anfall flüssiger und fester Wirtschaftsdünger (Gülle/Jauche/Stallmist) aus Tierhaltung | W15: Nährstoffanfall Betrieb
A18: Tierhaltung | D18: Ø Jahresbestand | I18: Anfall Betrieb | N18: Anfall | P18: Anfall Betrieb t/Jahr | W18: Gülle und Jauche
D19: Gülle | E19: Stallmist/Jauche | G19: Weide | I19: Gülle, | J19: Stall- | N19: SM | P19: Sommer | R19: Winter | U19: Plaus. Tiere ohne Gülle | W19: Sommer | AA19: Winter | AE19: Gülle | AF19: Jauche | AG19: Festmist | AM19: Festmist | AN19: Stroh | AU19: Anzahl ohne Weide | BA19: Anfall | BB19: Anfall | BL19: Nährstoffauss. Anfall
F20: Einstreu- | G20: Apr-Sep | H20: Okt-Mär | I20: Jauche | J20: mist | P20: Gülle | Q20: Stallmist | R20: Gülle | S20: Stallmist | T20: Stallmist | U20: Gülle | V20: Mist | W20: N | X20: N | Y20: P205 | Z20: K2O | AA20: N | AB20: N | AC20: P205 | AD20: K2O | AE20: % TS | AF20: % TS | AG20: Sommer | AJ20: Winter | AM20: % TS | AN20: Sommer | AQ20: Winter | AU20: Sommer | AX20: Winter | BA20: Jauche | BB20: Mist | BC20: Jauche Nährstoffg. | BI20: GV | BJ20: GV | BK20: GV | BO20: Gülle | BP20: Jauche | BQ20: Mist | BT20: Verluste | BV20: spez.Gew. | BW20: Einstreu kg je GV und Tag | BZ20: Nähstoffgehalt Stroh kg/t | CC20: Lager in Monate Stallmist | CE20: Mistanfall im m³ | CG20: Anfall Gülle | CH20: Anfall Jauche | CL20: NH4-N Anteil | CO20: NH4 in kg N
D21: Anzahl | E21: Anzahl | F21: menge | G21: in % | H21: in % | I21: m³/Jahr | J21: t/Jahr | N21: m³/Jahr | T21: m³ | U21: Anzahl | V21: Anzahl | X21: Rind | AB21: Rind | AG21: N | AH21: P205 | AI21: K2O | AJ21: N | AK21: P205 | AL21: K2O | AN21: N | AO21: P205 | AP21: K2O | AQ21: N | AR21: P205 | AS21: K2O | AU21: Gülle | AV21: Mist | AW21: Mist für Stroh Geflügel | AX21: Gülle | AY21: Mist | AZ21: Mist für Stroh Geflügel | BC21: N | BD21: P205 | BE21: K2O | BF21: Tierart | BG21: Tiergruppe | BH21: Stroh | BK21: Gesamt | BL21: N | BM21: P205 | BN21: K2O | BO21: Anfall | BP21: Anfall | BQ21: gering | BR21: mittel | BS21: hoch | BT21: Gülle | BU21: Mist,Jauche | BV21: Mist | BW21: ger. | BX21: mittel | BY21: hoch | BZ21: N | CA21: P205 | CB21: K2O | CC21: bis 2020 | CD21: ab 2020 | CE21: bis 2020 | CF21: ab 2020 | CG21: gesamt | CH21: gesamt | CL21: Gülle | CM21: Jauche | CN21: Mist | CO21: Gülle/Jauche | CP21: Mist
I23: =IF(P23+R23=0," ",(P23+R23)/2) ->  | J23: =IF(Q23+S23=0," ",(Q23+S23)/2) ->  | N23: =IF(J23=" "," ",(J23*(1/BV23))) ->  | P23: =IF(CJ23=FALSE,0,IF(U23+V23=0,0,IF(AU23*BO23+AV23*BA23=0,0,AU23*BO23+AV23*BA23))) -> 0 | Q23: =IF(CJ23=FALSE,0,IF(V23=0,0,IF(AY23+AV23=0,0,IF(BF23=4,AV23*BB23-(D23*(1-G23/100)*BB23)*((1220/1000)/(2*11)),AV23*BB23)))) -> 0 | R23: =IF(CJ23=FALSE,0,IF(U23+V23=0,0,IF(AX23*BO23+AY23*BA23=0,0,AX23*BO23+AY23*BA23))) -> 0 | S23: =IF(CJ23=FALSE,0,IF(V23=0,0,IF(AY23+AV23=0,0,IF(BF23=4,AY23*BB23-(D23*(1-H23/100)*BB23)*((1220/1000)/(2*11)),AY23*BB23)))) -> 0 | T23: =IF(S23=0," ",(S23*(1/BV23))) ->  | U23: =IF(BO23=0,0,D23) -> 0 | V23: =IF(BO23=0,D23+E23,E23) -> 0 | W23: =+(AU23*BL23*(100-BT23)/100)+(BA23*BC23*AV23) -> 0 | X23: =IF(BF23=2,W23,0) -> 0 | Y23: =AU23*BM23+AV23*BA23*BD23 -> 0 | Z23: =AU23*BN23+AV23*BA23*BE23 -> 0 | AA23: =+(AX23*BL23*(100-BT23)/100)+(BA23*BC23*AY23) -> 0 | AB23: =IF(BF23=2,AA23,0) -> 0 | AC23: =AX23*BM23+AY23*BA23*BD23 -> 0 | AD23: =AX23*BN23+AY23*BA23*BE23 -> 0 | AE23: =INDEX(Tiere!K$30:K$79,'Berech. Lagerraum flüssig+fest'!$BG23) -> 0 | AF23: =INDEX(Tiere!S$30:S$79,'Berech. Lagerraum flüssig+fest'!BG23) -> 0 | AG23: =+(AV23*BL23*(100-BU23)/100)-BA23*AV23*BC23 -> 0 | AH23: =AV23*BM23-AV23*BA23*BD23 -> 0 | AI23: =AV23*BN23-AV23*BA23*BE23 -> 0 | AJ23: =+(AY23*BL23*(100-BU23)/100)-BA23*AY23*BC23 -> 0 | AK23: =AY23*BM23-AY23*BA23*BD23 -> 0 | AL23: =AY23*BN23-AY23*BA23*BE23 -> 0 | AM23: =INDEX(Tiere!P$30:P$79,'Berech. Lagerraum flüssig+fest'!$BG23) -> 0 | AN23: =IF(BH23=1,AW23*BW23*BJ23*365/1000*BZ23,IF(BH23=2,AW23*BX23*BJ23*365/1000*BZ23,AW23*BY23*BJ23*365/1000*BZ23)) -> 0 | AO23: =IF(BH23=1,AW23*BW23*BJ23*365/1000*CA23,IF(BH23=2,AW23*BX23*BJ23*365/1000*CA23,AW23*BY23*BJ23*365/1000*CA23)) -> 0 | AP23: =IF(BH23=1,AW23*BW23*BJ23*365/1000*CB23,IF(BH23=2,AW23*BX23*BJ23*365/1000*CB23,AW23*BY23*BJ23*365/1000*CB23)) -> 0 | AQ23: =IF(BH23=1,AZ23*BW23*BJ23*365/1000*BZ23,IF(BH23=2,AZ23*BX23*BJ23*365/1000*BZ23,AZ23*BY23*BJ23*365/1000*BZ23)) -> 0 | AR23: =IF(BH23=1,AZ23*BW23*BJ23*365/1000*CA23,IF(BH23=2,AZ23*BX23*BJ23*365/1000*CA23,AZ23*BY23*BJ23*365/1000*CA23)) -> 0 | AS23: =IF(BH23=1,AZ23*BW23*BJ23*365/1000*CB23,IF(BH23=2,AZ23*BX23*BJ23*365/1000*CB23,AZ23*BY23*BJ23*365/1000*CB23)) -> 0 | AU23: =+U23*(100-$G23)/100 -> 0 | AV23: =+V23*(100-$G23)/100 -> 0 | AW23: =+E23*(100-$G23)/100 -> 0 | AX23: =+U23*(100-$H23)/100 -> 0 | AY23: =+V23*(100-$H23)/100 -> 0 | AZ23: =+E23*(100-$H23)/100 -> 0 | BA23: =IF(BH23=1,BP23,IF(BH23=2,BP23/2,0)) -> 0 | BB23: =IF(BH23=1,BQ23,IF(BH23=2,BR23,BS23)) -> 0 | BC23: =IF(BF23=2,3.2,IF(BF23=3,3.3,0)) -> 0 | BD23: =IF(BF23=2,0,IF(BF23=3,0,0)) -> 0 | BE23: =IF(BF23=2,7.9,IF(BF23=3,3.1,0)) -> 0 | BF23: =IF(BG23<2,1,IF(BG23<11,2,IF(BG23<26,3,IF(BG23<40,4,5)))) -> 1 | BG23: 1 | BH23: 1 | BI23: =INDEX(Tiere!C$30:C$79,'Berech. Lagerraum flüssig+fest'!$BG23) -> 0 | BJ23: =IF(BI23>0.001,BI23,"1") -> 1 | BK23: =U23*BI23+V23*BI23 -> 0 | BL23: =INDEX(Tiere!D$30:D$79,'Berech. Lagerraum flüssig+fest'!$BG23) -> 0 | BM23: =INDEX(Tiere!E$30:E$79,'Berech. Lagerraum flüssig+fest'!$BG23) -> 0 | BN23: =INDEX(Tiere!F$30:F$79,'Berech. Lagerraum flüssig+fest'!$BG23) -> 0 | BO23: =INDEX(Tiere!J$30:J$79,'Berech. Lagerraum flüssig+fest'!$BG23) -> 0 | BP23: =INDEX(Tiere!R$30:R$79,'Berech. Lagerraum flüssig+fest'!$BG23) -> 0 | BQ23: =INDEX(Tiere!M$30:M$79,'Berech. Lagerraum flüssig+fest'!$BG23) -> 0 | BR23: =INDEX(Tiere!N$30:N$79,'Berech. Lagerraum flüssig+fest'!$BG23) -> 0 | BS23: =INDEX(Tiere!O$30:O$79,'Berech. Lagerraum flüssig+fest'!$BG23) -> 0 | BT23: =INDEX(Tiere!T$30:T$79,'Berech. Lagerraum flüssig+fest'!$BG23) -> 0 | BU23: =INDEX(Tiere!U$30:U$79,'Berech. Lagerraum flüssig+fest'!$BG23) -> 0 | BV23: =INDEX(Tiere!V$30:V$79,'Berech. Lagerraum flüssig+fest'!$BG23) -> 0 | BW23: =INDEX(Tiere!W$30:W$79,'Berech. Lagerraum flüssig+fest'!$BG23) -> 0 | BX23: =INDEX(Tiere!X$30:X$79,'Berech. Lagerraum flüssig+fest'!$BG23) -> 0 | BY23: =INDEX(Tiere!Y$30:Y$79,'Berech. Lagerraum flüssig+fest'!$BG23) -> 0 | BZ23: 5 | CA23: 3 | CB23: 17 | CC23: =INDEX(Tiere!Z$30:Z$79,'Berech. Lagerraum flüssig+fest'!$BG23) -> 0 | CD23: =INDEX(Tiere!AA$30:AA$79,'Berech. Lagerraum flüssig+fest'!$BG23) -> 0 | CE23: =IF(N23=" ",0,CC23*N23) -> 0 | CF23: =IF(N23=" ",0,CD23*N23) -> 0 | CG23: =(AU23+AX23)/2*BO23 -> 0 | CH23: =(AV23+AY23)/2*BA23 -> 0 | CJ23: =AND(BG23>1) -> FALSE | CL23: =INDEX(Tiere!AB$30:AB$79,'Berech. Lagerraum flüssig+fest'!$BG23) -> 0 | CM23: =INDEX(Tiere!AC$30:AC$79,'Berech. Lagerraum flüssig+fest'!$BG23) -> 0 | CN23: =INDEX(Tiere!AD$30:AD$79,'Berech. Lagerraum flüssig+fest'!$BG23) -> 0 | CO23: =+((((AU23*BL23*(100-BT23)/100)*(CL23/100))+((BA23*BC23*AV23)*(CM23/100)))+(((AX23*BL23*(100-BT23)/100)*(CL23/100))+((BA23*BC23*AY23)*(CM23/100))))/2 -> 0 | CP23: =+((AG23+AN23+AJ23+AQ23)/2)/100*CN23 -> 0
I24: =IF(P24+R24=0," ",(P24+R24)/2) ->  | J24: =IF(Q24+S24=0," ",(Q24+S24)/2) ->  | P24: 0 | Q24: 0 | R24: 0 | S24: 0 | U24: 0 | V24: 0 | W24: =+(AU24*BL24*(100-BT24)/100)+(BA24*BC24*AV24) -> 0 | X24: =IF(BF24=2,W24,0) -> 0 | Y24: =AU24*BM24+AV24*BA24*BD24 -> 0 | Z24: =AU24*BN24+AV24*BA24*BE24 -> 0 | AA24: 0 | AB24: 0 | AC24: 0 | AD24: 0 | AE24: =INDEX(Tiere!K$30:K$79,'Berech. Lagerraum flüssig+fest'!$BG24) -> 0 | AF24: =INDEX(Tiere!S$30:S$79,'Berech. Lagerraum flüssig+fest'!BG24) -> 0 | AG24: =+(AV24*BL24*(100-BU24)/100)-BA24*AV24*BC24 -> 0 | AH24: =AV24*BM24-AV24*BA24*BD24 -> 0 | AI24: =AV24*BN24-AV24*BA24*BE24 -> 0 | AJ24: 0 | AK24: 0 | AL24: 0 | AM24: =INDEX(Tiere!P$30:P$79,'Berech. Lagerraum flüssig+fest'!$BG24) -> 0 | AN24: =IF(BH24=1,AW24*BW24*BJ24*365/1000*BZ24,IF(BH24=2,AW24*BX24*BJ24*365/1000*BZ24,AW24*BY24*BJ24*365/1000*BZ24)) -> 0 | AO24: =IF(BH24=1,AW24*BW24*BJ24*365/1000*CA24,IF(BH24=2,AW24*BX24*BJ24*365/1000*CA24,AW24*BY24*BJ24*365/1000*CA24)) -> 0 | AP24: =IF(BH24=1,AW24*BW24*BJ24*365/1000*CB24,IF(BH24=2,AW24*BX24*BJ24*365/1000*CB24,AW24*BY24*BJ24*365/1000*CB24)) -> 0 | AQ24: =IF(BH24=1,AZ24*BW24*BJ24*365/1000*BZ24,IF(BH24=2,AZ24*BX24*BJ24*365/1000*BZ24,AZ24*BY24*BJ24*365/1000*BZ24)) -> 0 | AR24: =IF(BH24=1,AZ24*BW24*BJ24*365/1000*CA24,IF(BH24=2,AZ24*BX24*BJ24*365/1000*CA24,AZ24*BY24*BJ24*365/1000*CA24)) -> 0 | AS24: =IF(BH24=1,AZ24*BW24*BJ24*365/1000*CB24,IF(BH24=2,AZ24*BX24*BJ24*365/1000*CB24,AZ24*BY24*BJ24*365/1000*CB24)) -> 0 | AU24: 0 | AV24: 0 | AW24: 0 | AX24: 0 | AY24: 0 | AZ24: 0 | BA24: =IF(BH24=1,BP24,IF(BH24=2,BP24/2,0)) -> 0 | BB24: =IF(BH24=1,BQ24,IF(BH24=2,BR24,BS24)) -> 0 | BC24: =IF(BF24=2,3.2,IF(BF24=3,3.3,0)) -> 0 | BD24: =IF(BF24=2,0,IF(BF24=3,0,0)) -> 0 | BE24: =IF(BF24=2,7.9,IF(BF24=3,3.1,0)) -> 0 | BF24: =IF(BG24<2,1,IF(BG24<11,2,IF(BG24<26,3,IF(BG24<40,4,5)))) -> 1 | BG24: 1 | BH24: 1 | BI24: =INDEX(Tiere!C$30:C$79,'Berech. Lagerraum flüssig+fest'!$BG24) -> 0 | BJ24: =IF(BI24>0.001,BI24,"1") -> 1 | BK24: =D24*BI24+E24*BI24 -> 0 | BL24: =INDEX(Tiere!D$30:D$79,'Berech. Lagerraum flüssig+fest'!$BG24) -> 0 | BM24: =INDEX(Tiere!E$30:E$79,'Berech. Lagerraum flüssig+fest'!$BG24) -> 0 | BN24: =INDEX(Tiere!F$30:F$79,'Berech. Lagerraum flüssig+fest'!$BG24) -> 0 | BO24: =INDEX(Tiere!J$30:J$79,'Berech. Lagerraum flüssig+fest'!$BG24) -> 0 | BP24: =INDEX(Tiere!R$30:R$79,'Berech. Lagerraum flüssig+fest'!$BG24) -> 0 | BQ24: =INDEX(Tiere!M$30:M$79,'Berech. Lagerraum flüssig+fest'!$BG24) -> 0 | BR24: =INDEX(Tiere!N$30:N$79,'Berech. Lagerraum flüssig+fest'!$BG24) -> 0 | BS24: =INDEX(Tiere!O$30:O$79,'Berech. Lagerraum flüssig+fest'!$BG24) -> 0 | BT24: =INDEX(Tiere!T$30:T$79,'Berech. Lagerraum flüssig+fest'!$BG24) -> 0 | BU24: =INDEX(Tiere!U$30:U$79,'Berech. Lagerraum flüssig+fest'!$BG24) -> 0 | BV24: =INDEX(Tiere!V$30:V$79,'Berech. Lagerraum flüssig+fest'!$BG24) -> 0 | BW24: =INDEX(Tiere!W$30:W$79,'Berech. Lagerraum flüssig+fest'!$BG24) -> 0 | BX24: =INDEX(Tiere!X$30:X$79,'Berech. Lagerraum flüssig+fest'!$BG24) -> 0 | BY24: =INDEX(Tiere!Y$30:Y$79,'Berech. Lagerraum flüssig+fest'!$BG24) -> 0 | BZ24: 5 | CA24: 3 | CB24: 17 | CC24: =INDEX(Tiere!Z$30:Z$79,'Berech. Lagerraum flüssig+fest'!$BG24) -> 0 | CD24: =INDEX(Tiere!AA$30:AA$79,'Berech. Lagerraum flüssig+fest'!$BG24) -> 0 | CE24: 0 | CF24: 0 | CG24: =(AU24+AX24)/2*BO24 -> 0 | CH24: =(AV24+AY24)/2*BA24 -> 0 | CJ24: =AND(BG24>1) -> FALSE | CL24: =INDEX(Tiere!AB$30:AB$79,'Berech. Lagerraum flüssig+fest'!$BG24) -> 0 | CM24: =INDEX(Tiere!AC$30:AC$79,'Berech. Lagerraum flüssig+fest'!$BG24) -> 0 | CN24: =INDEX(Tiere!AD$30:AD$79,'Berech. Lagerraum flüssig+fest'!$BG24) -> 0 | CO24: =+((((AU24*BL24*(100-BT24)/100)*(CL24/100))+((BA24*BC24*AV24)*(CM24/100)))+(((AX24*BL24*(100-BT24)/100)*(CL24/100))+((BA24*BC24*AY24)*(CM24/100))))/2 -> 0 | CP24: =+((AG24+AN24+AJ24+AQ24)/2)/100*CN24 -> 0
J25: =IF(Q25+S25=0," ",(Q25+S25)/2) ->  | P25: 0 | Q25: 0 | R25: 0 | S25: 0 | U25: 0 | V25: 0 | W25: 0 | X25: 0 | Y25: 0 | Z25: 0 | AA25: 0 | AB25: 0 | AC25: 0 | AD25: 0 | AE25: =INDEX(Tiere!K$30:K$79,'Berech. Lagerraum flüssig+fest'!$BG25) -> 0 | AF25: =INDEX(Tiere!S$30:S$79,'Berech. Lagerraum flüssig+fest'!BG25) -> 0 | AG25: 0 | AH25: 0 | AI25: 0 | AJ25: 0 | AK25: 0 | AL25: 0 | AM25: =INDEX(Tiere!P$30:P$79,'Berech. Lagerraum flüssig+fest'!$BG25) -> 0 | AN25: 0 | AO25: 0 | AP25: 0 | AQ25: 0 | AR25: 0 | AS25: 0 | AU25: 0 | AV25: 0 | AW25: 0 | AX25: 0 | AY25: 0 | AZ25: 0 | BA25: 0 | BB25: 0 | BC25: =IF(BF25=2,3.2,IF(BF25=3,3.3,0)) -> 0 | BD25: 0 | BE25: 0 | BF25: 1 | BG25: 1 | BH25: 1 | BI25: =INDEX(Tiere!C$30:C$79,'Berech. Lagerraum flüssig+fest'!$BG25) -> 0 | BJ25: 1 | BK25: 0 | BL25: =INDEX(Tiere!D$30:D$79,'Berech. Lagerraum flüssig+fest'!$BG25) -> 0 | BM25: =INDEX(Tiere!E$30:E$79,'Berech. Lagerraum flüssig+fest'!$BG25) -> 0 | BN25: =INDEX(Tiere!F$30:F$79,'Berech. Lagerraum flüssig+fest'!$BG25) -> 0 | BO25: =INDEX(Tiere!J$30:J$79,'Berech. Lagerraum flüssig+fest'!$BG25) -> 0 | BP25: =INDEX(Tiere!R$30:R$79,'Berech. Lagerraum flüssig+fest'!$BG25) -> 0 | BQ25: =INDEX(Tiere!M$30:M$79,'Berech. Lagerraum flüssig+fest'!$BG25) -> 0 | BR25: =INDEX(Tiere!N$30:N$79,'Berech. Lagerraum flüssig+fest'!$BG25) -> 0 | BS25: =INDEX(Tiere!O$30:O$79,'Berech. Lagerraum flüssig+fest'!$BG25) -> 0 | BT25: =INDEX(Tiere!T$30:T$79,'Berech. Lagerraum flüssig+fest'!$BG25) -> 0 | BU25: =INDEX(Tiere!U$30:U$79,'Berech. Lagerraum flüssig+fest'!$BG25) -> 0 | BV25: =INDEX(Tiere!V$30:V$79,'Berech. Lagerraum flüssig+fest'!$BG25) -> 0 | BW25: =INDEX(Tiere!W$30:W$79,'Berech. Lagerraum flüssig+fest'!$BG25) -> 0 | BX25: =INDEX(Tiere!X$30:X$79,'Berech. Lagerraum flüssig+fest'!$BG25) -> 0 | BY25: =INDEX(Tiere!Y$30:Y$79,'Berech. Lagerraum flüssig+fest'!$BG25) -> 0 | BZ25: 5 | CA25: 3 | CB25: 17 | CC25: =INDEX(Tiere!Z$30:Z$79,'Berech. Lagerraum flüssig+fest'!$BG25) -> 0 | CD25: =INDEX(Tiere!AA$30:AA$79,'Berech. Lagerraum flüssig+fest'!$BG25) -> 0 | CE25: 0 | CF25: 0 | CG25: 0 | CH25: 0 | CJ25: FALSE | CL25: =INDEX(Tiere!AB$30:AB$79,'Berech. Lagerraum flüssig+fest'!$BG25) -> 0 | CM25: =INDEX(Tiere!AC$30:AC$79,'Berech. Lagerraum flüssig+fest'!$BG25) -> 0 | CN25: =INDEX(Tiere!AD$30:AD$79,'Berech. Lagerraum flüssig+fest'!$BG25) -> 0 | CO25: 0 | CP25: 0
J26: =IF(Q26+S26=0," ",(Q26+S26)/2) ->  | P26: 0 | Q26: 0 | R26: 0 | S26: 0 | U26: 0 | V26: 0 | W26: 0 | X26: 0 | Y26: 0 | Z26: 0 | AA26: 0 | AB26: 0 | AC26: 0 | AD26: 0 | AE26: =INDEX(Tiere!K$30:K$79,'Berech. Lagerraum flüssig+fest'!$BG26) -> 0 | AF26: =INDEX(Tiere!S$30:S$79,'Berech. Lagerraum flüssig+fest'!BG26) -> 0 | AG26: 0 | AH26: 0 | AI26: 0 | AJ26: 0 | AK26: 0 | AL26: 0 | AM26: =INDEX(Tiere!P$30:P$79,'Berech. Lagerraum flüssig+fest'!$BG26) -> 0 | AN26: 0 | AO26: 0 | AP26: 0 | AQ26: 0 | AR26: 0 | AS26: 0 | AU26: 0 | AV26: 0 | AW26: 0 | AX26: 0 | AY26: 0 | AZ26: 0 | BA26: 0 | BB26: 0 | BC26: 0 | BD26: 0 | BE26: 0 | BF26: 1 | BG26: 1 | BH26: 1 | BI26: =INDEX(Tiere!C$30:C$79,'Berech. Lagerraum flüssig+fest'!$BG26) -> 0 | BJ26: 1 | BK26: 0 | BL26: =INDEX(Tiere!D$30:D$79,'Berech. Lagerraum flüssig+fest'!$BG26) -> 0 | BM26: =INDEX(Tiere!E$30:E$79,'Berech. Lagerraum flüssig+fest'!$BG26) -> 0 | BN26: =INDEX(Tiere!F$30:F$79,'Berech. Lagerraum flüssig+fest'!$BG26) -> 0 | BO26: =INDEX(Tiere!J$30:J$79,'Berech. Lagerraum flüssig+fest'!$BG26) -> 0 | BP26: =INDEX(Tiere!R$30:R$79,'Berech. Lagerraum flüssig+fest'!$BG26) -> 0 | BQ26: =INDEX(Tiere!M$30:M$79,'Berech. Lagerraum flüssig+fest'!$BG26) -> 0 | BR26: =INDEX(Tiere!N$30:N$79,'Berech. Lagerraum flüssig+fest'!$BG26) -> 0 | BS26: =INDEX(Tiere!O$30:O$79,'Berech. Lagerraum flüssig+fest'!$BG26) -> 0 | BT26: =INDEX(Tiere!T$30:T$79,'Berech. Lagerraum flüssig+fest'!$BG26) -> 0 | BU26: =INDEX(Tiere!U$30:U$79,'Berech. Lagerraum flüssig+fest'!$BG26) -> 0 | BV26: =INDEX(Tiere!V$30:V$79,'Berech. Lagerraum flüssig+fest'!$BG26) -> 0 | BW26: =INDEX(Tiere!W$30:W$79,'Berech. Lagerraum flüssig+fest'!$BG26) -> 0 | BX26: =INDEX(Tiere!X$30:X$79,'Berech. Lagerraum flüssig+fest'!$BG26) -> 0 | BY26: =INDEX(Tiere!Y$30:Y$79,'Berech. Lagerraum flüssig+fest'!$BG26) -> 0 | BZ26: 5 | CA26: 3 | CB26: 17 | CC26: =INDEX(Tiere!Z$30:Z$79,'Berech. Lagerraum flüssig+fest'!$BG26) -> 0 | CD26: =INDEX(Tiere!AA$30:AA$79,'Berech. Lagerraum flüssig+fest'!$BG26) -> 0 | CE26: 0 | CF26: 0 | CG26: 0 | CH26: 0 | CJ26: FALSE | CL26: =INDEX(Tiere!AB$30:AB$79,'Berech. Lagerraum flüssig+fest'!$BG26) -> 0 | CM26: =INDEX(Tiere!AC$30:AC$79,'Berech. Lagerraum flüssig+fest'!$BG26) -> 0 | CN26: =INDEX(Tiere!AD$30:AD$79,'Berech. Lagerraum flüssig+fest'!$BG26) -> 0 | CO26: 0 | CP26: 0
J27: =IF(Q27+S27=0," ",(Q27+S27)/2) ->  | P27: 0 | Q27: 0 | R27: 0 | S27: 0 | U27: 0 | V27: 0 | W27: 0 | X27: 0 | Y27: 0 | Z27: 0 | AA27: 0 | AB27: 0 | AC27: 0 | AD27: 0 | AE27: =INDEX(Tiere!K$30:K$79,'Berech. Lagerraum flüssig+fest'!$BG27) -> 0 | AF27: =INDEX(Tiere!S$30:S$79,'Berech. Lagerraum flüssig+fest'!BG27) -> 0 | AG27: 0 | AH27: 0 | AI27: 0 | AJ27: 0 | AK27: 0 | AL27: 0 | AM27: =INDEX(Tiere!P$30:P$79,'Berech. Lagerraum flüssig+fest'!$BG27) -> 0 | AN27: 0 | AO27: 0 | AP27: 0 | AQ27: 0 | AR27: 0 | AS27: 0 | AU27: 0 | AV27: 0 | AW27: 0 | AX27: 0 | AY27: 0 | AZ27: 0 | BA27: 0 | BB27: 0 | BC27: 0 | BD27: 0 | BE27: 0 | BF27: 1 | BG27: 1 | BH27: 1 | BI27: =INDEX(Tiere!C$30:C$79,'Berech. Lagerraum flüssig+fest'!$BG27) -> 0 | BJ27: 1 | BK27: 0 | BL27: =INDEX(Tiere!D$30:D$79,'Berech. Lagerraum flüssig+fest'!$BG27) -> 0 | BM27: =INDEX(Tiere!E$30:E$79,'Berech. Lagerraum flüssig+fest'!$BG27) -> 0 | BN27: =INDEX(Tiere!F$30:F$79,'Berech. Lagerraum flüssig+fest'!$BG27) -> 0 | BO27: =INDEX(Tiere!J$30:J$79,'Berech. Lagerraum flüssig+fest'!$BG27) -> 0 | BP27: =INDEX(Tiere!R$30:R$79,'Berech. Lagerraum flüssig+fest'!$BG27) -> 0 | BQ27: =INDEX(Tiere!M$30:M$79,'Berech. Lagerraum flüssig+fest'!$BG27) -> 0 | BR27: =INDEX(Tiere!N$30:N$79,'Berech. Lagerraum flüssig+fest'!$BG27) -> 0 | BS27: =INDEX(Tiere!O$30:O$79,'Berech. Lagerraum flüssig+fest'!$BG27) -> 0 | BT27: =INDEX(Tiere!T$30:T$79,'Berech. Lagerraum flüssig+fest'!$BG27) -> 0 | BU27: =INDEX(Tiere!U$30:U$79,'Berech. Lagerraum flüssig+fest'!$BG27) -> 0 | BV27: =INDEX(Tiere!V$30:V$79,'Berech. Lagerraum flüssig+fest'!$BG27) -> 0 | BW27: =INDEX(Tiere!W$30:W$79,'Berech. Lagerraum flüssig+fest'!$BG27) -> 0 | BX27: =INDEX(Tiere!X$30:X$79,'Berech. Lagerraum flüssig+fest'!$BG27) -> 0 | BY27: =INDEX(Tiere!Y$30:Y$79,'Berech. Lagerraum flüssig+fest'!$BG27) -> 0 | BZ27: 5 | CA27: 3 | CB27: 17 | CC27: =INDEX(Tiere!Z$30:Z$79,'Berech. Lagerraum flüssig+fest'!$BG27) -> 0 | CD27: =INDEX(Tiere!AA$30:AA$79,'Berech. Lagerraum flüssig+fest'!$BG27) -> 0 | CE27: 0 | CF27: 0 | CG27: 0 | CH27: 0 | CJ27: FALSE | CL27: =INDEX(Tiere!AB$30:AB$79,'Berech. Lagerraum flüssig+fest'!$BG27) -> 0 | CM27: =INDEX(Tiere!AC$30:AC$79,'Berech. Lagerraum flüssig+fest'!$BG27) -> 0 | CN27: =INDEX(Tiere!AD$30:AD$79,'Berech. Lagerraum flüssig+fest'!$BG27) -> 0 | CO27: 0 | CP27: 0
P28: 0 | Q28: 0 | R28: 0 | S28: 0 | U28: 0 | V28: 0 | W28: 0 | X28: 0 | Y28: 0 | Z28: 0 | AA28: 0 | AB28: 0 | AC28: 0 | AD28: 0 | AE28: =INDEX(Tiere!K$30:K$79,'Berech. Lagerraum flüssig+fest'!$BG28) -> 0 | AF28: =INDEX(Tiere!S$30:S$79,'Berech. Lagerraum flüssig+fest'!BG28) -> 0 | AG28: 0 | AH28: 0 | AI28: 0 | AJ28: 0 | AK28: 0 | AL28: 0 | AM28: =INDEX(Tiere!P$30:P$79,'Berech. Lagerraum flüssig+fest'!$BG28) -> 0 | AN28: 0 | AO28: 0 | AP28: 0 | AQ28: 0 | AR28: 0 | AS28: 0 | AU28: 0 | AV28: 0 | AW28: 0 | AX28: 0 | AY28: 0 | AZ28: 0 | BA28: 0 | BB28: 0 | BC28: 0 | BD28: 0 | BE28: 0 | BF28: 1 | BG28: 1 | BH28: 1 | BI28: =INDEX(Tiere!C$30:C$79,'Berech. Lagerraum flüssig+fest'!$BG28) -> 0 | BJ28: 1 | BK28: 0 | BL28: =INDEX(Tiere!D$30:D$79,'Berech. Lagerraum flüssig+fest'!$BG28) -> 0 | BM28: =INDEX(Tiere!E$30:E$79,'Berech. Lagerraum flüssig+fest'!$BG28) -> 0 | BN28: =INDEX(Tiere!F$30:F$79,'Berech. Lagerraum flüssig+fest'!$BG28) -> 0 | BO28: =INDEX(Tiere!J$30:J$79,'Berech. Lagerraum flüssig+fest'!$BG28) -> 0 | BP28: =INDEX(Tiere!R$30:R$79,'Berech. Lagerraum flüssig+fest'!$BG28) -> 0 | BQ28: =INDEX(Tiere!M$30:M$79,'Berech. Lagerraum flüssig+fest'!$BG28) -> 0 | BR28: =INDEX(Tiere!N$30:N$79,'Berech. Lagerraum flüssig+fest'!$BG28) -> 0 | BS28: =INDEX(Tiere!O$30:O$79,'Berech. Lagerraum flüssig+fest'!$BG28) -> 0 | BT28: =INDEX(Tiere!T$30:T$79,'Berech. Lagerraum flüssig+fest'!$BG28) -> 0 | BU28: =INDEX(Tiere!U$30:U$79,'Berech. Lagerraum flüssig+fest'!$BG28) -> 0 | BV28: =INDEX(Tiere!V$30:V$79,'Berech. Lagerraum flüssig+fest'!$BG28) -> 0 | BW28: =INDEX(Tiere!W$30:W$79,'Berech. Lagerraum flüssig+fest'!$BG28) -> 0 | BX28: =INDEX(Tiere!X$30:X$79,'Berech. Lagerraum flüssig+fest'!$BG28) -> 0 | BY28: =INDEX(Tiere!Y$30:Y$79,'Berech. Lagerraum flüssig+fest'!$BG28) -> 0 | BZ28: 5 | CA28: 3 | CB28: 17 | CC28: =INDEX(Tiere!Z$30:Z$79,'Berech. Lagerraum flüssig+fest'!$BG28) -> 0 | CD28: =INDEX(Tiere!AA$30:AA$79,'Berech. Lagerraum flüssig+fest'!$BG28) -> 0 | CE28: 0 | CF28: 0 | CG28: 0 | CH28: 0 | CJ28: FALSE | CL28: =INDEX(Tiere!AB$30:AB$79,'Berech. Lagerraum flüssig+fest'!$BG28) -> 0 | CM28: =INDEX(Tiere!AC$30:AC$79,'Berech. Lagerraum flüssig+fest'!$BG28) -> 0 | CN28: =INDEX(Tiere!AD$30:AD$79,'Berech. Lagerraum flüssig+fest'!$BG28) -> 0 | CO28: 0 | CP28: 0
P29: 0 | Q29: 0 | R29: 0 | S29: 0 | U29: 0 | V29: 0 | W29: 0 | X29: 0 | Y29: 0 | Z29: 0 | AA29: 0 | AB29: 0 | AC29: 0 | AD29: 0 | AE29: =INDEX(Tiere!K$30:K$79,'Berech. Lagerraum flüssig+fest'!$BG29) -> 0 | AF29: =INDEX(Tiere!S$30:S$79,'Berech. Lagerraum flüssig+fest'!BG29) -> 0 | AG29: 0 | AH29: 0 | AI29: 0 | AJ29: 0 | AK29: 0 | AL29: 0 | AM29: =INDEX(Tiere!P$30:P$79,'Berech. Lagerraum flüssig+fest'!$BG29) -> 0 | AN29: 0 | AO29: 0 | AP29: 0 | AQ29: 0 | AR29: 0 | AS29: 0 | AU29: 0 | AV29: 0 | AW29: 0 | AX29: 0 | AY29: 0 | AZ29: 0 | BA29: 0 | BB29: 0 | BC29: 0 | BD29: 0 | BE29: 0 | BF29: 1 | BG29: 1 | BH29: 1 | BI29: =INDEX(Tiere!C$30:C$79,'Berech. Lagerraum flüssig+fest'!$BG29) -> 0 | BJ29: 1 | BK29: 0 | BL29: =INDEX(Tiere!D$30:D$79,'Berech. Lagerraum flüssig+fest'!$BG29) -> 0 | BM29: =INDEX(Tiere!E$30:E$79,'Berech. Lagerraum flüssig+fest'!$BG29) -> 0 | BN29: =INDEX(Tiere!F$30:F$79,'Berech. Lagerraum flüssig+fest'!$BG29) -> 0 | BO29: =INDEX(Tiere!J$30:J$79,'Berech. Lagerraum flüssig+fest'!$BG29) -> 0 | BP29: =INDEX(Tiere!R$30:R$79,'Berech. Lagerraum flüssig+fest'!$BG29) -> 0 | BQ29: =INDEX(Tiere!M$30:M$79,'Berech. Lagerraum flüssig+fest'!$BG29) -> 0 | BR29: =INDEX(Tiere!N$30:N$79,'Berech. Lagerraum flüssig+fest'!$BG29) -> 0 | BS29: =INDEX(Tiere!O$30:O$79,'Berech. Lagerraum flüssig+fest'!$BG29) -> 0 | BT29: =INDEX(Tiere!T$30:T$79,'Berech. Lagerraum flüssig+fest'!$BG29) -> 0 | BU29: =INDEX(Tiere!U$30:U$79,'Berech. Lagerraum flüssig+fest'!$BG29) -> 0 | BV29: =INDEX(Tiere!V$30:V$79,'Berech. Lagerraum flüssig+fest'!$BG29) -> 0 | BW29: =INDEX(Tiere!W$30:W$79,'Berech. Lagerraum flüssig+fest'!$BG29) -> 0 | BX29: =INDEX(Tiere!X$30:X$79,'Berech. Lagerraum flüssig+fest'!$BG29) -> 0 | BY29: =INDEX(Tiere!Y$30:Y$79,'Berech. Lagerraum flüssig+fest'!$BG29) -> 0 | BZ29: 5 | CA29: 3 | CB29: 17 | CC29: =INDEX(Tiere!Z$30:Z$79,'Berech. Lagerraum flüssig+fest'!$BG29) -> 0 | CD29: =INDEX(Tiere!AA$30:AA$79,'Berech. Lagerraum flüssig+fest'!$BG29) -> 0 | CE29: 0 | CF29: 0 | CG29: 0 | CH29: 0 | CJ29: FALSE | CL29: =INDEX(Tiere!AB$30:AB$79,'Berech. Lagerraum flüssig+fest'!$BG29) -> 0 | CM29: =INDEX(Tiere!AC$30:AC$79,'Berech. Lagerraum flüssig+fest'!$BG29) -> 0 | CN29: =INDEX(Tiere!AD$30:AD$79,'Berech. Lagerraum flüssig+fest'!$BG29) -> 0 | CO29: 0 | CP29: 0
P30: 0 | Q30: 0 | R30: 0 | S30: 0 | U30: 0 | V30: 0 | W30: 0 | X30: 0 | Y30: 0 | Z30: 0 | AA30: 0 | AB30: 0 | AC30: 0 | AD30: 0 | AE30: =INDEX(Tiere!K$30:K$79,'Berech. Lagerraum flüssig+fest'!$BG30) -> 0 | AF30: =INDEX(Tiere!S$30:S$79,'Berech. Lagerraum flüssig+fest'!BG30) -> 0 | AG30: 0 | AH30: 0 | AI30: 0 | AJ30: 0 | AK30: 0 | AL30: 0 | AM30: =INDEX(Tiere!P$30:P$79,'Berech. Lagerraum flüssig+fest'!$BG30) -> 0 | AN30: 0 | AO30: 0 | AP30: 0 | AQ30: 0 | AR30: 0 | AS30: 0 | AU30: 0 | AV30: 0 | AW30: 0 | AX30: 0 | AY30: 0 | AZ30: 0 | BA30: 0 | BB30: 0 | BC30: 0 | BD30: 0 | BE30: 0 | BF30: 1 | BG30: 1 | BH30: 1 | BI30: =INDEX(Tiere!C$30:C$79,'Berech. Lagerraum flüssig+fest'!$BG30) -> 0 | BJ30: 1 | BK30: 0 | BL30: =INDEX(Tiere!D$30:D$79,'Berech. Lagerraum flüssig+fest'!$BG30) -> 0 | BM30: =INDEX(Tiere!E$30:E$79,'Berech. Lagerraum flüssig+fest'!$BG30) -> 0 | BN30: =INDEX(Tiere!F$30:F$79,'Berech. Lagerraum flüssig+fest'!$BG30) -> 0 | BO30: =INDEX(Tiere!J$30:J$79,'Berech. Lagerraum flüssig+fest'!$BG30) -> 0 | BP30: =INDEX(Tiere!R$30:R$79,'Berech. Lagerraum flüssig+fest'!$BG30) -> 0 | BQ30: =INDEX(Tiere!M$30:M$79,'Berech. Lagerraum flüssig+fest'!$BG30) -> 0 | BR30: =INDEX(Tiere!N$30:N$79,'Berech. Lagerraum flüssig+fest'!$BG30) -> 0 | BS30: =INDEX(Tiere!O$30:O$79,'Berech. Lagerraum flüssig+fest'!$BG30) -> 0 | BT30: =INDEX(Tiere!T$30:T$79,'Berech. Lagerraum flüssig+fest'!$BG30) -> 0 | BU30: =INDEX(Tiere!U$30:U$79,'Berech. Lagerraum flüssig+fest'!$BG30) -> 0 | BV30: =INDEX(Tiere!V$30:V$79,'Berech. Lagerraum flüssig+fest'!$BG30) -> 0 | BW30: =INDEX(Tiere!W$30:W$79,'Berech. Lagerraum flüssig+fest'!$BG30) -> 0 | BX30: =INDEX(Tiere!X$30:X$79,'Berech. Lagerraum flüssig+fest'!$BG30) -> 0 | BY30: =INDEX(Tiere!Y$30:Y$79,'Berech. Lagerraum flüssig+fest'!$BG30) -> 0 | BZ30: 5 | CA30: 3 | CB30: 17 | CC30: =INDEX(Tiere!Z$30:Z$79,'Berech. Lagerraum flüssig+fest'!$BG30) -> 0 | CD30: =INDEX(Tiere!AA$30:AA$79,'Berech. Lagerraum flüssig+fest'!$BG30) -> 0 | CE30: 0 | CF30: 0 | CG30: 0 | CH30: 0 | CJ30: FALSE | CL30: =INDEX(Tiere!AB$30:AB$79,'Berech. Lagerraum flüssig+fest'!$BG30) -> 0 | CM30: =INDEX(Tiere!AC$30:AC$79,'Berech. Lagerraum flüssig+fest'!$BG30) -> 0 | CN30: =INDEX(Tiere!AD$30:AD$79,'Berech. Lagerraum flüssig+fest'!$BG30) -> 0 | CO30: 0 | CP30: 0
P31: 0 | Q31: 0 | R31: 0 | S31: 0 | U31: 0 | V31: 0 | W31: 0 | X31: 0 | Y31: 0 | Z31: 0 | AA31: 0 | AB31: 0 | AC31: 0 | AD31: 0 | AE31: =INDEX(Tiere!K$30:K$79,'Berech. Lagerraum flüssig+fest'!$BG31) -> 0 | AF31: =INDEX(Tiere!S$30:S$79,'Berech. Lagerraum flüssig+fest'!BG31) -> 0 | AG31: 0 | AH31: 0 | AI31: 0 | AJ31: 0 | AK31: 0 | AL31: 0 | AM31: =INDEX(Tiere!P$30:P$79,'Berech. Lagerraum flüssig+fest'!$BG31) -> 0 | AN31: 0 | AO31: 0 | AP31: 0 | AQ31: 0 | AR31: 0 | AS31: 0 | AU31: 0 | AV31: 0 | AW31: 0 | AX31: 0 | AY31: 0 | AZ31: 0 | BA31: 0 | BB31: 0 | BC31: 0 | BD31: 0 | BE31: 0 | BF31: 1 | BG31: 1 | BH31: 1 | BI31: =INDEX(Tiere!C$30:C$79,'Berech. Lagerraum flüssig+fest'!$BG31) -> 0 | BJ31: 1 | BK31: 0 | BL31: =INDEX(Tiere!D$30:D$79,'Berech. Lagerraum flüssig+fest'!$BG31) -> 0 | BM31: =INDEX(Tiere!E$30:E$79,'Berech. Lagerraum flüssig+fest'!$BG31) -> 0 | BN31: =INDEX(Tiere!F$30:F$79,'Berech. Lagerraum flüssig+fest'!$BG31) -> 0 | BO31: =INDEX(Tiere!J$30:J$79,'Berech. Lagerraum flüssig+fest'!$BG31) -> 0 | BP31: =INDEX(Tiere!R$30:R$79,'Berech. Lagerraum flüssig+fest'!$BG31) -> 0 | BQ31: =INDEX(Tiere!M$30:M$79,'Berech. Lagerraum flüssig+fest'!$BG31) -> 0 | BR31: =INDEX(Tiere!N$30:N$79,'Berech. Lagerraum flüssig+fest'!$BG31) -> 0 | BS31: =INDEX(Tiere!O$30:O$79,'Berech. Lagerraum flüssig+fest'!$BG31) -> 0 | BT31: =INDEX(Tiere!T$30:T$79,'Berech. Lagerraum flüssig+fest'!$BG31) -> 0 | BU31: =INDEX(Tiere!U$30:U$79,'Berech. Lagerraum flüssig+fest'!$BG31) -> 0 | BV31: =INDEX(Tiere!V$30:V$79,'Berech. Lagerraum flüssig+fest'!$BG31) -> 0 | BW31: =INDEX(Tiere!W$30:W$79,'Berech. Lagerraum flüssig+fest'!$BG31) -> 0 | BX31: =INDEX(Tiere!X$30:X$79,'Berech. Lagerraum flüssig+fest'!$BG31) -> 0 | BY31: =INDEX(Tiere!Y$30:Y$79,'Berech. Lagerraum flüssig+fest'!$BG31) -> 0 | BZ31: 5 | CA31: 3 | CB31: 17 | CC31: =INDEX(Tiere!Z$30:Z$79,'Berech. Lagerraum flüssig+fest'!$BG31) -> 0 | CD31: =INDEX(Tiere!AA$30:AA$79,'Berech. Lagerraum flüssig+fest'!$BG31) -> 0 | CE31: 0 | CF31: 0 | CG31: 0 | CH31: 0 | CJ31: FALSE | CL31: =INDEX(Tiere!AB$30:AB$79,'Berech. Lagerraum flüssig+fest'!$BG31) -> 0 | CM31: =INDEX(Tiere!AC$30:AC$79,'Berech. Lagerraum flüssig+fest'!$BG31) -> 0 | CN31: =INDEX(Tiere!AD$30:AD$79,'Berech. Lagerraum flüssig+fest'!$BG31) -> 0 | CO31: 0 | CP31: 0
P32: 0 | Q32: 0 | R32: 0 | S32: 0 | U32: 0 | V32: 0 | W32: 0 | X32: 0 | Y32: 0 | Z32: 0 | AA32: 0 | AB32: 0 | AC32: 0 | AD32: 0 | AE32: =INDEX(Tiere!K$30:K$79,'Berech. Lagerraum flüssig+fest'!$BG32) -> 0 | AF32: =INDEX(Tiere!S$30:S$79,'Berech. Lagerraum flüssig+fest'!BG32) -> 0 | AG32: 0 | AH32: 0 | AI32: 0 | AJ32: 0 | AK32: 0 | AL32: 0 | AM32: =INDEX(Tiere!P$30:P$79,'Berech. Lagerraum flüssig+fest'!$BG32) -> 0 | AN32: 0 | AO32: 0 | AP32: 0 | AQ32: 0 | AR32: 0 | AS32: 0 | AU32: 0 | AV32: 0 | AW32: 0 | AX32: 0 | AY32: 0 | AZ32: 0 | BA32: 0 | BB32: 0 | BC32: 0 | BD32: 0 | BE32: 0 | BF32: 1 | BG32: 1 | BH32: 1 | BI32: =INDEX(Tiere!C$30:C$79,'Berech. Lagerraum flüssig+fest'!$BG32) -> 0 | BJ32: 1 | BK32: 0 | BL32: =INDEX(Tiere!D$30:D$79,'Berech. Lagerraum flüssig+fest'!$BG32) -> 0 | BM32: =INDEX(Tiere!E$30:E$79,'Berech. Lagerraum flüssig+fest'!$BG32) -> 0 | BN32: =INDEX(Tiere!F$30:F$79,'Berech. Lagerraum flüssig+fest'!$BG32) -> 0 | BO32: =INDEX(Tiere!J$30:J$79,'Berech. Lagerraum flüssig+fest'!$BG32) -> 0 | BP32: =INDEX(Tiere!R$30:R$79,'Berech. Lagerraum flüssig+fest'!$BG32) -> 0 | BQ32: =INDEX(Tiere!M$30:M$79,'Berech. Lagerraum flüssig+fest'!$BG32) -> 0 | BR32: =INDEX(Tiere!N$30:N$79,'Berech. Lagerraum flüssig+fest'!$BG32) -> 0 | BS32: =INDEX(Tiere!O$30:O$79,'Berech. Lagerraum flüssig+fest'!$BG32) -> 0 | BT32: =INDEX(Tiere!T$30:T$79,'Berech. Lagerraum flüssig+fest'!$BG32) -> 0 | BU32: =INDEX(Tiere!U$30:U$79,'Berech. Lagerraum flüssig+fest'!$BG32) -> 0 | BV32: =INDEX(Tiere!V$30:V$79,'Berech. Lagerraum flüssig+fest'!$BG32) -> 0 | BW32: =INDEX(Tiere!W$30:W$79,'Berech. Lagerraum flüssig+fest'!$BG32) -> 0 | BX32: =INDEX(Tiere!X$30:X$79,'Berech. Lagerraum flüssig+fest'!$BG32) -> 0 | BY32: =INDEX(Tiere!Y$30:Y$79,'Berech. Lagerraum flüssig+fest'!$BG32) -> 0 | BZ32: 5 | CA32: 3 | CB32: 17 | CC32: =INDEX(Tiere!Z$30:Z$79,'Berech. Lagerraum flüssig+fest'!$BG32) -> 0 | CD32: =INDEX(Tiere!AA$30:AA$79,'Berech. Lagerraum flüssig+fest'!$BG32) -> 0 | CE32: 0 | CF32: 0 | CG32: 0 | CH32: 0 | CJ32: FALSE | CL32: =INDEX(Tiere!AB$30:AB$79,'Berech. Lagerraum flüssig+fest'!$BG32) -> 0 | CM32: =INDEX(Tiere!AC$30:AC$79,'Berech. Lagerraum flüssig+fest'!$BG32) -> 0 | CN32: =INDEX(Tiere!AD$30:AD$79,'Berech. Lagerraum flüssig+fest'!$BG32) -> 0 | CO32: 0 | CP32: 0
P33: 0 | Q33: 0 | R33: 0 | S33: 0 | U33: 0 | V33: 0 | W33: 0 | X33: 0 | Y33: 0 | Z33: 0 | AA33: 0 | AB33: 0 | AC33: 0 | AD33: 0 | AE33: =INDEX(Tiere!K$30:K$79,'Berech. Lagerraum flüssig+fest'!$BG33) -> 0 | AF33: =INDEX(Tiere!S$30:S$79,'Berech. Lagerraum flüssig+fest'!BG33) -> 0 | AG33: 0 | AH33: 0 | AI33: 0 | AJ33: 0 | AK33: 0 | AL33: 0 | AM33: =INDEX(Tiere!P$30:P$79,'Berech. Lagerraum flüssig+fest'!$BG33) -> 0 | AN33: 0 | AO33: 0 | AP33: 0 | AQ33: 0 | AR33: 0 | AS33: 0 | AU33: 0 | AV33: 0 | AW33: 0 | AX33: 0 | AY33: 0 | AZ33: 0 | BA33: 0 | BB33: 0 | BC33: 0 | BD33: =IF(BF33=2,0,IF(BF33=3,0,0)) -> 0 | BE33: 0 | BF33: 1 | BG33: 1 | BH33: 1 | BI33: =INDEX(Tiere!C$30:C$79,'Berech. Lagerraum flüssig+fest'!$BG33) -> 0 | BJ33: 1 | BK33: 0 | BL33: =INDEX(Tiere!D$30:D$79,'Berech. Lagerraum flüssig+fest'!$BG33) -> 0 | BM33: =INDEX(Tiere!E$30:E$79,'Berech. Lagerraum flüssig+fest'!$BG33) -> 0 | BN33: =INDEX(Tiere!F$30:F$79,'Berech. Lagerraum flüssig+fest'!$BG33) -> 0 | BO33: =INDEX(Tiere!J$30:J$79,'Berech. Lagerraum flüssig+fest'!$BG33) -> 0 | BP33: =INDEX(Tiere!R$30:R$79,'Berech. Lagerraum flüssig+fest'!$BG33) -> 0 | BQ33: =INDEX(Tiere!M$30:M$79,'Berech. Lagerraum flüssig+fest'!$BG33) -> 0 | BR33: =INDEX(Tiere!N$30:N$79,'Berech. Lagerraum flüssig+fest'!$BG33) -> 0 | BS33: =INDEX(Tiere!O$30:O$79,'Berech. Lagerraum flüssig+fest'!$BG33) -> 0 | BT33: =INDEX(Tiere!T$30:T$79,'Berech. Lagerraum flüssig+fest'!$BG33) -> 0 | BU33: =INDEX(Tiere!U$30:U$79,'Berech. Lagerraum flüssig+fest'!$BG33) -> 0 | BV33: =INDEX(Tiere!V$30:V$79,'Berech. Lagerraum flüssig+fest'!$BG33) -> 0 | BW33: =INDEX(Tiere!W$30:W$79,'Berech. Lagerraum flüssig+fest'!$BG33) -> 0 | BX33: =INDEX(Tiere!X$30:X$79,'Berech. Lagerraum flüssig+fest'!$BG33) -> 0 | BY33: =INDEX(Tiere!Y$30:Y$79,'Berech. Lagerraum flüssig+fest'!$BG33) -> 0 | BZ33: 5 | CA33: 3 | CB33: 17 | CC33: =INDEX(Tiere!Z$30:Z$79,'Berech. Lagerraum flüssig+fest'!$BG33) -> 0 | CD33: =INDEX(Tiere!AA$30:AA$79,'Berech. Lagerraum flüssig+fest'!$BG33) -> 0 | CE33: 0 | CF33: 0 | CG33: 0 | CH33: 0 | CJ33: FALSE | CL33: =INDEX(Tiere!AB$30:AB$79,'Berech. Lagerraum flüssig+fest'!$BG33) -> 0 | CM33: =INDEX(Tiere!AC$30:AC$79,'Berech. Lagerraum flüssig+fest'!$BG33) -> 0 | CN33: =INDEX(Tiere!AD$30:AD$79,'Berech. Lagerraum flüssig+fest'!$BG33) -> 0 | CO33: 0 | CP33: 0
P34: 0 | Q34: 0 | R34: 0 | S34: 0 | U34: 0 | V34: 0 | W34: 0 | X34: 0 | Y34: 0 | Z34: 0 | AA34: 0 | AB34: 0 | AC34: 0 | AD34: 0 | AE34: =INDEX(Tiere!K$30:K$79,'Berech. Lagerraum flüssig+fest'!$BG34) -> 0 | AF34: =INDEX(Tiere!S$30:S$79,'Berech. Lagerraum flüssig+fest'!BG34) -> 0 | AG34: 0 | AH34: 0 | AI34: 0 | AJ34: 0 | AK34: 0 | AL34: 0 | AM34: =INDEX(Tiere!P$30:P$79,'Berech. Lagerraum flüssig+fest'!$BG34) -> 0 | AN34: 0 | AO34: 0 | AP34: 0 | AQ34: 0 | AR34: 0 | AS34: 0 | AU34: 0 | AV34: 0 | AW34: 0 | AX34: 0 | AY34: 0 | AZ34: 0 | BA34: 0 | BB34: 0 | BC34: 0 | BD34: 0 | BE34: 0 | BF34: 1 | BG34: 1 | BH34: 1 | BI34: =INDEX(Tiere!C$30:C$79,'Berech. Lagerraum flüssig+fest'!$BG34) -> 0 | BJ34: 1 | BK34: 0 | BL34: =INDEX(Tiere!D$30:D$79,'Berech. Lagerraum flüssig+fest'!$BG34) -> 0 | BM34: =INDEX(Tiere!E$30:E$79,'Berech. Lagerraum flüssig+fest'!$BG34) -> 0 | BN34: =INDEX(Tiere!F$30:F$79,'Berech. Lagerraum flüssig+fest'!$BG34) -> 0 | BO34: =INDEX(Tiere!J$30:J$79,'Berech. Lagerraum flüssig+fest'!$BG34) -> 0 | BP34: =INDEX(Tiere!R$30:R$79,'Berech. Lagerraum flüssig+fest'!$BG34) -> 0 | BQ34: =INDEX(Tiere!M$30:M$79,'Berech. Lagerraum flüssig+fest'!$BG34) -> 0 | BR34: =INDEX(Tiere!N$30:N$79,'Berech. Lagerraum flüssig+fest'!$BG34) -> 0 | BS34: =INDEX(Tiere!O$30:O$79,'Berech. Lagerraum flüssig+fest'!$BG34) -> 0 | BT34: =INDEX(Tiere!T$30:T$79,'Berech. Lagerraum flüssig+fest'!$BG34) -> 0 | BU34: =INDEX(Tiere!U$30:U$79,'Berech. Lagerraum flüssig+fest'!$BG34) -> 0 | BV34: =INDEX(Tiere!V$30:V$79,'Berech. Lagerraum flüssig+fest'!$BG34) -> 0 | BW34: =INDEX(Tiere!W$30:W$79,'Berech. Lagerraum flüssig+fest'!$BG34) -> 0 | BX34: =INDEX(Tiere!X$30:X$79,'Berech. Lagerraum flüssig+fest'!$BG34) -> 0 | BY34: =INDEX(Tiere!Y$30:Y$79,'Berech. Lagerraum flüssig+fest'!$BG34) -> 0 | BZ34: 5 | CA34: 3 | CB34: 17 | CC34: =INDEX(Tiere!Z$30:Z$79,'Berech. Lagerraum flüssig+fest'!$BG34) -> 0 | CD34: =INDEX(Tiere!AA$30:AA$79,'Berech. Lagerraum flüssig+fest'!$BG34) -> 0 | CE34: 0 | CF34: 0 | CG34: 0 | CH34: 0 | CJ34: FALSE | CL34: =INDEX(Tiere!AB$30:AB$79,'Berech. Lagerraum flüssig+fest'!$BG34) -> 0 | CM34: =INDEX(Tiere!AC$30:AC$79,'Berech. Lagerraum flüssig+fest'!$BG34) -> 0 | CN34: =INDEX(Tiere!AD$30:AD$79,'Berech. Lagerraum flüssig+fest'!$BG34) -> 0 | CO34: 0 | CP34: 0
A35: =IF(M36+M37+M38>=1,"Bitte Tierart im Arbeitsblatt 'Abweichende Werte' auswählen","Eingabemöglichkeit für andere Haltungsverfahren; siehe Blatt 'Abweichende Werte' ") -> Eingabemöglichkeit für andere Haltungsverfahren; siehe Blatt 'Abweichende Werte' | W35: 0 | X35: 0 | Y35: 0 | Z35: 0 | AW35: 0 | AZ35: 0 | BG35: 1 | BH35: 1 | CO35: 0 | CP35: 0
A36: =+'Abweichende Werte'!V7 -> -- - | I36: =IF(P36+R36=0," ",(P36+R36)/2) ->  | M36: =IF(D36+E36>=1,IF(BF36=1,1,0),0) -> 0 | N36: =IF(J36=" "," ",(J36*(1/BV36))) ->  | P36: =IF(CJ36=FALSE,0,IF(U36+V36=0,0,IF(AU36*BO36+AV36*BA36=0,0,AU36*BO36+AV36*BA36))) -> 0 | Q36: =IF(CJ36=FALSE,0,IF(V36=0,0,IF(AY36+AV36=0,0,IF(BF36=4,AV36*BB36-(D36*(1-G36/100)*BB36)*((1220/1000)/(2*11)),AV36*BB36)))) -> 0 | R36: =IF(CJ36=FALSE,0,IF(U36+V36=0,0,IF(AX36*BO36+AY36*BA36=0,0,AX36*BO36+AY36*BA36))) -> 0 | S36: =IF(CJ36=FALSE,0,IF(V36=0,0,IF(AY36+AV36=0,0,IF(BF36=4,AY36*BB36-(D36*(1-H36/100)*BB36)*((1220/1000)/(2*11)),AY36*BB36)))) -> 0 | T36: =IF(S36=0," ",(S36*(1/BV36))) ->  | U36: =IF(BO36=0,0,D36) -> 0 | V36: =IF(BO36=0,D36+E36,E36) -> 0 | W36: 0 | X36: 0 | Y36: 0 | Z36: 0 | AA36: =+(AX36*BL36*(100-BT36)/100)+(BA36*BC36*AY36) -> 0 | AB36: =IF(BF36=2,AA36,0) -> 0 | AC36: =AX36*BM36+AY36*BA36*BD36 -> 0 | AD36: =AX36*BN36+AY36*BA36*BE36 -> 0 | AE36: ='Abweichende Werte'!L7 -> 0 | AF36: ='Abweichende Werte'!M7 -> 0 | AG36: 0 | AH36: 0 | AI36: 0 | AJ36: =+(AY36*BL36*(100-BU36)/100)-BA36*AY36*BC36 -> 0 | AK36: =AY36*BM36-AY36*BA36*BD36 -> 0 | AL36: =AY36*BN36-AY36*BA36*BE36 -> 0 | AM36: ='Abweichende Werte'!N7 -> 0 | AN36: 0 | AO36: 0 | AP36: 0 | AQ36: 0 | AR36: 0 | AS36: 0 | AU36: =+U36*(100-$G36)/100 -> 0 | AV36: 0 | AW36: 0 | AX36: =+U36*(100-$H36)/100 -> 0 | AY36: 0 | AZ36: 0 | BA36: =IF(BH36=1,BP36,IF(BH36=2,BP36/2,0)) -> 0 | BB36: =IF(BH36=1,BQ36,IF(BH36=2,BR36,BS36)) -> 0 | BC36: =IF(BF36=2,3.2,IF(BF36=3,3.3,0)) -> 0 | BD36: =IF(BF36=2,0,IF(BF36=3,0,0)) -> 0 | BE36: =IF(BF36=2,7.9,IF(BF36=3,3.1,0)) -> 0 | BF36: ='Abweichende Werte'!T7 -> 1 | BG36: 1 | BH36: 1 | BI36: ='Abweichende Werte'!C7 -> 0 | BJ36: =IF(BI36>0.001,BI36,"1") -> 1 | BK36: =D36*BI36+E36*BI36 -> 0 | BL36: ='Abweichende Werte'!D7 -> 0 | BM36: ='Abweichende Werte'!E7 -> 0 | BN36: ='Abweichende Werte'!F7 -> 0 | BO36: ='Abweichende Werte'!G7 -> 0 | BP36: ='Abweichende Werte'!H7 -> 0 | BQ36: ='Abweichende Werte'!I7 -> 0 | BR36: ='Abweichende Werte'!J7 -> 0 | BS36: ='Abweichende Werte'!K7 -> 0 | BT36: =IF(BF36=2,15,IF(BF36=3,20,IF(BF36=4,40,IF(BF36=5,45,0)))) -> 0 | BU36: =IF(BF36=2,30,IF(BF36=3,30,IF(BF36=4,40,IF(BF36=5,45,0)))) -> 0 | BV36: ='Abweichende Werte'!R7 -> 0 | BW36: ='Abweichende Werte'!O7 -> 0 | BX36: ='Abweichende Werte'!P7 -> 0 | BY36: ='Abweichende Werte'!Q7 -> 0 | BZ36: 5 | CA36: 3 | CB36: 17 | CC36: =IF(BF36=1,0,IF(BF36=2,1,IF(BF36=3,1,5))) -> 0 | CD36: =IF(BF36=1,0,IF(BF36=2,2,IF(BF36=3,2,5))) -> 0 | CE36: =IF(N36=" ",0,CC36*N36) -> 0 | CF36: =IF(N36=" ",0,CD36*N36) -> 0 | CG36: 0 | CH36: 0 | CJ36: =AND(BF36>1) -> FALSE | CL36: =INDEX(Tiere!F$83:F$87,'Berech. Lagerraum flüssig+fest'!$BF36) -> 0 | CM36: =INDEX(Tiere!G$83:G$87,'Berech. Lagerraum flüssig+fest'!$BF36) -> 0 | CN36: =INDEX(Tiere!H$83:H$87,'Berech. Lagerraum flüssig+fest'!$BF36) -> 0 | CO36: 0 | CP36: 0
A37: =+'Abweichende Werte'!V8 -> -- - | M37: =IF(D37+E37>=1,IF(BF37=1,1,0),0) -> 0 | N37: =IF(J37=" "," ",(J37*(1/BV37))) ->  | P37: =IF(CJ37=FALSE,0,IF(U37+V37=0,0,IF(AU37*BO37+AV37*BA37=0,0,AU37*BO37+AV37*BA37))) -> 0 | Q37: =IF(CJ37=FALSE,0,IF(V37=0,0,IF(AY37+AV37=0,0,IF(BF37=4,AV37*BB37-(D37*(1-G37/100)*BB37)*((1220/1000)/(2*11)),AV37*BB37)))) -> 0 | R37: =IF(CJ37=FALSE,0,IF(U37+V37=0,0,IF(AX37*BO37+AY37*BA37=0,0,AX37*BO37+AY37*BA37))) -> 0 | S37: =IF(CJ37=FALSE,0,IF(V37=0,0,IF(AY37+AV37=0,0,IF(BF37=4,AY37*BB37-(D37*(1-H37/100)*BB37)*((1220/1000)/(2*11)),AY37*BB37)))) -> 0 | T37: =IF(S37=0," ",(S37*(1/BV37))) ->  | U37: =IF(BO37=0,0,D37) -> 0 | V37: =IF(BO37=0,D37+E37,E37) -> 0 | W37: 0 | X37: 0 | Y37: 0 | Z37: 0 | AA37: =+(AX37*BL37*(100-BT37)/100)+(BA37*BC37*AY37) -> 0 | AB37: =IF(BF37=2,AA37,0) -> 0 | AC37: =AX37*BM37+AY37*BA37*BD37 -> 0 | AD37: =AX37*BN37+AY37*BA37*BE37 -> 0 | AE37: ='Abweichende Werte'!L8 -> 0 | AF37: ='Abweichende Werte'!M8 -> 0 | AG37: 0 | AH37: 0 | AI37: 0 | AJ37: =+(AY37*BL37*(100-BU37)/100)-BA37*AY37*BC37 -> 0 | AK37: =AY37*BM37-AY37*BA37*BD37 -> 0 | AL37: =AY37*BN37-AY37*BA37*BE37 -> 0 | AM37: ='Abweichende Werte'!N8 -> 0 | AN37: 0 | AO37: 0 | AP37: 0 | AQ37: 0 | AR37: 0 | AS37: 0 | AU37: 0 | AV37: 0 | AW37: 0 | AX37: 0 | AY37: 0 | AZ37: 0 | BA37: =IF(BH37=1,BP37,IF(BH37=2,BP37/2,0)) -> 0 | BB37: =IF(BH37=1,BQ37,IF(BH37=2,BR37,BS37)) -> 0 | BC37: =IF(BF37=2,3.2,IF(BF37=3,3.3,0)) -> 0 | BD37: =IF(BF37=2,0,IF(BF37=3,0,0)) -> 0 | BE37: =IF(BF37=2,7.9,IF(BF37=3,3.1,0)) -> 0 | BF37: ='Abweichende Werte'!T8 -> 1 | BH37: 1 | BI37: ='Abweichende Werte'!C8 -> 0 | BJ37: 1 | BK37: =D37*BI37+E37*BI37 -> 0 | BL37: ='Abweichende Werte'!D8 -> 0 | BM37: ='Abweichende Werte'!E8 -> 0 | BN37: ='Abweichende Werte'!F8 -> 0 | BO37: ='Abweichende Werte'!G8 -> 0 | BP37: ='Abweichende Werte'!H8 -> 0 | BQ37: ='Abweichende Werte'!I8 -> 0 | BR37: ='Abweichende Werte'!J8 -> 0 | BS37: ='Abweichende Werte'!K8 -> 0 | BT37: =IF(BF37=2,15,IF(BF37=3,20,IF(BF37=4,40,IF(BF37=5,45,0)))) -> 0 | BU37: =IF(BF37=2,30,IF(BF37=3,30,IF(BF37=4,40,IF(BF37=5,45,0)))) -> 0 | BV37: ='Abweichende Werte'!R8 -> 0 | BW37: ='Abweichende Werte'!O8 -> 0 | BX37: ='Abweichende Werte'!P8 -> 0 | BY37: ='Abweichende Werte'!Q8 -> 0 | BZ37: 5 | CA37: 3 | CB37: 17 | CC37: =IF(BF37=1,0,IF(BF37=2,1,IF(BF37=3,1,5))) -> 0 | CD37: =IF(BF37=1,0,IF(BF37=2,2,IF(BF37=3,2,5))) -> 0 | CE37: =IF(N37=" ",0,CC37*N37) -> 0 | CF37: =IF(N37=" ",0,CD37*N37) -> 0 | CG37: 0 | CH37: 0 | CJ37: =AND(BF37>1) -> FALSE | CL37: =INDEX(Tiere!F$83:F$87,'Berech. Lagerraum flüssig+fest'!$BF37) -> 0 | CM37: =INDEX(Tiere!G$83:G$87,'Berech. Lagerraum flüssig+fest'!$BF37) -> 0 | CN37: =INDEX(Tiere!H$83:H$87,'Berech. Lagerraum flüssig+fest'!$BF37) -> 0 | CO37: 0 | CP37: 0
A38: =+'Abweichende Werte'!V9 -> -- - | M38: =IF(D38+E38>=1,IF(BF38=1,1,0),0) -> 0 | N38: =IF(J38=" "," ",(J38*(1/BV38))) ->  | P38: =IF(CJ38=FALSE,0,IF(U38+V38=0,0,IF(AU38*BO38+AV38*BA38=0,0,AU38*BO38+AV38*BA38))) -> 0 | Q38: =IF(CJ38=FALSE,0,IF(V38=0,0,IF(AY38+AV38=0,0,IF(BF38=4,AV38*BB38-(D38*(1-G38/100)*BB38)*((1220/1000)/(2*11)),AV38*BB38)))) -> 0 | R38: =IF(CJ38=FALSE,0,IF(U38+V38=0,0,IF(AX38*BO38+AY38*BA38=0,0,AX38*BO38+AY38*BA38))) -> 0 | S38: =IF(CJ38=FALSE,0,IF(V38=0,0,IF(AY38+AV38=0,0,IF(BF38=4,AY38*BB38-(D38*(1-H38/100)*BB38)*((1220/1000)/(2*11)),AY38*BB38)))) -> 0 | T38: =IF(S38=0," ",(S38*(1/BV38))) ->  | U38: =IF(BO38=0,0,D38) -> 0 | V38: =IF(BO38=0,D38+E38,E38) -> 0 | W38: 0 | X38: 0 | Y38: 0 | Z38: 0 | AA38: =+(AX38*BL38*(100-BT38)/100)+(BA38*BC38*AY38) -> 0 | AB38: =IF(BF38=2,AA38,0) -> 0 | AC38: =AX38*BM38+AY38*BA38*BD38 -> 0 | AD38: =AX38*BN38+AY38*BA38*BE38 -> 0 | AE38: ='Abweichende Werte'!L9 -> 0 | AF38: ='Abweichende Werte'!M9 -> 0 | AG38: 0 | AH38: 0 | AI38: 0 | AJ38: =+(AY38*BL38*(100-BU38)/100)-BA38*AY38*BC38 -> 0 | AK38: =AY38*BM38-AY38*BA38*BD38 -> 0 | AL38: =AY38*BN38-AY38*BA38*BE38 -> 0 | AM38: ='Abweichende Werte'!N9 -> 0 | AN38: 0 | AO38: 0 | AP38: 0 | AQ38: 0 | AR38: 0 | AS38: 0 | AU38: 0 | AV38: 0 | AW38: 0 | AX38: 0 | AY38: 0 | AZ38: 0 | BA38: =IF(BH38=1,BP38,IF(BH38=2,BP38/2,0)) -> 0 | BB38: =IF(BH38=1,BQ38,IF(BH38=2,BR38,BS38)) -> 0 | BC38: =IF(BF38=2,3.2,IF(BF38=3,3.3,0)) -> 0 | BD38: =IF(BF38=2,0,IF(BF38=3,0,0)) -> 0 | BE38: =IF(BF38=2,7.9,IF(BF38=3,3.1,0)) -> 0 | BF38: ='Abweichende Werte'!T9 -> 1 | BH38: 1 | BI38: ='Abweichende Werte'!C9 -> 0 | BJ38: 1 | BK38: =D38*BI38+E38*BI38 -> 0 | BL38: ='Abweichende Werte'!D9 -> 0 | BM38: ='Abweichende Werte'!E9 -> 0 | BN38: ='Abweichende Werte'!F9 -> 0 | BO38: ='Abweichende Werte'!G9 -> 0 | BP38: ='Abweichende Werte'!H9 -> 0 | BQ38: ='Abweichende Werte'!I9 -> 0 | BR38: ='Abweichende Werte'!J9 -> 0 | BS38: ='Abweichende Werte'!K9 -> 0 | BT38: =IF(BF38=2,15,IF(BF38=3,20,IF(BF38=4,40,IF(BF38=5,45,0)))) -> 0 | BU38: =IF(BF38=2,30,IF(BF38=3,30,IF(BF38=4,40,IF(BF38=5,45,0)))) -> 0 | BV38: ='Abweichende Werte'!R9 -> 0 | BW38: ='Abweichende Werte'!O9 -> 0 | BX38: ='Abweichende Werte'!P9 -> 0 | BY38: ='Abweichende Werte'!Q9 -> 0 | BZ38: 5 | CA38: 3 | CB38: 17 | CC38: =IF(BF38=1,0,IF(BF38=2,1,IF(BF38=3,1,5))) -> 0 | CD38: =IF(BF38=1,0,IF(BF38=2,2,IF(BF38=3,2,5))) -> 0 | CE38: =IF(N38=" ",0,CC38*N38) -> 0 | CF38: =IF(N38=" ",0,CD38*N38) -> 0 | CG38: 0 | CH38: 0 | CJ38: =AND(BF38>1) -> FALSE | CL38: =INDEX(Tiere!F$83:F$87,'Berech. Lagerraum flüssig+fest'!$BF38) -> 0 | CM38: =INDEX(Tiere!G$83:G$87,'Berech. Lagerraum flüssig+fest'!$BF38) -> 0 | CN38: =INDEX(Tiere!H$83:H$87,'Berech. Lagerraum flüssig+fest'!$BF38) -> 0 | CO38: 0 | CP38: 0
A39: Niederschlagswasser und sonstige Abwässer, wenn eingeleitet wird | L39: Zwiz. | M39: Silosaft | N39: Wasser | BG39: =IF(OR(BG23=2,BG24=2,BG25=2,BG26=2,BG27=2,BG28=2,BG29=2,BG30=2,BG31=2,BG32=2,BG33=2,BG34=2,),2,1) -> 1 | BH39: 1
A40: Flächen nicht abgedeckter Gülle- und Jaucheläger | H40: m² | I40: =IF(G40>0.1,IF($C$12<1,"Fehler",L40)," ") ->  | L40: =IF(($C$12*G40*0.7)/1000=0," ",($C$12*G40*0.7)/1000) ->  | M40: =+M41+M42+M44 -> 0 | N40: =IF(L40=" ",0,L40) -> 0 | BH40: 1 | CG40: =SUM(CG23:CG38) -> 0 | CH40: =SUM(CH23:CH38) -> 0 | CO40: =SUM(CO23:CO39) -> 0 | CP40: =SUM(CP23:CP39) -> 0
A41: Fläche verunreinigtes Wasser z.B. ungereinigte Silofläche oder Ladefläche oder Laufhöfe | H41: m² | I41: =IF(G41>0.1,IF($C$12<1,"Fehler",L41)," ") ->  | L41: =IF(($C$12*G41*0.85)/1000=0," ",($C$12*G41*0.85)/1000) ->  | M41: =IF(L41=" ",0,L41) -> 0 | N41: =IF(L41=" ",0,L41) -> 0 | CG41: =IF(CG40=0,"1",SUM(CG23:CG38)) -> 1 | CH41: =IF(CH40=0,"1",SUM(CH23:CH38)) -> 1
A42: Sonstige Flächen (gereinigte Siloflächen, Stallmistläger, abgedeckte Silo- und Gülleläger) | H42: m² | I42: =IF(G42>0.1,IF($C$12<1,"Fehler",L42)," ") ->  | L42: =IF(($C$12*G42*0.85)/1000=0," ",($C$12*G42*0.85)/1000) ->  | M42: =IF(L42=" ",0,L42) -> 0 | N42: =IF(L42=" ",0,L42) -> 0 | BH42: =SUM(G40:G42) -> 0
A43: Hausabwässer Anzahl Personen | H43: Pers. | I43: =+IF(G43>0.1,G43*33.2," ") ->  | N43: =IF(I43=" ",0,I43) -> 0
A44: Mindestanfall für Gärsaft - mind. 3 % des Volumens des größten Silos | H44: m³ | I44: =IF(G44>0.1,G44," ") ->  | M44: =IF(I44=" ",0,I44) -> 0 | N44: =IF(I44=" ",0,I44) -> 0
A45: Sonstige Wasserzugabe im Jahr (z.B. Dachrinnenwasser, Reinigungswasser) | H45: m³ | I45: =IF(G45>0.1,G45," ") ->  | N45: =IF(I45=" ",0,I45) -> 0
A46: Anfall Wirtschaftsdünger im Jahr in t | J46: =IF(N46=0," ",N46) ->  | M46: =SUM(I23:I45) -> 0 | N46: =SUM(J23:J45) -> 0 | W46: =SUM(W23:W45) -> 0 | X46: 0 | Y46: 0 | Z46: 0 | AA46: 0 | AB46: 0 | AC46: 0 | AD46: 0 | AG46: =SUM(AG23:AG45) -> 0 | AH46: 0 | AI46: 0 | AJ46: 0 | AK46: 0 | AL46: 0 | AN46: =SUM(AN23:AN45) -> 0 | AO46: 0 | AP46: 0 | AQ46: 0 | AR46: 0 | AS46: 0 | BK46: =SUM(BK23:BK38) -> 0
A47: Anfall Wirtschaftsdünger im Jahr in m³ | I47: =IF(M46=0," ",M46) ->  | J47: =IF(N47=0," ",N47) ->  | N47: =SUM(N23:N38) -> 0 | P47: =SUM(P23:P38)+SUM(I40:I45) -> 0 | R47: =SUM(R23:R38)+SUM(I40:I45) -> 0 | T47: =SUM(T23:T38) -> 0
P48: =+P47/M46 ->  | Q48: % | R48: =+R47/M46 -> 
A49: Lagerbehälter im Betrieb für flüssige (Gülle, Jauche) und feste (Mist) Wirtschaftsdünger | N49: =IF($M46=0," ",IF(AE52+AF52=0,"0,00",(AE52*CG40+AF52*CH40)/(CG40+CH40+N40+N41+N42+N43+N44+N45))) -> 
W52: =+W46/$M46 ->  | Y52: =+Y46/$M46 ->  | Z52: =+Z46/$M46 ->  | AA52: =+AA46/$M46 ->  | AC52: =+AC46/$M46 ->  | AD52: =+AD46/$M46 ->  | AE52: =SUMPRODUCT(AE23:AE38,$CG23:$CG38)/CG41 -> 0 | AF52: =SUMPRODUCT(AF23:AF38,$CH23:$CH38)/CH41 -> 0 | AG52: =+(AG46+AN46)/$N46 ->  | AM52: =SUMPRODUCT(AM23:AM38,$J23:$J38)/J46 ->  | AT52: Nährstoffgehalt/t
A54: Separierung flüssiger Wirtschaftsdünger
B56: Menge | C56: TS | D56: N | E56: P2O5 | F56: K2O
B57: m³ | C57: % | D57: kg/t bzw. m³
A58: org. Dünger | B58: =M46 -> 0 | C58: =IF(C50=" ",0,C50) -> 0 | D58: =IF(D50=" ",0,D50) -> 0 | E58: =IF(F50=" ",0,F50) -> 0 | F58: =IF(G50=" ",0,G50) -> 0
C62: =100-D62 -> 100 | D62: 0 | E62: welcher Anteil in % wird separiert
S72: Mist m³
S73: Sommer | T73: Winter
P74: fest in t | Q74: fest in m³
A75: Menge in m³ | B75: =M75 -> 0 | D75: Menge in m³ | F75: =B58-B75-J75 -> 0 | H75: Menge in t | J75: =P75 -> 0 | M75: =B58*C62/100 -> 0 | N75: =B58-B75-J75 -> 0 | P75: =IF(F76+J76=0,"0",B58*D62/100*((C58-F76)/(J76-F76))) -> 0 | Q75: =P75*(1/0.9) -> 0 | S75: =IF(Q75=0,0,Q75*P48) -> 0 | T75: =IF(Q75=0,0,Q75*R48) -> 0 | CC75: 6 | CD75: 6 | CE75: =IF(Q75=" ",0,CC75*Q75) -> 0 | CF75: =IF(Q75=" ",0,CD75*Q75) -> 0
A76: TS in % | B76: =C58 -> 0 | D76: TS in % | F76: 0 | H76: TS in % | J76: 0
I79: Anfall Betrieb
I80: flüssig | J80: fest | S80: Gülle m³
I81: pro Jahr | J81: pro Jahr | S81: Sommer | T81: Winter
A82: Anfall Wirtschaftsdünger im Jahr in t | J82: =IF(N82=0," ",N82) ->  | M82: =B75+F75 -> 0 | N82: =N46+J75 -> 0 | S82: =IF(M82=0,0,M82*P48) -> 0 | T82: =IF(M82=0,0,M82*R48) -> 0
A83: Anfall Wirtschaftsdünger im Jahr in m³ | I83: =IF(M82=0," ",M82) ->  | J83: =IF(N83=0," ",N83) ->  | N83: =N47+J75*(1/0.9) -> 0
CE84: =SUM(CE23:CE83) -> 0 | CF84: =SUM(CF23:CF83) -> 0
CE85: =IF(N83=0,0,CE84/(N47+Q75)) -> 0 | CF85: =IF(N83=0,0,CF84/(N47+Q75)) -> 0
A102: © Bayerische Landesanstalt für Landwirtschaft, Institut für Agrarökologie - Düngung (Of, We, Sp, Ka, Br); Stand: 04.02.20
A106: Runde Behälter (flüssig) | C106: Lager | E106: Durchmesser | G106: Höhe1) | I106: Lagerraum m³
C107: für Wirtschaftsdünger | E107: m | G107: m | I107: flüssig | J107: fest
A108: Behälter 1 Bestand | C108: flüssig | I108: =IF(M108=TRUE,E108/2*E108/2*3.1415926*G108," ") ->  | M108: =AND(E108>0.1,G108>0.1) -> FALSE
A109: Behälter 2 Bestand | C109: flüssig | I109: =IF(M109=TRUE,E109/2*E109/2*3.1415926*G109," ") ->  | M109: =AND(E109>0.1,G109>0.1) -> FALSE
A110: Behälter 3 Neubau | C110: flüssig | I110: =IF(M110=TRUE,E110/2*E110/2*3.1415926*G110," ") ->  | M110: =AND(E110>0.1,G110>0.1) -> FALSE
A111: Behälter 4 Neubau | C111: flüssig | I111: =IF(M111=TRUE,E111/2*E111/2*3.1415926*G111," ") ->  | M111: =AND(E111>0.1,G111>0.1) -> FALSE
A112: Rechteckige Behälter (flüssig) | C112: Lager
A113: bzw. Lagerflächen (fest) | C113: für Wirtschaftsdünger | R113: --
A114: Behälter/Lagerfläche 1 Bestand | I114: =IF(M114=TRUE,IF(U114=2,E114*F114*G114," ")," ") ->  | J114: =IF(M114=TRUE,IF(U114=3,E114*F114*G114," ")," ") ->  | M114: =AND(E114>0.1,F114>0.1,G114>0.1) -> FALSE | R114: flüssig | U114: 1
A115: Behälter/Lagerfläche 2 Bestand | I115: =IF(M115=TRUE,IF(U115=2,E115*F115*G115," ")," ") ->  | J115: =IF(M115=TRUE,IF(U115=3,E115*F115*G115," ")," ") ->  | M115: =AND(E115>0.1,F115>0.1,G115>0.1) -> FALSE | R115: fest | U115: 1
A116: Behälter/Lagerfläche 3 Neubau | I116: =IF(M116=TRUE,IF(U116=2,E116*F116*G116," ")," ") ->  | J116: =IF(M116=TRUE,IF(U116=3,E116*F116*G116," ")," ") ->  | M116: =AND(E116>0.1,F116>0.1,G116>0.1) -> FALSE | U116: 1
A117: Behälter/Lagerfläche 4 Neubau | I117: =IF(M117=TRUE,IF(U117=2,E117*F117*G117," ")," ") ->  | J117: =IF(M117=TRUE,IF(U117=3,E117*F117*G117," ")," ") ->  | M117: =AND(E117>0.1,F117>0.1,G117>0.1) -> FALSE | U117: 1
A118: Sonstige Lagerkapazitäten im Betrieb
A119: Lager 1
A120: Lager 2
A121: Lager 3
A122: Lager 4
D123: =IF(X129>1,"Verpacht mit Vorzeichen minus"," ") -> 
R125: -- | U125: 1 | X125: =IF(U125=3,IF(I125>0,99,IF(J125>0,99,0)),0) -> 0 | Y125: =IF(U125=1,IF(I125>0,99,IF(J125>0,99,0)),0) -> 0 | Z125: =IF(U125=1,IF(I125<0,99,IF(J125<0,99,0)),0) -> 0
R126: Zupacht | U126: 1 | X126: =IF(U126=3,IF(I126>0,99,IF(J126>0,99,0)),0) -> 0 | Y126: =IF(U126=1,IF(I126>0,99,IF(J126>0,99,0)),0) -> 0 | Z126: =IF(U126=1,IF(I126<0,99,IF(J126<0,99,0)),0) -> 0
R127: Verpacht | U127: 1 | X127: =IF(U127=3,IF(I127>0,99,IF(J127>0,99,0)),0) -> 0 | Y127: =IF(U127=1,IF(I127>0,99,IF(J127>0,99,0)),0) -> 0 | Z127: =IF(U127=1,IF(I127<0,99,IF(J127<0,99,0)),0) -> 0
U128: 1 | X128: =IF(U128=3,IF(I128>0,99,IF(J128>0,99,0)),0) -> 0 | Y128: =IF(U128=1,IF(I128>0,99,IF(J128>0,99,0)),0) -> 0 | Z128: =IF(U128=1,IF(I128<0,99,IF(J128<0,99,0)),0) -> 0
A129: Lagerraum der dem Betrieb zur Verfügung steht in m³ | I129: =IF(M129=0," ",IF(AA129>1,"Fehler",M129)) ->  | J129: =IF(N129=0," ",IF(AA129>0,"Fehler",N129)) ->  | M129: =+M130+M131 -> 0 | N129: =+N130+N131 -> 0 | X129: =SUM(X125:X128) -> 0 | Y129: =SUM(Y125:Y128) -> 0 | Z129: =SUM(Z125:Z128) -> 0 | AA129: =+X129+Y129+Z129 -> 0
A130: Summe Lagerbehälter im Betrieb für flüssige und feste Wirtschaftsdünger m³ | I130: =IF(M130=0," ",M130) ->  | J130: =IF(N130=0," ",N130) ->  | M130: =SUM(I108:I122) -> 0 | N130: =SUM(J108:J122) -> 0
I131: =IF(M131=0," ",M131) ->  | J131: =IF(N131=0," ",N131) ->  | M131: =SUM(I125:I128) -> 0 | N131: =SUM(J125:J128) -> 0 | R131: rote Flächen | Z131: grünes Gebiet | AP131: bei Anteil
A134: Ergebnis 2019 | I134: flüssig | J134: fest | M134: =IF(I83=0,"0",6) -> 6 | N134: =ROUND(N135,1) -> 0
A135: Notwendiger Lagerraum nach DüV in Monate: | I135: =CONCATENATE(M134," Mo.") -> 6 Mo. | J135: =CONCATENATE(N134," Mo.") -> 0 Mo. | M135: 6 | N135: =+CE85 -> 0 | R135: LF | S135: GV/ha | T135: Gülle/Jauche notwendige ha | U135: % der Gülle reichen 6 Mo Lagerraum | X135: % der Gülle benötigen wir 9 Mo Lagerraum | Z135: LF | AH135: GV/ha | AI135: GL/ha | AJ135: ha notwendig bei Rind und Grünlad (255) | AK135: Fläche eigen Grünland max. ha 255 | AL135: Max. Ausbringung Betrieb | AM135: % der Gülle für 6 Mo Lagerraum | AN135: % der Gülle die 9 Mo gelagert werden muss | AP135: %6Mo | AQ135: %9Mo
A136: Anfall in dieser Zeit (bzw. mindestens benötigter Lagerraum) in m³ | I136: =IF(M136=0," ",M136) ->  | J136: =IF(N136=0," ",N136) ->  | M136: =+T82/12*M135 -> 0 | N136: =+(T47+T75)/12*N135 -> 0
A137: Lagerraum der dem Betrieb zur Verfügung steht in m³ | I137: =IF(M137=0," ",M137) ->  | J137: =IF(N137=0," ",N137) ->  | M137: =IF(I129=" ",0,I129) -> 0 | N137: =IF(J129=" ",0,J129) -> 0
A138: Mindestanforderung nach DüV wird eingehalten: | I138: =IF(I137="Fehler","Fehler",IF(M136>0.1,IF(M136<M137,"ja","nein")," ")) ->  | J138: =IF(J137="Fehler","Fehler",IF(N136>0.1,IF(N136<N137,"ja","nein")," ")) ->  | P138: ja | Q138: nein
A140: Notwendiger Lagerraum Zieljahr | I140: flüssig | J140: fest | M140: 9 | N140: 4
A141: Notwendiger Lagerraum in Monate | I141: =CONCATENATE(M140," Mo.") -> 9 Mo. | J141: =CONCATENATE(N140," Mo.") -> 4 Mo. | M141: 9 | N141: 4
A142: Anfall in dieser Zeit (bzw. mindestens benötigter Lagerraum) in m³ | I142: =IF(M142=0," ",M142) ->  | J142: =IF(N142=0," ",N142) ->  | M142: =+IF(S82+T82=0,0,M136+((M141-M135)*S82/12)) -> 0 | N142: =(T47+T75)/12*N141 -> 0 | R142: =+#REF!-#REF!+#REF!-#REF! ->  | S142: =IF(R142=0,100,BK46/R142) ->  | T142: =(W46+AA46)/2/170 -> 0 | U142: =IF(R142+#REF!>T142,100,(1-(T142-R142-#REF!)/T142)*100) ->  | X142: =100-U142 ->  | Z142: =+R142 ->  | AH142: =+S142 ->  | AI142: =+#REF!-#REF! ->  | AJ142: =+(X46+AB46)/2/255 -> 0 | AK142: =IF(AI142<AJ142,AI142,AJ142) ->  | AL142: =+AK142*255+(R142+#REF!-AK142)*170 ->  | AM142: =IF((W46+AA46)/2=0,100,(AL142/((W46+AA46)/2))*100) -> 100 | AN142: =100-AM142 -> 0 | AP142: =IF(AM142>100,100,(AM142*T11+U142*(100-T11))/100) ->  | AQ142: =100-AP142 -> 
A143: Lagerraum der dem Betrieb im Ziel zur Verfügung steht in m³ | I143: =+I137 ->  | J143: =+J137 ->  | M143: =+M137 -> 0 | N143: =+N137 -> 0
A144: Anforderung für EIF-Förderung (Lagerung Wirtschaftsdünger) eingehalten: | I144: =IF(I143="Fehler","Fehler",IF(M142>0.1,IF(M142<M143,"ja","nein")," ")) ->  | J144: =IF(J143="Fehler","Fehler",IF(N142>0.1,IF(N142<N143,"ja","nein")," ")) -> 
A146: 1) Bei offenen Behältern sind von der Höhe 20 cm (Freiraum) und bei geschlossenen Behältern 10 cm abzuziehen. | M146: =((M44+M41)/I47)*100 -> 
A147: Zusätzlich sind für nicht abpumpfähige Mengen 10 cm zu berücksichtigen und von der Höhe abzuziehen.
A149: Berechnung durch:
A153: Ort, Datum | B153: AELF/Firma | G153: Betreuer
A156: Die Angaben sind richtig
A160: Ort, Datum | G160: Antragsteller

Sheet Betriebe mit Separation (hidden)
A1: Berechnung Lagerraum für Gülle/Jauche und Stallmist
C2: für tierhaltende Betriebe (ohne Biogas, mit Separierung)
A3: Mindestanforderungen nach Düngeverordnung 1) Entwurf Stand: 17.10.18
A5: Betriebsnummer: | C5: Kalenderjahr: | D5: 2018 | G5: ha LF
A6: Vorname/Name: | G6: ha gesamte Ackerfläche
A7: Straße: | H7: davon Stillleg. Acker
A8: PLZ/Ort: | G8: ha gesamte Grünlandfläche
A9: Telefon: | H9: davon Stillleg. GL
F10: =IF(F6+F8<>F5,"Flächenangaben nicht plausibel",IF(G7>F6,"Flächenangaben nicht plausibel",IF(G9>F8,"Flächenangaben nicht plausibel"," "))) -> 
B11: =IF(AP41=2,IF(F5<0.001,"Flächenangaben nicht plausibel"," ")," ") ->  | G11: zusätzliche Ausbringfläche
B12: =IF(AP41=2,IF(B13<3000,"Milchleistung nicht plausibel"," ")," ") -> 
A13: Milchleistung: | B13: 10000 | C13: kg/Kuh und Jahr | G13: grüner Betrieb? | N13: Fläche im grünen Gebiet (%) ab 2020 | T13: =IF(W13=1,0,100) -> 100 | W13: 2 | X13: nein | AU13: =IF(F5=0,0,+(F8-G9)/(F5-G7-G9)) -> 0 | AX13: % Grünlandanteil
A14: Niederschlag: | C14: mm im Jahr (langjähriges Mittel) | X14: ja
B16: =IF((G42+G43+G44)>1,IF(B14<10,"Bitte Niederschlag eingeben"," ")," ") -> 
A17: Anfall flüssiger und fester Wirtschaftsdünger (Gülle/Jauche/Stallmist) aus Tierhaltung
A20: Tierhaltung | D20: Ø Jahresbestand | I20: Anfall Betrieb | N20: Anfall | R20: Nährstoffanfall Betrieb
D21: Gülle | E21: Stallmist/Jauche | G21: Weide | I21: Gülle, | J21: Stall- | N21: SM | P21: Plaus. Tiere ohne Gülle | R21: Gülle und Jauche | V21: Gülle | W21: Jauche | X21: Festmist | AA21: Festmist | AB21: Stroh | AF21: t | AG21: t | AH21: 170 | AI21: 170 | AJ21: Anfall | AK21: Anfall | AU21: Nährstoffauss. Anfall
F22: Einstreu- | G22: Apr-Sep | H22: Okt-Mär | I22: Jauche | J22: mist | P22: Gülle | Q22: Mist | R22: N | S22: N | T22: P205 | U22: K2O | V22: % TS | W22: % TS | X22: N | Y22: P205 | Z22: K2O | AA22: % TS | AB22: N | AC22: P205 | AD22: K2O | AF22: Gülle | AG22: Mist | AH22: Gülle | AI22: Mist | AJ22: Jauche | AK22: Mist | AL22: Jauche Nährstoffg. | AR22: GV | AS22: GV | AT22: GV | AX22: Gülle | AY22: Jauche | AZ22: Mist | BC22: Verluste | BE22: spez.Gew. | BF22: Einstreu kg je GV und Tag | BI22: Nähstoffgehalt Stroh kg/t | BL22: Lager in Monate Stallmist | BN22: Mistanfall im m³ | BP22: Anfall Gülle | BQ22: Anfall Jauche
D23: Anzahl | E23: Anzahl | F23: menge | G23: in % | H23: in % | I23: m³/Jahr | J23: t/Jahr | N23: m³/Jahr | P23: Anzahl | Q23: Anzahl | S23: Rind | AF23: Anzahl ohne Weide | AL23: N | AM23: P205 | AN23: K2O | AO23: Tierart | AP23: Tiergruppe | AQ23: Stroh | AT23: Gesamt | AU23: N | AV23: P205 | AW23: K2O | AX23: Anfall | AY23: Anfall | AZ23: gering | BA23: mittel | BB23: hoch | BC23: Gülle | BD23: Mist,Jauche | BE23: Mist | BF23: ger. | BG23: mittel | BH23: hoch | BI23: N | BJ23: P205 | BK23: K2O | BL23: bis 2020 | BM23: ab 2020 | BN23: bis 2020 | BO23: ab 2020 | BP23: gesamt | BQ23: gesamt
I25: =IF(BS25=FALSE," ",IF(P25+Q25=0," ",IF(AF25*AX25+AG25*AJ25=0," ",AF25*AX25+AG25*AJ25))) ->  | J25: =IF(BS25=FALSE," ",IF(Q25=0," ",IF(AG25*AK25=0," ",IF(AO25=4,AG25*AK25-(D25*(1-H25/100)*AK25)*0.3,AG25*AK25)))) ->  | N25: =IF(J25=" "," ",(J25*(1/BE25))) ->  | P25: =IF(AX25=0,0,D25) -> 0 | Q25: =IF(AX25=0,D25+E25,E25) -> 0 | R25: =+(AF25*AU25*(100-BC25)/100)+(AJ25*AL25*AG25*(100-BD25)/100) -> 0 | S25: =IF(AO25=2,R25,0) -> 0 | T25: =AF25*AV25+AG25*AJ25*AM25 -> 0 | U25: =AF25*AW25+AG25*AJ25*AN25 -> 0 | V25: =INDEX(Tiere2!K$30:K$79,'Betriebe mit Separation'!$AP25) -> 0 | W25: =INDEX(Tiere2!S$30:S$79,'Betriebe mit Separation'!AP25) -> 0 | X25: =+(AG25*AU25*(100-BD25)/100)-AJ25*AG25*AL25 -> 0 | Y25: =AG25*AV25-AG25*AJ25*AM25 -> 0 | Z25: =AG25*AW25-AG25*AJ25*AN25 -> 0 | AA25: =INDEX(Tiere2!P$30:P$79,'Betriebe mit Separation'!$AP25) -> 0 | AB25: =IF(AQ25=1,AG25*BF25*AS25*365/1000*BI25,IF(AQ25=2,AG25*BG25*AS25*365/1000*BI25,AG25*BH25*AS25*365/1000*BI25)) -> 0 | AC25: =IF(AQ25=1,AG25*BF25*AS25*365/1000*BJ25,IF(AQ25=2,AG25*BG25*AS25*365/1000*BJ25,AG25*BH25*AS25*365/1000*BJ25)) -> 0 | AD25: =IF(AQ25=1,AG25*BF25*AS25*365/1000*BK25,IF(AQ25=2,AG25*BG25*AS25*365/1000*BK25,AG25*BH25*AS25*365/1000*BK25)) -> 0 | AF25: =+P25*(100-$H25)/100 -> 0 | AG25: =+Q25*(100-$H25)/100 -> 0 | AH25: =+P25-(P25*((G25+H25)/2))/100 -> 0 | AI25: =+Q25+P25-AH25 -> 0 | AJ25: =IF(AQ25=1,AY25,IF(AQ25=2,AY25/2,0)) -> 0 | AK25: =IF(AQ25=1,AZ25,IF(AQ25=2,BA25,BB25)) -> 0 | AL25: =IF(AO25=2,3.2,IF(AO25=3,3.3,0)) -> 0 | AM25: =IF(AO25=2,0,IF(AO25=3,0,0)) -> 0 | AN25: =IF(AO25=2,7.9,IF(AO25=3,3.1,0)) -> 0 | AO25: =IF(AP25<2,1,IF(AP25<11,2,IF(AP25<26,3,IF(AP25<40,4,5)))) -> 1 | AP25: 1 | AQ25: 1 | AR25: =INDEX(Tiere2!C$30:C$79,'Betriebe mit Separation'!$AP25) -> 0 | AS25: =IF(AR25>0.001,AR25,"1") -> 1 | AT25: =P25*AR25+Q25*AR25 -> 0 | AU25: =INDEX(Tiere2!D$30:D$79,'Betriebe mit Separation'!$AP25) -> 0 | AV25: =INDEX(Tiere2!E$30:E$79,'Betriebe mit Separation'!$AP25) -> 0 | AW25: =INDEX(Tiere2!F$30:F$79,'Betriebe mit Separation'!$AP25) -> 0 | AX25: =INDEX(Tiere2!J$30:J$79,'Betriebe mit Separation'!$AP25) -> 0 | AY25: =INDEX(Tiere2!R$30:R$79,'Betriebe mit Separation'!$AP25) -> 0 | AZ25: =INDEX(Tiere2!M$30:M$79,'Betriebe mit Separation'!$AP25) -> 0 | BA25: =INDEX(Tiere2!N$30:N$79,'Betriebe mit Separation'!$AP25) -> 0 | BB25: =INDEX(Tiere2!O$30:O$79,'Betriebe mit Separation'!$AP25) -> 0 | BC25: =INDEX(Tiere2!T$30:T$79,'Betriebe mit Separation'!$AP25) -> 0 | BD25: =INDEX(Tiere2!U$30:U$79,'Betriebe mit Separation'!$AP25) -> 0 | BE25: =INDEX(Tiere2!V$30:V$79,'Betriebe mit Separation'!$AP25) -> 0 | BF25: =INDEX(Tiere2!W$30:W$79,'Betriebe mit Separation'!$AP25) -> 0 | BG25: =INDEX(Tiere2!X$30:X$79,'Betriebe mit Separation'!$AP25) -> 0 | BH25: =INDEX(Tiere2!Y$30:Y$79,'Betriebe mit Separation'!$AP25) -> 0 | BI25: 5 | BJ25: 3 | BK25: 17 | BL25: =INDEX(Tiere2!Z$30:Z$79,'Betriebe mit Separation'!$AP25) -> 0 | BM25: =INDEX(Tiere2!AA$30:AA$79,'Betriebe mit Separation'!$AP25) -> 0 | BN25: =IF(N25=" ",0,BL25*N25) -> 0 | BO25: =IF(N25=" ",0,BM25*N25) -> 0 | BP25: =AF25*AX25 -> 0 | BQ25: =AG25*AJ25 -> 0 | BS25: =AND(AP25>1) -> FALSE
I26: =IF(BS26=FALSE," ",IF(P26+Q26=0," ",IF(AF26*AX26+AG26*AJ26=0," ",AF26*AX26+AG26*AJ26))) ->  | J26: =IF(BS26=FALSE," ",IF(Q26=0," ",IF(AG26*AK26=0," ",IF(AO26=4,AG26*AK26-(D26*(1-H26/100)*AK26)*0.3,AG26*AK26)))) ->  | N26: =IF(J26=" "," ",(J26*(1/BE26))) ->  | P26: =IF(AX26=0,0,D26) -> 0 | Q26: =IF(AX26=0,D26+E26,E26) -> 0 | R26: =+(AF26*AU26*(100-BC26)/100)+(AJ26*AL26*AG26*(100-BD26)/100) -> 0 | S26: =IF(AO26=2,R26,0) -> 0 | T26: =AF26*AV26+AG26*AJ26*AM26 -> 0 | U26: =AF26*AW26+AG26*AJ26*AN26 -> 0 | V26: =INDEX(Tiere2!K$30:K$79,'Betriebe mit Separation'!$AP26) -> 0 | W26: =INDEX(Tiere2!S$30:S$79,'Betriebe mit Separation'!AP26) -> 0 | X26: =+(AG26*AU26*(100-BD26)/100)-AJ26*AG26*AL26*(100-BD26)/100 -> 0 | Y26: =AG26*AV26-AG26*AJ26*AM26 -> 0 | Z26: =AG26*AW26-AG26*AJ26*AN26 -> 0 | AA26: =INDEX(Tiere2!P$30:P$79,'Betriebe mit Separation'!$AP26) -> 0 | AB26: =IF(AQ26=1,AG26*BF26*AS26*365/1000*BI26,IF(AQ26=2,AG26*BG26*AS26*365/1000*BI26,AG26*BH26*AS26*365/1000*BI26)) -> 0 | AC26: =IF(AQ26=1,AG26*BF26*AS26*365/1000*BJ26,IF(AQ26=2,AG26*BG26*AS26*365/1000*BJ26,AG26*BH26*AS26*365/1000*BJ26)) -> 0 | AD26: =IF(AQ26=1,AG26*BF26*AS26*365/1000*BK26,IF(AQ26=2,AG26*BG26*AS26*365/1000*BK26,AG26*BH26*AS26*365/1000*BK26)) -> 0 | AF26: =+P26*(100-$H26)/100 -> 0 | AG26: =+Q26*(100-$H26)/100 -> 0 | AH26: 0 | AI26: 0 | AJ26: =IF(AQ26=1,AY26,IF(AQ26=2,AY26/2,0)) -> 0 | AK26: =IF(AQ26=1,AZ26,IF(AQ26=2,BA26,BB26)) -> 0 | AL26: =IF(AO26=2,3.2,IF(AO26=3,3.3,0)) -> 0 | AM26: =IF(AO26=2,0,IF(AO26=3,0,0)) -> 0 | AN26: =IF(AO26=2,7.9,IF(AO26=3,3.1,0)) -> 0 | AO26: =IF(AP26<2,1,IF(AP26<11,2,IF(AP26<26,3,IF(AP26<40,4,5)))) -> 1 | AP26: 1 | AQ26: 1 | AR26: =INDEX(Tiere2!C$30:C$79,'Betriebe mit Separation'!$AP26) -> 0 | AS26: =IF(AR26>0.001,AR26,"1") -> 1 | AT26: =D26*AR26+E26*AR26 -> 0 | AU26: =INDEX(Tiere2!D$30:D$79,'Betriebe mit Separation'!$AP26) -> 0 | AV26: =INDEX(Tiere2!E$30:E$79,'Betriebe mit Separation'!$AP26) -> 0 | AW26: =INDEX(Tiere2!F$30:F$79,'Betriebe mit Separation'!$AP26) -> 0 | AX26: =INDEX(Tiere2!J$30:J$79,'Betriebe mit Separation'!$AP26) -> 0 | AY26: =INDEX(Tiere2!R$30:R$79,'Betriebe mit Separation'!$AP26) -> 0 | AZ26: =INDEX(Tiere2!M$30:M$79,'Betriebe mit Separation'!$AP26) -> 0 | BA26: =INDEX(Tiere2!N$30:N$79,'Betriebe mit Separation'!$AP26) -> 0 | BB26: =INDEX(Tiere2!O$30:O$79,'Betriebe mit Separation'!$AP26) -> 0 | BC26: =INDEX(Tiere2!T$30:T$79,'Betriebe mit Separation'!$AP26) -> 0 | BD26: =INDEX(Tiere2!U$30:U$79,'Betriebe mit Separation'!$AP26) -> 0 | BE26: =INDEX(Tiere2!V$30:V$79,'Betriebe mit Separation'!$AP26) -> 0 | BF26: =INDEX(Tiere2!W$30:W$79,'Betriebe mit Separation'!$AP26) -> 0 | BG26: =INDEX(Tiere2!X$30:X$79,'Betriebe mit Separation'!$AP26) -> 0 | BH26: =INDEX(Tiere2!Y$30:Y$79,'Betriebe mit Separation'!$AP26) -> 0 | BI26: 5 | BJ26: 3 | BK26: 17 | BL26: =INDEX(Tiere2!Z$30:Z$79,'Betriebe mit Separation'!$AP26) -> 0 | BM26: =INDEX(Tiere2!AA$30:AA$79,'Betriebe mit Separation'!$AP26) -> 0 | BN26: =IF(N26=" ",0,BL26*N26) -> 0 | BO26: 0 | BP26: =AF26*AX26 -> 0 | BQ26: =AG26*AJ26 -> 0 | BS26: =AND(AP26>1) -> FALSE
P27: 0 | Q27: =IF(AX27=0,D27+E27,E27) -> 0 | R27: 0 | S27: 0 | T27: 0 | U27: 0 | V27: =INDEX(Tiere2!K$30:K$79,'Betriebe mit Separation'!$AP27) -> 0 | W27: =INDEX(Tiere2!S$30:S$79,'Betriebe mit Separation'!AP27) -> 0 | X27: 0 | Y27: 0 | Z27: 0 | AA27: =INDEX(Tiere2!P$30:P$79,'Betriebe mit Separation'!$AP27) -> 0 | AB27: 0 | AC27: 0 | AD27: 0 | AF27: 0 | AG27: 0 | AH27: 0 | AI27: 0 | AJ27: 0 | AK27: 0 | AL27: =IF(AO27=2,3.2,IF(AO27=3,3.3,0)) -> 0 | AM27: 0 | AN27: 0 | AO27: 1 | AP27: 1 | AQ27: 1 | AR27: =INDEX(Tiere2!C$30:C$79,'Betriebe mit Separation'!$AP27) -> 0 | AS27: 1 | AT27: 0 | AU27: =INDEX(Tiere2!D$30:D$79,'Betriebe mit Separation'!$AP27) -> 0 | AV27: =INDEX(Tiere2!E$30:E$79,'Betriebe mit Separation'!$AP27) -> 0 | AW27: =INDEX(Tiere2!F$30:F$79,'Betriebe mit Separation'!$AP27) -> 0 | AX27: =INDEX(Tiere2!J$30:J$79,'Betriebe mit Separation'!$AP27) -> 0 | AY27: =INDEX(Tiere2!R$30:R$79,'Betriebe mit Separation'!$AP27) -> 0 | AZ27: =INDEX(Tiere2!M$30:M$79,'Betriebe mit Separation'!$AP27) -> 0 | BA27: =INDEX(Tiere2!N$30:N$79,'Betriebe mit Separation'!$AP27) -> 0 | BB27: =INDEX(Tiere2!O$30:O$79,'Betriebe mit Separation'!$AP27) -> 0 | BC27: =INDEX(Tiere2!T$30:T$79,'Betriebe mit Separation'!$AP27) -> 0 | BD27: =INDEX(Tiere2!U$30:U$79,'Betriebe mit Separation'!$AP27) -> 0 | BE27: =INDEX(Tiere2!V$30:V$79,'Betriebe mit Separation'!$AP27) -> 0 | BF27: =INDEX(Tiere2!W$30:W$79,'Betriebe mit Separation'!$AP27) -> 0 | BG27: =INDEX(Tiere2!X$30:X$79,'Betriebe mit Separation'!$AP27) -> 0 | BH27: =INDEX(Tiere2!Y$30:Y$79,'Betriebe mit Separation'!$AP27) -> 0 | BI27: 5 | BJ27: 3 | BK27: 17 | BL27: =INDEX(Tiere2!Z$30:Z$79,'Betriebe mit Separation'!$AP27) -> 0 | BM27: =INDEX(Tiere2!AA$30:AA$79,'Betriebe mit Separation'!$AP27) -> 0 | BN27: 0 | BO27: 0 | BP27: 0 | BQ27: 0 | BS27: FALSE
P28: 0 | Q28: 0 | R28: 0 | S28: 0 | T28: 0 | U28: 0 | V28: =INDEX(Tiere2!K$30:K$79,'Betriebe mit Separation'!$AP28) -> 0 | W28: =INDEX(Tiere2!S$30:S$79,'Betriebe mit Separation'!AP28) -> 0 | X28: 0 | Y28: 0 | Z28: 0 | AA28: =INDEX(Tiere2!P$30:P$79,'Betriebe mit Separation'!$AP28) -> 0 | AB28: 0 | AC28: 0 | AD28: 0 | AF28: 0 | AG28: 0 | AH28: 0 | AI28: 0 | AJ28: 0 | AK28: 0 | AL28: 0 | AM28: 0 | AN28: 0 | AO28: 1 | AP28: 1 | AQ28: 1 | AR28: =INDEX(Tiere2!C$30:C$79,'Betriebe mit Separation'!$AP28) -> 0 | AS28: 1 | AT28: 0 | AU28: =INDEX(Tiere2!D$30:D$79,'Betriebe mit Separation'!$AP28) -> 0 | AV28: =INDEX(Tiere2!E$30:E$79,'Betriebe mit Separation'!$AP28) -> 0 | AW28: =INDEX(Tiere2!F$30:F$79,'Betriebe mit Separation'!$AP28) -> 0 | AX28: =INDEX(Tiere2!J$30:J$79,'Betriebe mit Separation'!$AP28) -> 0 | AY28: =INDEX(Tiere2!R$30:R$79,'Betriebe mit Separation'!$AP28) -> 0 | AZ28: =INDEX(Tiere2!M$30:M$79,'Betriebe mit Separation'!$AP28) -> 0 | BA28: =INDEX(Tiere2!N$30:N$79,'Betriebe mit Separation'!$AP28) -> 0 | BB28: =INDEX(Tiere2!O$30:O$79,'Betriebe mit Separation'!$AP28) -> 0 | BC28: =INDEX(Tiere2!T$30:T$79,'Betriebe mit Separation'!$AP28) -> 0 | BD28: =INDEX(Tiere2!U$30:U$79,'Betriebe mit Separation'!$AP28) -> 0 | BE28: =INDEX(Tiere2!V$30:V$79,'Betriebe mit Separation'!$AP28) -> 0 | BF28: =INDEX(Tiere2!W$30:W$79,'Betriebe mit Separation'!$AP28) -> 0 | BG28: =INDEX(Tiere2!X$30:X$79,'Betriebe mit Separation'!$AP28) -> 0 | BH28: =INDEX(Tiere2!Y$30:Y$79,'Betriebe mit Separation'!$AP28) -> 0 | BI28: 5 | BJ28: 3 | BK28: 17 | BL28: =INDEX(Tiere2!Z$30:Z$79,'Betriebe mit Separation'!$AP28) -> 0 | BM28: =INDEX(Tiere2!AA$30:AA$79,'Betriebe mit Separation'!$AP28) -> 0 | BN28: 0 | BO28: 0 | BP28: 0 | BQ28: 0 | BS28: FALSE
P29: =IF(AX29=0,0,D29) -> 0 | Q29: 0 | R29: 0 | S29: 0 | T29: 0 | U29: 0 | V29: =INDEX(Tiere2!K$30:K$79,'Betriebe mit Separation'!$AP29) -> 0 | W29: =INDEX(Tiere2!S$30:S$79,'Betriebe mit Separation'!AP29) -> 0 | X29: 0 | Y29: 0 | Z29: 0 | AA29: =INDEX(Tiere2!P$30:P$79,'Betriebe mit Separation'!$AP29) -> 0 | AB29: 0 | AC29: 0 | AD29: 0 | AF29: 0 | AG29: 0 | AH29: 0 | AI29: 0 | AJ29: 0 | AK29: 0 | AL29: 0 | AM29: 0 | AN29: 0 | AO29: 1 | AP29: 1 | AQ29: 1 | AR29: =INDEX(Tiere2!C$30:C$79,'Betriebe mit Separation'!$AP29) -> 0 | AS29: 1 | AT29: 0 | AU29: =INDEX(Tiere2!D$30:D$79,'Betriebe mit Separation'!$AP29) -> 0 | AV29: =INDEX(Tiere2!E$30:E$79,'Betriebe mit Separation'!$AP29) -> 0 | AW29: =INDEX(Tiere2!F$30:F$79,'Betriebe mit Separation'!$AP29) -> 0 | AX29: =INDEX(Tiere2!J$30:J$79,'Betriebe mit Separation'!$AP29) -> 0 | AY29: =INDEX(Tiere2!R$30:R$79,'Betriebe mit Separation'!$AP29) -> 0 | AZ29: =INDEX(Tiere2!M$30:M$79,'Betriebe mit Separation'!$AP29) -> 0 | BA29: =INDEX(Tiere2!N$30:N$79,'Betriebe mit Separation'!$AP29) -> 0 | BB29: =INDEX(Tiere2!O$30:O$79,'Betriebe mit Separation'!$AP29) -> 0 | BC29: =INDEX(Tiere2!T$30:T$79,'Betriebe mit Separation'!$AP29) -> 0 | BD29: =INDEX(Tiere2!U$30:U$79,'Betriebe mit Separation'!$AP29) -> 0 | BE29: =INDEX(Tiere2!V$30:V$79,'Betriebe mit Separation'!$AP29) -> 0 | BF29: =INDEX(Tiere2!W$30:W$79,'Betriebe mit Separation'!$AP29) -> 0 | BG29: =INDEX(Tiere2!X$30:X$79,'Betriebe mit Separation'!$AP29) -> 0 | BH29: =INDEX(Tiere2!Y$30:Y$79,'Betriebe mit Separation'!$AP29) -> 0 | BI29: 5 | BJ29: 3 | BK29: 17 | BL29: =INDEX(Tiere2!Z$30:Z$79,'Betriebe mit Separation'!$AP29) -> 0 | BM29: =INDEX(Tiere2!AA$30:AA$79,'Betriebe mit Separation'!$AP29) -> 0 | BN29: 0 | BO29: 0 | BP29: 0 | BQ29: 0 | BS29: FALSE
P30: 0 | Q30: 0 | R30: 0 | S30: 0 | T30: 0 | U30: 0 | V30: =INDEX(Tiere2!K$30:K$79,'Betriebe mit Separation'!$AP30) -> 0 | W30: =INDEX(Tiere2!S$30:S$79,'Betriebe mit Separation'!AP30) -> 0 | X30: 0 | Y30: 0 | Z30: 0 | AA30: =INDEX(Tiere2!P$30:P$79,'Betriebe mit Separation'!$AP30) -> 0 | AB30: 0 | AC30: 0 | AD30: 0 | AF30: 0 | AG30: 0 | AH30: 0 | AI30: 0 | AJ30: 0 | AK30: 0 | AL30: 0 | AM30: 0 | AN30: 0 | AO30: 1 | AP30: 1 | AQ30: 1 | AR30: =INDEX(Tiere2!C$30:C$79,'Betriebe mit Separation'!$AP30) -> 0 | AS30: 1 | AT30: 0 | AU30: =INDEX(Tiere2!D$30:D$79,'Betriebe mit Separation'!$AP30) -> 0 | AV30: =INDEX(Tiere2!E$30:E$79,'Betriebe mit Separation'!$AP30) -> 0 | AW30: =INDEX(Tiere2!F$30:F$79,'Betriebe mit Separation'!$AP30) -> 0 | AX30: =INDEX(Tiere2!J$30:J$79,'Betriebe mit Separation'!$AP30) -> 0 | AY30: =INDEX(Tiere2!R$30:R$79,'Betriebe mit Separation'!$AP30) -> 0 | AZ30: =INDEX(Tiere2!M$30:M$79,'Betriebe mit Separation'!$AP30) -> 0 | BA30: =INDEX(Tiere2!N$30:N$79,'Betriebe mit Separation'!$AP30) -> 0 | BB30: =INDEX(Tiere2!O$30:O$79,'Betriebe mit Separation'!$AP30) -> 0 | BC30: =INDEX(Tiere2!T$30:T$79,'Betriebe mit Separation'!$AP30) -> 0 | BD30: =INDEX(Tiere2!U$30:U$79,'Betriebe mit Separation'!$AP30) -> 0 | BE30: =INDEX(Tiere2!V$30:V$79,'Betriebe mit Separation'!$AP30) -> 0 | BF30: =INDEX(Tiere2!W$30:W$79,'Betriebe mit Separation'!$AP30) -> 0 | BG30: =INDEX(Tiere2!X$30:X$79,'Betriebe mit Separation'!$AP30) -> 0 | BH30: =INDEX(Tiere2!Y$30:Y$79,'Betriebe mit Separation'!$AP30) -> 0 | BI30: 5 | BJ30: 3 | BK30: 17 | BL30: =INDEX(Tiere2!Z$30:Z$79,'Betriebe mit Separation'!$AP30) -> 0 | BM30: =INDEX(Tiere2!AA$30:AA$79,'Betriebe mit Separation'!$AP30) -> 0 | BN30: 0 | BO30: 0 | BP30: 0 | BQ30: 0 | BS30: FALSE
P31: 0 | Q31: 0 | R31: 0 | S31: 0 | T31: 0 | U31: 0 | V31: =INDEX(Tiere2!K$30:K$79,'Betriebe mit Separation'!$AP31) -> 0 | W31: =INDEX(Tiere2!S$30:S$79,'Betriebe mit Separation'!AP31) -> 0 | X31: 0 | Y31: 0 | Z31: 0 | AA31: =INDEX(Tiere2!P$30:P$79,'Betriebe mit Separation'!$AP31) -> 0 | AB31: 0 | AC31: 0 | AD31: 0 | AF31: 0 | AG31: 0 | AH31: 0 | AI31: 0 | AJ31: 0 | AK31: 0 | AL31: 0 | AM31: 0 | AN31: 0 | AO31: 1 | AP31: 1 | AQ31: 1 | AR31: =INDEX(Tiere2!C$30:C$79,'Betriebe mit Separation'!$AP31) -> 0 | AS31: 1 | AT31: 0 | AU31: =INDEX(Tiere2!D$30:D$79,'Betriebe mit Separation'!$AP31) -> 0 | AV31: =INDEX(Tiere2!E$30:E$79,'Betriebe mit Separation'!$AP31) -> 0 | AW31: =INDEX(Tiere2!F$30:F$79,'Betriebe mit Separation'!$AP31) -> 0 | AX31: =INDEX(Tiere2!J$30:J$79,'Betriebe mit Separation'!$AP31) -> 0 | AY31: =INDEX(Tiere2!R$30:R$79,'Betriebe mit Separation'!$AP31) -> 0 | AZ31: =INDEX(Tiere2!M$30:M$79,'Betriebe mit Separation'!$AP31) -> 0 | BA31: =INDEX(Tiere2!N$30:N$79,'Betriebe mit Separation'!$AP31) -> 0 | BB31: =INDEX(Tiere2!O$30:O$79,'Betriebe mit Separation'!$AP31) -> 0 | BC31: =INDEX(Tiere2!T$30:T$79,'Betriebe mit Separation'!$AP31) -> 0 | BD31: =INDEX(Tiere2!U$30:U$79,'Betriebe mit Separation'!$AP31) -> 0 | BE31: =INDEX(Tiere2!V$30:V$79,'Betriebe mit Separation'!$AP31) -> 0 | BF31: =INDEX(Tiere2!W$30:W$79,'Betriebe mit Separation'!$AP31) -> 0 | BG31: =INDEX(Tiere2!X$30:X$79,'Betriebe mit Separation'!$AP31) -> 0 | BH31: =INDEX(Tiere2!Y$30:Y$79,'Betriebe mit Separation'!$AP31) -> 0 | BI31: 5 | BJ31: 3 | BK31: 17 | BL31: =INDEX(Tiere2!Z$30:Z$79,'Betriebe mit Separation'!$AP31) -> 0 | BM31: =INDEX(Tiere2!AA$30:AA$79,'Betriebe mit Separation'!$AP31) -> 0 | BN31: 0 | BO31: 0 | BP31: 0 | BQ31: 0 | BS31: FALSE
P32: 0 | Q32: 0 | R32: 0 | S32: 0 | T32: 0 | U32: 0 | V32: =INDEX(Tiere2!K$30:K$79,'Betriebe mit Separation'!$AP32) -> 0 | W32: =INDEX(Tiere2!S$30:S$79,'Betriebe mit Separation'!AP32) -> 0 | X32: 0 | Y32: 0 | Z32: 0 | AA32: =INDEX(Tiere2!P$30:P$79,'Betriebe mit Separation'!$AP32) -> 0 | AB32: 0 | AC32: 0 | AD32: 0 | AF32: 0 | AG32: 0 | AH32: 0 | AI32: 0 | AJ32: 0 | AK32: 0 | AL32: 0 | AM32: 0 | AN32: 0 | AO32: 1 | AP32: 1 | AQ32: 1 | AR32: =INDEX(Tiere2!C$30:C$79,'Betriebe mit Separation'!$AP32) -> 0 | AS32: 1 | AT32: 0 | AU32: =INDEX(Tiere2!D$30:D$79,'Betriebe mit Separation'!$AP32) -> 0 | AV32: =INDEX(Tiere2!E$30:E$79,'Betriebe mit Separation'!$AP32) -> 0 | AW32: =INDEX(Tiere2!F$30:F$79,'Betriebe mit Separation'!$AP32) -> 0 | AX32: =INDEX(Tiere2!J$30:J$79,'Betriebe mit Separation'!$AP32) -> 0 | AY32: =INDEX(Tiere2!R$30:R$79,'Betriebe mit Separation'!$AP32) -> 0 | AZ32: =INDEX(Tiere2!M$30:M$79,'Betriebe mit Separation'!$AP32) -> 0 | BA32: =INDEX(Tiere2!N$30:N$79,'Betriebe mit Separation'!$AP32) -> 0 | BB32: =INDEX(Tiere2!O$30:O$79,'Betriebe mit Separation'!$AP32) -> 0 | BC32: =INDEX(Tiere2!T$30:T$79,'Betriebe mit Separation'!$AP32) -> 0 | BD32: =INDEX(Tiere2!U$30:U$79,'Betriebe mit Separation'!$AP32) -> 0 | BE32: =INDEX(Tiere2!V$30:V$79,'Betriebe mit Separation'!$AP32) -> 0 | BF32: =INDEX(Tiere2!W$30:W$79,'Betriebe mit Separation'!$AP32) -> 0 | BG32: =INDEX(Tiere2!X$30:X$79,'Betriebe mit Separation'!$AP32) -> 0 | BH32: =INDEX(Tiere2!Y$30:Y$79,'Betriebe mit Separation'!$AP32) -> 0 | BI32: 5 | BJ32: 3 | BK32: 17 | BL32: =INDEX(Tiere2!Z$30:Z$79,'Betriebe mit Separation'!$AP32) -> 0 | BM32: =INDEX(Tiere2!AA$30:AA$79,'Betriebe mit Separation'!$AP32) -> 0 | BN32: 0 | BO32: 0 | BP32: 0 | BQ32: 0 | BS32: FALSE
P33: 0 | Q33: 0 | R33: 0 | S33: 0 | T33: 0 | U33: 0 | V33: =INDEX(Tiere2!K$30:K$79,'Betriebe mit Separation'!$AP33) -> 0 | W33: =INDEX(Tiere2!S$30:S$79,'Betriebe mit Separation'!AP33) -> 0 | X33: 0 | Y33: 0 | Z33: 0 | AA33: =INDEX(Tiere2!P$30:P$79,'Betriebe mit Separation'!$AP33) -> 0 | AB33: 0 | AC33: 0 | AD33: 0 | AF33: 0 | AG33: 0 | AH33: 0 | AI33: 0 | AJ33: 0 | AK33: 0 | AL33: 0 | AM33: 0 | AN33: 0 | AO33: 1 | AP33: 1 | AQ33: 1 | AR33: =INDEX(Tiere2!C$30:C$79,'Betriebe mit Separation'!$AP33) -> 0 | AS33: 1 | AT33: 0 | AU33: =INDEX(Tiere2!D$30:D$79,'Betriebe mit Separation'!$AP33) -> 0 | AV33: =INDEX(Tiere2!E$30:E$79,'Betriebe mit Separation'!$AP33) -> 0 | AW33: =INDEX(Tiere2!F$30:F$79,'Betriebe mit Separation'!$AP33) -> 0 | AX33: =INDEX(Tiere2!J$30:J$79,'Betriebe mit Separation'!$AP33) -> 0 | AY33: =INDEX(Tiere2!R$30:R$79,'Betriebe mit Separation'!$AP33) -> 0 | AZ33: =INDEX(Tiere2!M$30:M$79,'Betriebe mit Separation'!$AP33) -> 0 | BA33: =INDEX(Tiere2!N$30:N$79,'Betriebe mit Separation'!$AP33) -> 0 | BB33: =INDEX(Tiere2!O$30:O$79,'Betriebe mit Separation'!$AP33) -> 0 | BC33: =INDEX(Tiere2!T$30:T$79,'Betriebe mit Separation'!$AP33) -> 0 | BD33: =INDEX(Tiere2!U$30:U$79,'Betriebe mit Separation'!$AP33) -> 0 | BE33: =INDEX(Tiere2!V$30:V$79,'Betriebe mit Separation'!$AP33) -> 0 | BF33: =INDEX(Tiere2!W$30:W$79,'Betriebe mit Separation'!$AP33) -> 0 | BG33: =INDEX(Tiere2!X$30:X$79,'Betriebe mit Separation'!$AP33) -> 0 | BH33: =INDEX(Tiere2!Y$30:Y$79,'Betriebe mit Separation'!$AP33) -> 0 | BI33: 5 | BJ33: 3 | BK33: 17 | BL33: =INDEX(Tiere2!Z$30:Z$79,'Betriebe mit Separation'!$AP33) -> 0 | BM33: =INDEX(Tiere2!AA$30:AA$79,'Betriebe mit Separation'!$AP33) -> 0 | BN33: 0 | BO33: 0 | BP33: 0 | BQ33: 0 | BS33: FALSE
P34: 0 | Q34: 0 | R34: 0 | S34: 0 | T34: 0 | U34: 0 | V34: =INDEX(Tiere2!K$30:K$79,'Betriebe mit Separation'!$AP34) -> 0 | W34: =INDEX(Tiere2!S$30:S$79,'Betriebe mit Separation'!AP34) -> 0 | X34: 0 | Y34: 0 | Z34: 0 | AA34: =INDEX(Tiere2!P$30:P$79,'Betriebe mit Separation'!$AP34) -> 0 | AB34: 0 | AC34: 0 | AD34: 0 | AF34: 0 | AG34: 0 | AH34: 0 | AI34: 0 | AJ34: 0 | AK34: 0 | AL34: 0 | AM34: 0 | AN34: 0 | AO34: 1 | AP34: 1 | AQ34: 1 | AR34: =INDEX(Tiere2!C$30:C$79,'Betriebe mit Separation'!$AP34) -> 0 | AS34: 1 | AT34: 0 | AU34: =INDEX(Tiere2!D$30:D$79,'Betriebe mit Separation'!$AP34) -> 0 | AV34: =INDEX(Tiere2!E$30:E$79,'Betriebe mit Separation'!$AP34) -> 0 | AW34: =INDEX(Tiere2!F$30:F$79,'Betriebe mit Separation'!$AP34) -> 0 | AX34: =INDEX(Tiere2!J$30:J$79,'Betriebe mit Separation'!$AP34) -> 0 | AY34: =INDEX(Tiere2!R$30:R$79,'Betriebe mit Separation'!$AP34) -> 0 | AZ34: =INDEX(Tiere2!M$30:M$79,'Betriebe mit Separation'!$AP34) -> 0 | BA34: =INDEX(Tiere2!N$30:N$79,'Betriebe mit Separation'!$AP34) -> 0 | BB34: =INDEX(Tiere2!O$30:O$79,'Betriebe mit Separation'!$AP34) -> 0 | BC34: =INDEX(Tiere2!T$30:T$79,'Betriebe mit Separation'!$AP34) -> 0 | BD34: =INDEX(Tiere2!U$30:U$79,'Betriebe mit Separation'!$AP34) -> 0 | BE34: =INDEX(Tiere2!V$30:V$79,'Betriebe mit Separation'!$AP34) -> 0 | BF34: =INDEX(Tiere2!W$30:W$79,'Betriebe mit Separation'!$AP34) -> 0 | BG34: =INDEX(Tiere2!X$30:X$79,'Betriebe mit Separation'!$AP34) -> 0 | BH34: =INDEX(Tiere2!Y$30:Y$79,'Betriebe mit Separation'!$AP34) -> 0 | BI34: 5 | BJ34: 3 | BK34: 17 | BL34: =INDEX(Tiere2!Z$30:Z$79,'Betriebe mit Separation'!$AP34) -> 0 | BM34: =INDEX(Tiere2!AA$30:AA$79,'Betriebe mit Separation'!$AP34) -> 0 | BN34: 0 | BO34: 0 | BP34: 0 | BQ34: 0 | BS34: FALSE
I35: =IF(BS35=FALSE," ",IF(P35+Q35=0," ",IF(AF35*AX35+AG35*AJ35=0," ",AF35*AX35+AG35*AJ35))) ->  | P35: 0 | Q35: 0 | R35: 0 | S35: 0 | T35: 0 | U35: 0 | V35: =INDEX(Tiere2!K$30:K$79,'Betriebe mit Separation'!$AP35) -> 0 | W35: =INDEX(Tiere2!S$30:S$79,'Betriebe mit Separation'!AP35) -> 0 | X35: 0 | Y35: 0 | Z35: 0 | AA35: =INDEX(Tiere2!P$30:P$79,'Betriebe mit Separation'!$AP35) -> 0 | AB35: 0 | AC35: 0 | AD35: 0 | AF35: 0 | AG35: 0 | AH35: 0 | AI35: 0 | AJ35: 0 | AK35: 0 | AL35: 0 | AM35: =IF(AO35=2,0,IF(AO35=3,0,0)) -> 0 | AN35: 0 | AO35: 1 | AP35: 1 | AQ35: 1 | AR35: =INDEX(Tiere2!C$30:C$79,'Betriebe mit Separation'!$AP35) -> 0 | AS35: 1 | AT35: 0 | AU35: =INDEX(Tiere2!D$30:D$79,'Betriebe mit Separation'!$AP35) -> 0 | AV35: =INDEX(Tiere2!E$30:E$79,'Betriebe mit Separation'!$AP35) -> 0 | AW35: =INDEX(Tiere2!F$30:F$79,'Betriebe mit Separation'!$AP35) -> 0 | AX35: =INDEX(Tiere2!J$30:J$79,'Betriebe mit Separation'!$AP35) -> 0 | AY35: =INDEX(Tiere2!R$30:R$79,'Betriebe mit Separation'!$AP35) -> 0 | AZ35: =INDEX(Tiere2!M$30:M$79,'Betriebe mit Separation'!$AP35) -> 0 | BA35: =INDEX(Tiere2!N$30:N$79,'Betriebe mit Separation'!$AP35) -> 0 | BB35: =INDEX(Tiere2!O$30:O$79,'Betriebe mit Separation'!$AP35) -> 0 | BC35: =INDEX(Tiere2!T$30:T$79,'Betriebe mit Separation'!$AP35) -> 0 | BD35: =INDEX(Tiere2!U$30:U$79,'Betriebe mit Separation'!$AP35) -> 0 | BE35: =INDEX(Tiere2!V$30:V$79,'Betriebe mit Separation'!$AP35) -> 0 | BF35: =INDEX(Tiere2!W$30:W$79,'Betriebe mit Separation'!$AP35) -> 0 | BG35: =INDEX(Tiere2!X$30:X$79,'Betriebe mit Separation'!$AP35) -> 0 | BH35: =INDEX(Tiere2!Y$30:Y$79,'Betriebe mit Separation'!$AP35) -> 0 | BI35: 5 | BJ35: 3 | BK35: 17 | BL35: =INDEX(Tiere2!Z$30:Z$79,'Betriebe mit Separation'!$AP35) -> 0 | BM35: =INDEX(Tiere2!AA$30:AA$79,'Betriebe mit Separation'!$AP35) -> 0 | BN35: 0 | BO35: 0 | BP35: 0 | BQ35: 0 | BS35: FALSE
P36: 0 | Q36: =IF(AX36=0,D36+E36,E36) -> 0 | R36: 0 | S36: 0 | T36: 0 | U36: 0 | V36: =INDEX(Tiere2!K$30:K$79,'Betriebe mit Separation'!$AP36) -> 0 | W36: =INDEX(Tiere2!S$30:S$79,'Betriebe mit Separation'!AP36) -> 0 | X36: 0 | Y36: =AG36*AV36-AG36*AJ36*AM36 -> 0 | Z36: =AG36*AW36-AG36*AJ36*AN36 -> 0 | AA36: =INDEX(Tiere2!P$30:P$79,'Betriebe mit Separation'!$AP36) -> 0 | AB36: 0 | AC36: 0 | AD36: 0 | AF36: 0 | AG36: =+Q36*(100-$H36)/100 -> 0 | AH36: 0 | AI36: 0 | AJ36: 0 | AK36: 0 | AL36: 0 | AM36: 0 | AN36: 0 | AO36: 1 | AP36: 1 | AQ36: 1 | AR36: =INDEX(Tiere2!C$30:C$79,'Betriebe mit Separation'!$AP36) -> 0 | AS36: 1 | AT36: 0 | AU36: =INDEX(Tiere2!D$30:D$79,'Betriebe mit Separation'!$AP36) -> 0 | AV36: =INDEX(Tiere2!E$30:E$79,'Betriebe mit Separation'!$AP36) -> 0 | AW36: =INDEX(Tiere2!F$30:F$79,'Betriebe mit Separation'!$AP36) -> 0 | AX36: =INDEX(Tiere2!J$30:J$79,'Betriebe mit Separation'!$AP36) -> 0 | AY36: =INDEX(Tiere2!R$30:R$79,'Betriebe mit Separation'!$AP36) -> 0 | AZ36: =INDEX(Tiere2!M$30:M$79,'Betriebe mit Separation'!$AP36) -> 0 | BA36: =INDEX(Tiere2!N$30:N$79,'Betriebe mit Separation'!$AP36) -> 0 | BB36: =INDEX(Tiere2!O$30:O$79,'Betriebe mit Separation'!$AP36) -> 0 | BC36: =INDEX(Tiere2!T$30:T$79,'Betriebe mit Separation'!$AP36) -> 0 | BD36: =INDEX(Tiere2!U$30:U$79,'Betriebe mit Separation'!$AP36) -> 0 | BE36: =INDEX(Tiere2!V$30:V$79,'Betriebe mit Separation'!$AP36) -> 0 | BF36: =INDEX(Tiere2!W$30:W$79,'Betriebe mit Separation'!$AP36) -> 0 | BG36: =INDEX(Tiere2!X$30:X$79,'Betriebe mit Separation'!$AP36) -> 0 | BH36: =INDEX(Tiere2!Y$30:Y$79,'Betriebe mit Separation'!$AP36) -> 0 | BI36: 5 | BJ36: 3 | BK36: 17 | BL36: =INDEX(Tiere2!Z$30:Z$79,'Betriebe mit Separation'!$AP36) -> 0 | BM36: =INDEX(Tiere2!AA$30:AA$79,'Betriebe mit Separation'!$AP36) -> 0 | BN36: 0 | BO36: 0 | BP36: 0 | BQ36: 0 | BS36: FALSE
A37: =IF(M38+M39+M40>=1,"Bitte Tierart im Arbeitsblatt Eigene Zahlen auswählen","Eingabemöglichkeit für eigene Tierarten; siehe Arbeitsblatt Eigene Zahlen") -> Eingabemöglichkeit für eigene Tierarten; siehe Arbeitsblatt Eigene Zahlen
A38: =+'Abweichende Werte'!V7 -> -- - | I38: =IF(BS38=FALSE," ",IF(P38+Q38=0," ",IF(AF38*AX38+AG38*AJ38=0," ",AF38*AX38+AG38*AJ38))) ->  | M38: =IF(D38+E38>1,IF(AO38=1,1,0),0) -> 0 | N38: =IF(J38=" "," ",(J38*(1/BE38))) ->  | P38: =IF(AX38=0,0,D38) -> 0 | Q38: =IF(AX38=0,D38+E38,E38) -> 0 | R38: =+(AF38*AU38*(100-BC38)/100)+(AJ38*AL38*AG38*(100-BD38)/100) -> 0 | S38: =IF(AO38=2,R38,0) -> 0 | T38: =AF38*AV38+AG38*AJ38*AM38 -> 0 | U38: =AF38*AW38+AG38*AJ38*AN38 -> 0 | V38: ='Abweichende Werte'!L7 -> 0 | W38: ='Abweichende Werte'!M7 -> 0 | X38: =+(AG38*AU38*(100-BD38)/100)-AJ38*AG38*AL38*(100-BD38)/100 -> 0 | Y38: =AG38*AV38-AG38*AJ38*AM38 -> 0 | Z38: =AG38*AW38-AG38*AJ38*AN38 -> 0 | AA38: ='Abweichende Werte'!N7 -> 0 | AB38: =IF(AQ38=1,AG38*BF38*AS38*365/1000*BI38,IF(AQ38=2,AG38*BG38*AS38*365/1000*BI38,AG38*BH38*AS38*365/1000*BI38)) -> 0 | AC38: =IF(AQ38=1,AG38*BF38*AS38*365/1000*BJ38,IF(AQ38=2,AG38*BG38*AS38*365/1000*BJ38,AG38*BH38*AS38*365/1000*BJ38)) -> 0 | AD38: =IF(AQ38=1,AG38*BF38*AS38*365/1000*BK38,IF(AQ38=2,AG38*BG38*AS38*365/1000*BK38,AG38*BH38*AS38*365/1000*BK38)) -> 0 | AF38: =+P38*(100-$H38)/100 -> 0 | AG38: 0 | AH38: =+D38-(D38*((G38+H38)/2))/100 -> 0 | AI38: =+E38+D38-AH38 -> 0 | AJ38: =IF(AQ38=1,AY38,IF(AQ38=2,AY38/2,0)) -> 0 | AK38: =IF(AQ38=1,AZ38,IF(AQ38=2,BA38,BB38)) -> 0 | AL38: =IF(AO38=2,3.2,IF(AO38=3,3.3,0)) -> 0 | AM38: =IF(AO38=2,0,IF(AO38=3,0,0)) -> 0 | AN38: =IF(AO38=2,7.9,IF(AO38=3,3.1,0)) -> 0 | AO38: ='Abweichende Werte'!T7 -> 1 | AQ38: 1 | AR38: ='Abweichende Werte'!C7 -> 0 | AS38: =IF(AR38>0.001,AR38,"1") -> 1 | AT38: =D38*AR38+E38*AR38 -> 0 | AU38: ='Abweichende Werte'!D7 -> 0 | AV38: ='Abweichende Werte'!E7 -> 0 | AW38: ='Abweichende Werte'!F7 -> 0 | AX38: ='Abweichende Werte'!G7 -> 0 | AY38: ='Abweichende Werte'!H7 -> 0 | AZ38: ='Abweichende Werte'!I7 -> 0 | BA38: ='Abweichende Werte'!J7 -> 0 | BB38: ='Abweichende Werte'!K7 -> 0 | BC38: =IF(AO38=2,15,IF(AO38=3,20,IF(AO38=4,40,IF(AO38=5,45,0)))) -> 0 | BD38: =IF(AO38=2,30,IF(AO38=3,30,IF(AO38=4,40,IF(AO38=5,45,0)))) -> 0 | BE38: ='Abweichende Werte'!R7 -> 0 | BF38: ='Abweichende Werte'!O7 -> 0 | BG38: ='Abweichende Werte'!P7 -> 0 | BH38: ='Abweichende Werte'!Q7 -> 0 | BI38: 5 | BJ38: 3 | BK38: 17 | BL38: =IF(AO38=1,0,IF(AO38=2,1,IF(AO38=3,1,5))) -> 0 | BM38: =IF(AO38=1,0,IF(AO38=2,2,IF(AO38=3,2,5))) -> 0 | BN38: =IF(N38=" ",0,BL38*N38) -> 0 | BO38: =IF(N38=" ",0,BM38*N38) -> 0 | BP38: =AF38*AX38 -> 0 | BQ38: =AG38*AJ38 -> 0 | BS38: =AND(AO38>1) -> FALSE
A39: =+'Abweichende Werte'!V8 -> -- - | I39: =IF(BS39=FALSE," ",IF(P39+Q39=0," ",IF(AF39*AX39+AG39*AJ39=0," ",AF39*AX39+AG39*AJ39))) ->  | M39: =IF(D39+E39>1,IF(AO39=1,1,0),0) -> 0 | P39: 0 | Q39: =IF(AX39=0,D39+E39,E39) -> 0 | R39: =+(AF39*AU39*(100-BC39)/100)+(AJ39*AL39*AG39*(100-BD39)/100) -> 0 | S39: =IF(AO39=2,R39,0) -> 0 | T39: =AF39*AV39+AG39*AJ39*AM39 -> 0 | U39: =AF39*AW39+AG39*AJ39*AN39 -> 0 | V39: ='Abweichende Werte'!L8 -> 0 | W39: ='Abweichende Werte'!M8 -> 0 | X39: =+(AG39*AU39*(100-BD39)/100)-AJ39*AG39*AL39*(100-BD39)/100 -> 0 | Y39: =AG39*AV39-AG39*AJ39*AM39 -> 0 | Z39: =AG39*AW39-AG39*AJ39*AN39 -> 0 | AA39: ='Abweichende Werte'!N8 -> 0 | AB39: =IF(AQ39=1,AG39*BF39*AS39*365/1000*BI39,IF(AQ39=2,AG39*BG39*AS39*365/1000*BI39,AG39*BH39*AS39*365/1000*BI39)) -> 0 | AC39: =IF(AQ39=1,AG39*BF39*AS39*365/1000*BJ39,IF(AQ39=2,AG39*BG39*AS39*365/1000*BJ39,AG39*BH39*AS39*365/1000*BJ39)) -> 0 | AD39: =IF(AQ39=1,AG39*BF39*AS39*365/1000*BK39,IF(AQ39=2,AG39*BG39*AS39*365/1000*BK39,AG39*BH39*AS39*365/1000*BK39)) -> 0 | AF39: 0 | AG39: 0 | AH39: =+D39-(D39*((G39+H39)/2))/100 -> 0 | AI39: =+E39+D39-AH39 -> 0 | AJ39: =IF(AQ39=1,AY39,IF(AQ39=2,AY39/2,0)) -> 0 | AK39: =IF(AQ39=1,AZ39,IF(AQ39=2,BA39,BB39)) -> 0 | AL39: =IF(AO39=2,3.2,IF(AO39=3,3.3,0)) -> 0 | AM39: =IF(AO39=2,0,IF(AO39=3,0,0)) -> 0 | AN39: =IF(AO39=2,7.9,IF(AO39=3,3.1,0)) -> 0 | AO39: ='Abweichende Werte'!T8 -> 1 | AQ39: 1 | AR39: ='Abweichende Werte'!C8 -> 0 | AS39: 1 | AT39: =D39*AR39+E39*AR39 -> 0 | AU39: ='Abweichende Werte'!D8 -> 0 | AV39: ='Abweichende Werte'!E8 -> 0 | AW39: ='Abweichende Werte'!F8 -> 0 | AX39: ='Abweichende Werte'!G8 -> 0 | AY39: ='Abweichende Werte'!H8 -> 0 | AZ39: ='Abweichende Werte'!I8 -> 0 | BA39: ='Abweichende Werte'!J8 -> 0 | BB39: ='Abweichende Werte'!K8 -> 0 | BC39: =IF(AO39=2,15,IF(AO39=3,20,IF(AO39=4,40,IF(AO39=5,45,0)))) -> 0 | BD39: =IF(AO39=2,30,IF(AO39=3,30,IF(AO39=4,40,IF(AO39=5,45,0)))) -> 0 | BE39: ='Abweichende Werte'!R8 -> 0 | BF39: ='Abweichende Werte'!O8 -> 0 | BG39: ='Abweichende Werte'!P8 -> 0 | BH39: ='Abweichende Werte'!Q8 -> 0 | BI39: 5 | BJ39: 3 | BK39: 17 | BL39: =IF(AO39=1,0,IF(AO39=2,1,IF(AO39=3,1,5))) -> 0 | BM39: =IF(AO39=1,0,IF(AO39=2,2,IF(AO39=3,2,5))) -> 0 | BN39: =IF(N39=" ",0,BL39*N39) -> 0 | BO39: =IF(N39=" ",0,BM39*N39) -> 0 | BP39: 0 | BQ39: 0 | BS39: =AND(AO39>1) -> FALSE
A40: =+'Abweichende Werte'!V9 -> -- - | I40: =IF(BS40=FALSE," ",IF(P40+Q40=0," ",IF(AF40*AX40+AG40*AJ40=0," ",AF40*AX40+AG40*AJ40))) ->  | M40: =IF(D40+E40>1,IF(AO40=1,1,0),0) -> 0 | P40: 0 | Q40: =IF(AX40=0,D40+E40,E40) -> 0 | R40: =+(AF40*AU40*(100-BC40)/100)+(AJ40*AL40*AG40*(100-BD40)/100) -> 0 | S40: =IF(AO40=2,R40,0) -> 0 | T40: =AF40*AV40+AG40*AJ40*AM40 -> 0 | U40: =AF40*AW40+AG40*AJ40*AN40 -> 0 | V40: ='Abweichende Werte'!L9 -> 0 | W40: ='Abweichende Werte'!M9 -> 0 | X40: =+(AG40*AU40*(100-BD40)/100)-AJ40*AG40*AL40*(100-BD40)/100 -> 0 | Y40: =AG40*AV40-AG40*AJ40*AM40 -> 0 | Z40: =AG40*AW40-AG40*AJ40*AN40 -> 0 | AA40: ='Abweichende Werte'!N9 -> 0 | AB40: =IF(AQ40=1,AG40*BF40*AS40*365/1000*BI40,IF(AQ40=2,AG40*BG40*AS40*365/1000*BI40,AG40*BH40*AS40*365/1000*BI40)) -> 0 | AC40: =IF(AQ40=1,AG40*BF40*AS40*365/1000*BJ40,IF(AQ40=2,AG40*BG40*AS40*365/1000*BJ40,AG40*BH40*AS40*365/1000*BJ40)) -> 0 | AD40: =IF(AQ40=1,AG40*BF40*AS40*365/1000*BK40,IF(AQ40=2,AG40*BG40*AS40*365/1000*BK40,AG40*BH40*AS40*365/1000*BK40)) -> 0 | AF40: 0 | AG40: 0 | AH40: =+D40-(D40*((G40+H40)/2))/100 -> 0 | AI40: =+E40+D40-AH40 -> 0 | AJ40: =IF(AQ40=1,AY40,IF(AQ40=2,AY40/2,0)) -> 0 | AK40: =IF(AQ40=1,AZ40,IF(AQ40=2,BA40,BB40)) -> 0 | AL40: =IF(AO40=2,3.2,IF(AO40=3,3.3,0)) -> 0 | AM40: =IF(AO40=2,0,IF(AO40=3,0,0)) -> 0 | AN40: =IF(AO40=2,7.9,IF(AO40=3,3.1,0)) -> 0 | AO40: ='Abweichende Werte'!T9 -> 1 | AQ40: 1 | AR40: ='Abweichende Werte'!C9 -> 0 | AS40: 1 | AT40: =D40*AR40+E40*AR40 -> 0 | AU40: ='Abweichende Werte'!D9 -> 0 | AV40: ='Abweichende Werte'!E9 -> 0 | AW40: ='Abweichende Werte'!F9 -> 0 | AX40: ='Abweichende Werte'!G9 -> 0 | AY40: ='Abweichende Werte'!H9 -> 0 | AZ40: ='Abweichende Werte'!I9 -> 0 | BA40: ='Abweichende Werte'!J9 -> 0 | BB40: ='Abweichende Werte'!K9 -> 0 | BC40: =IF(AO40=2,15,IF(AO40=3,20,IF(AO40=4,40,IF(AO40=5,45,0)))) -> 0 | BD40: =IF(AO40=2,30,IF(AO40=3,30,IF(AO40=4,40,IF(AO40=5,45,0)))) -> 0 | BE40: ='Abweichende Werte'!R9 -> 0 | BF40: ='Abweichende Werte'!O9 -> 0 | BG40: ='Abweichende Werte'!P9 -> 0 | BH40: ='Abweichende Werte'!Q9 -> 0 | BI40: 5 | BJ40: 3 | BK40: 17 | BL40: =IF(AO40=1,0,IF(AO40=2,1,IF(AO40=3,1,5))) -> 0 | BM40: =IF(AO40=1,0,IF(AO40=2,2,IF(AO40=3,2,5))) -> 0 | BN40: =IF(N40=" ",0,BL40*N40) -> 0 | BO40: =IF(N40=" ",0,BM40*N40) -> 0 | BP40: 0 | BQ40: 0 | BS40: =AND(AO40>1) -> FALSE
A41: Niederschlags- bzw. Oberflächenwasser und sonstige Abwässer | G41: Fläche | M41: Silosaft | AP41: =IF(OR(AP25=2,AP26=2,AP27=2,AP28=2,AP29=2,AP30=2,AP31=2,AP32=2,AP33=2,AP34=2,AP35=2,AP36=2,),2,1) -> 1
A42: Oberflächen nicht abgedeckter Läger (Festmist, Gülle, Jauche) | H42: m² | I42: =IF(($B$14*G42*0.7)/1000=0," ",($B$14*G42*0.7)/1000) ->  | M42: =+M43+M44+M46 -> 0 | BN42: =SUM(BN25:BN40) -> 0 | BO42: =SUM(BO25:BO40) -> 0 | BP42: =SUM(BP25:BP40) -> 0 | BQ42: =SUM(BQ25:BQ40) -> 0
A43: verunreinigtes Wasser z.B. ungereinigte Silofläche o. Ladefläche (eingeleitet) | H43: m² | I43: =IF(($B$14*G43*0.7)/1000=0," ",($B$14*G43*0.7)/1000) ->  | M43: =IF(I43=" ",0,I43) -> 0 | BN43: =IF(N49=0,0,BN42/N49) -> 0 | BO43: =IF(N49=0,0,BO42/N49) -> 0 | BP43: =IF(BP42=0,"1",SUM(BP25:BP40)) -> 1 | BQ43: =IF(BQ42=0,"1",SUM(BQ25:BQ40)) -> 1
A44: nur Wasser z.B. gereinigte oder agedeckte Siloflächen (eingeleitet) | H44: m² | I44: =IF(($B$14*G44*0.7)/1000=0," ",($B$14*G44*0.7)/1000) ->  | M44: =IF(I44=" ",0,I44) -> 0 | AQ44: =SUM(G42:G44) -> 0
A45: Hausabwässer (wenn eingeleitet wird) Anzahl Personen | H45: Pers. | I45: =+IF(G45>0.1,G45*33.2," ") -> 
A46: Anfall Gärsaft im Jahr - wenn eingeleitet wird (mind. 3 % des größten Silos) | M46: =IF(I46=" ",0,I46) -> 0
A47: Sonstige Wasserzugabe im Jahr (z. B. Dachrinnenwasser, Reinigungswasser)
A48: Anfall Wirtschaftsdünger im Jahr in t | J48: =IF(N48=0," ",N48) ->  | M48: =SUM(I25:I47) -> 0 | N48: =SUM(J25:J47) -> 0 | R48: =SUM(R25:R47) -> 0 | S48: 0 | T48: =SUM(T25:T47) -> 0 | U48: 0 | X48: =SUM(X25:X47) -> 0 | Y48: 0 | Z48: 0 | AB48: =SUM(AB25:AB47) -> 0 | AC48: =SUM(AC25:AC47) -> 0 | AD48: =SUM(AD25:AD47) -> 0 | AT48: =SUM(AT25:AT40) -> 0
A49: Anfall Wirtschaftsdünger im Jahr in m³ | I49: =IF(M48=0," ",M48) ->  | J49: =IF(N49=0," ",N49) ->  | N49: =SUM(N25:N47) -> 0
C51: TS [%] | D51: N | E51: P2O5 | F51: K2O | N51: =C52 -> 
A52: Nährstoffgehalt Gülle/Jauche in kg/m³ | C52: =IF($M48=0," ",IF(V54+W54=0,"0,00",(V54*BP42+W54*BQ42)/(BP42+BQ42))) ->  | D52: =IF($M48=0," ",R54) ->  | E52: =IF($M48=0," ",T54) ->  | F52: =IF($M48=0," ",U54) -> 
A53: Nährstoffgehalt Stallmist in kg/t | C53: =IF(N48=0," ",AA54) ->  | D53: =IF($N48=0," ",X54) ->  | E53: =IF($N48=0," ",Y54) ->  | F53: =IF($N48=0," ",Z54) -> 
A54: © Bayerische Landesanstalt für Landwirtschaft, Institut für Agrarökologie - Düngung (Of, We, Hi, Ka, Br); Stand: 17.10.18 | R54: =+R48/$M48 ->  | T54: =+T48/$M48 ->  | U54: =+U48/$M48 ->  | V54: =SUMPRODUCT(V25:V40,$BP25:$BP40)/BP43 -> 0 | W54: =SUMPRODUCT(W25:W40,$BQ25:$BQ40)/BQ43 -> 0 | X54: =+(X48+AB48)/$N48 ->  | Y54: =+(Y48+AC48)/$N48 ->  | Z54: =+(Z48+AD48)/$N48 ->  | AA54: =SUMPRODUCT(AA25:AA40,$J25:$J40)/J48 ->  | AE54: Nährstoffgehalt/t
A56: Separierung flüssiger Wirtschaftsdünger
B58: Menge | C58: TS | D58: N | E58: P2O5 | F58: K2O
B59: m³ | C59: % | D59: kg/t bzw. m³
A60: org. Dünger | B60: =M48 -> 0 | C60: =IF(C52=" ",0,C52) -> 0 | D60: =IF(D52=" ",0,D52) -> 0 | E60: =IF(E52=" ",0,E52) -> 0 | F60: =IF(F52=" ",0,F52) -> 0
C64: =100-D64 -> 100 | D64: 0 | E64: welcher Anteil wird separiert
A77: Menge in m³ | B77: =M77 -> 0 | D77: Menge in m³ | F77: =B60-B77-J77 -> 0 | H77: Menge in t | J77: =P77 -> 0 | M77: =B60*C64/100 -> 0 | N77: =B60-B77-J77 -> 0 | P77: =IF(F78+J78=0,"0",B60*D64/100*((C60-F78)/(J78-F78))) -> 0
A78: TS in % | B78: =C60 -> 0 | D78: TS in % | F78: 0 | H78: TS in % | J78: 0
I81: Anfall Betrieb
I82: flüssig | J82: fest
I83: pro Jahr | J83: pro Jahr
A84: Anfall Wirtschaftsdünger im Jahr in t | J84: =IF(N84=0," ",N84) ->  | M84: =B77+F77 -> 0 | N84: =N48+J77 -> 0
A85: Anfall Wirtschaftsdünger im Jahr in m³ | I85: =IF(M84=0," ",M84) ->  | J85: =IF(N85=0," ",N85) ->  | N85: =N49+J77*(1/0.9) -> 0
A105: © Bayerische Landesanstalt für Landwirtschaft, Institut für Agrarökologie - Düngung (Of, We, Hi, Ka, Br); Stand: 17.10.18
A106: Lagerbehälter im Betrieb für flüssige (Gülle, Jache) und feste (Mist) Wirtschaftsdünger
A108: Runde Behälter (flüssig) | C108: Lager | E108: Durchmesser | G108: Höhe2) | I108: Lagerraum m³
C109: für Wirtschaftsdünger | E109: m | G109: m | I109: flüssig | J109: fest
A110: Behälter 1 | C110: flüssig | I110: =IF(M110=TRUE,E110/2*E110/2*3.1415926*G110," ") ->  | M110: =AND(E110>0.1,G110>0.1) -> FALSE
A111: Behälter 2 | C111: flüssig | I111: =IF(M111=TRUE,E111/2*E111/2*3.1415926*G111," ") ->  | M111: =AND(E111>0.1,G111>0.1) -> FALSE
A112: Behälter 3 | C112: flüssig | I112: =IF(M112=TRUE,E112/2*E112/2*3.1415926*G112," ") ->  | M112: =AND(E112>0.1,G112>0.1) -> FALSE
A113: Behälter 4 | C113: flüssig | I113: =IF(M113=TRUE,E113/2*E113/2*3.1415926*G113," ") ->  | M113: =AND(E113>0.1,G113>0.1) -> FALSE
A114: Rechteckige Behälter (flüssig) | C114: Lager | E114: Länge | F114: Breite | G114: Höhe2)
A115: bzw. Lagerflächen (fest) | C115: für Wirtschaftsdünger | E115: m | F115: m | G115: m | R115: --
A116: Behälter/Lagerfläche 1 | I116: =IF(M116=TRUE,IF(U116=2,E116*F116*G116," ")," ") ->  | J116: =IF(M116=TRUE,IF(U116=3,E116*F116*G116," ")," ") ->  | M116: =AND(E116>0.1,F116>0.1,G116>0.1) -> FALSE | R116: flüssig | U116: 1
A117: Behälter/Lagerfläche 2 | I117: =IF(M117=TRUE,IF(U117=2,E117*F117*G117," ")," ") ->  | J117: =IF(M117=TRUE,IF(U117=3,E117*F117*G117," ")," ") ->  | M117: =AND(E117>0.1,F117>0.1,G117>0.1) -> FALSE | R117: fest | U117: 1
A118: Behälter/Lagerfläche 3 | I118: =IF(M118=TRUE,IF(U118=2,E118*F118*G118," ")," ") ->  | J118: =IF(M118=TRUE,IF(U118=3,E118*F118*G118," ")," ") ->  | M118: =AND(E118>0.1,F118>0.1,G118>0.1) -> FALSE | U118: 1
A119: Behälter/Lagerfläche 4 | I119: =IF(M119=TRUE,IF(U119=2,E119*F119*G119," ")," ") ->  | J119: =IF(M119=TRUE,IF(U119=3,E119*F119*G119," ")," ") ->  | M119: =AND(E119>0.1,F119>0.1,G119>0.1) -> FALSE | U119: 1
A120: Sonstige Lagerkapazitäten im Betrieb
A121: Lager 1
A122: Lager 2
A123: Lager 3
A124: Lager 4
A125: Zu- und Verpacht von Lagerkapazität | D125: =IF(X131>1,"Verpacht mit Vorzeichen minus"," ") -> 
A126: Zu-/Verpacht | B126: Adresse des Betriebes
R127: -- | U127: 1 | X127: =IF(U127=3,IF(I127>0,99,IF(J127>0,99,0)),0) -> 0
R128: Zupacht | U128: 1 | X128: =IF(U128=3,IF(I128>0,99,IF(J128>0,99,0)),0) -> 0
R129: Verpacht | U129: 1 | X129: =IF(U129=3,IF(I129>0,99,IF(J129>0,99,0)),0) -> 0
U130: 1 | X130: =IF(U130=3,IF(I130>0,99,IF(J130>0,99,0)),0) -> 0
A131: Lagerraum der dem Betrieb zur Verfüngung steht in m³ | I131: =IF(M131=0," ",M131) ->  | M131: =+M132+M133 -> 0 | N131: =+N132+N133 -> 0 | X131: =SUM(X127:X130) -> 0
A132: Summe Lagerbehälter im Betrieb für flüssige und feste Wirtschaftsdünger m³ | M132: =SUM(I110:I124) -> 0 | N132: =SUM(J110:J124) -> 0
A133: Menge Zu- und Verpacht m³ | M133: =SUM(I127:I130) -> 0 | N133: =SUM(J127:J130) -> 0 | R133: rote Flächen | Z133: grünes Gebiet | AM133: bei Anteil
A136: Ergebnis 2018 | I136: flüssig | J136: fest | M136: =IF(I85=0,"0",6) -> 6 | N136: =ROUND(N137,1) -> 0
A137: Notwendiger Lagerraum nach DüV in Monate: | I137: =CONCATENATE(M136," Mo.") -> 6 Mo. | J137: =CONCATENATE(N136," Mo.") -> 0 Mo. | M137: 6 | N137: =+BN43 -> 0 | R137: LF | S137: GV/ha | T137: Gülle/Jauche notwendige ha | U137: %6Mo | X137: %9Mo | Z137: LF | AE137: GV/ha | AF137: GL/ha | AG137: Rind ha 255 | AH137: max. ha 255 | AI137: Gülle Grünland Rinder | AJ137: %6Mo | AK137: %9Mo | AM137: %6Mo | AN137: %9Mo
A138: Anfall in dieser Zeit (bzw. mindestens benötigter Lagerraum) in m³ | I138: =IF(M138=0," ",M138) ->  | J138: =IF(N138=0," ",N138) ->  | M138: =+M84/12*M137 -> 0 | N138: =+N85/12*N137 -> 0
A139: Lagerraum der dem Betrieb zur Verfüngung steht in m³ | I139: =IF(M139=0," ",M139) ->  | J139: =IF(N139=0," ",N139) ->  | M139: =+M131 -> 0 | N139: =+N131 -> 0
A140: Mindestanforderung nach DüV wird eingehalten: | I140: =IF(M138>0.1,IF(M138<M139,"ja","nein")," ") ->  | J140: =IF(N138>0.1,IF(N138<N139,"ja","nein")," ") ->  | P140: ja | Q140: nein
A142: Notwendiger Lagerraum ab 2020 (bei den angegebenen Tieren und Flächen) | I142: flüssig | J142: fest | M142: =IF(I85=0,"0",ROUND(M143,1)) -> 9 | N142: =ROUND(N143,1) -> 0
A143: Notwendiger Lagerraum nach DüV für Monate: | I143: =CONCATENATE(M142," Mo.") -> 9 Mo. | J143: =CONCATENATE(N142," Mo.") -> 0 Mo. | M143: =IF(R144=0,9,IF(S144>3,(6*AM144+9*AN144)/100,6)) -> 9 | N143: =+BO43 -> 0
A144: Anfall in dieser Zeit bzw. notwendiger Lagerraum in m³: | I144: =IF(M144=0," ",M144) ->  | J144: =IF(N144=0," ",N144) ->  | M144: =+M84/12*M143 -> 0 | N144: =+N85/12*N143 -> 0 | R144: =+F6-G7+F8-G9 -> 0 | S144: =+AT48/R144 ->  | T144: =R48/170 -> 0 | U144: =IF(R144+F11>T144,100,(1-(T144-R144-F11)/T144)*100) ->  | X144: =100-U144 ->  | Z144: =+R144 -> 0 | AE144: =+S144 ->  | AF144: =+F8-G9 -> 0 | AG144: =+S48/255 -> 0 | AH144: =IF(AF144<AG144,AF144,AG144) -> 0 | AI144: =+AH144*255 -> 0 | AJ144: =+(AI144/R48)*100 ->  | AK144: =100-AJ144 ->  | AM144: =+(AJ144*T13+U144*(100-T13))/100 ->  | AN144: =100-AM144 -> 
A145: GV/ha im Betrieb: | B145: =IF(F5=0,"Betrieb ohne Fläche",S144) -> Betrieb ohne Fläche
A146: =IF(M48=0," ",IF(M146=" "," ",IF(M146<=10," ",IF(M146>10,"Achtung: Anlagenverordnung beachten; Gärsaft + verunreinigtes Wasser > 10 % des Anfalls")))) ->  | M146: =((M46+M43)/I49)*100 -> 
A147: 1) Bestandsschutz: Für Betriebe nach DüV § 12 Abs. 2 ohne Aufstockung des Tierbestandes können bis 31.12.2023
A148: zur Berechnung der Mindestlagerkapazität von flüssigen Wirtschaftsdünger das „Berechnungsprogramm 2017“ verwenden.
A149: 2) Bei offenen Behältern sind von der Höhe 20 cm (Freiraum) und bei geschlossenen Behältern 10 cm abzuziehen.
A150: Zusätzlich sind für nicht abpumpfähige Mengen 10 cm zu berücksichtigen.
A153: © Bayerische Landesanstalt für Landwirtschaft, Institut für Agrarökologie - Düngung (Of, We, Hi, Ka, Br); Stand: 17.10.18
D154: Bei Fragen wenden Sie sich an Ihr zuständiges Amt für Ernährung, Landwirtschaft und Forsten.

Sheet Abweichende Werte
A1: Eingabemöglichkeit für abweichende Werte
C3: je Tier und Jahr (365 Tage)
D4: Nährstoffanfall | G4: Anfall | I4: Anfall Mist | L4: TS-Gehalt | O4: Einstreu | R4: spez. Gew.
A5: Tierart | B5: Tierbezeichnung | C5: GV | D5: N | E5: P2O5 | F5: K2O | G5: Gülle | H5: Jauche | I5: gering | J5: mittel | K5: hoch | L5: Gülle | M5: Jauche | N5: Mist | O5: gering | P5: mittel | Q5: hoch | R5: Mist
D6: kg | G6: m³ | I6: t | L6: % | O6: kg/GV und Tag | R6: t/m³ | T6: Tierart
T7: 1 | U7: =INDEX(Tiere!$D$83:$D$87,T7) -> -- | V7: =+CONCATENATE(U7," - ",+B7) -> -- -
T8: 1 | U8: =INDEX(Tiere!$D$83:$D$87,T8) -> -- | V8: =+CONCATENATE(U8," - ",+B8) -> -- -
T9: 1 | U9: =INDEX(Tiere!$D$83:$D$87,T9) -> -- | V9: =+CONCATENATE(U9," - ",+B9) -> -- -
A33: © Bayerische Landesanstalt für Landwirtschaft, Institut für Agrarökologie - Düngung (Of, We, Sp, Ka, Br); Stand: 13.12.19

Sheet Zu- und Abgang (hidden)
A1: 2. Zu- und Abgang organischer (und organisch-mineralische) Düngemittel
A3: Organisch (und organisch-mineralische) Düngemittel | E3: Zugang | F3: Abgang | G3: kg/t bzw. m³ | N3: Nährstoffgehalt org. Dünger | Q3: Art | R3: Summe
E4: t bzw. m³ | G4: N | H4: P2O5 | I4: K2O | N4: N | O4: P2O5 | P4: K2O | Q4: flüssig/fest | R4: flüssig m³ | S4: fest in t
G5: =IF(N5>0.1,N5,"") ->  | H5: =IF(O5>0.1,O5,"") -> 5 | I5: 6 | M5: 1 | N5: =INDEX('org Dünger'!G$8:G$34,M5) -> 0 | O5: =INDEX('org Dünger'!H$9:H$34,M5) -> 5 | P5: =INDEX('org Dünger'!I$9:I$34,M5) -> 6 | Q5: 1 | R5: =IF(Q5=2,E5-F5,0) -> 0 | S5: =IF(Q5=3,E5-F5,0) -> 0
G6: =IF(N6>0.1,N6,"") ->  | H6: 5 | I6: 6 | M6: 1 | N6: =INDEX('org Dünger'!G$8:G$34,M6) -> 0 | O6: =INDEX('org Dünger'!H$9:H$34,M6) -> 5 | P6: =INDEX('org Dünger'!I$9:I$34,M6) -> 6 | Q6: 1 | R6: =IF(Q6=2,E6-F6,0) -> 0 | S6: =IF(Q6=3,E6-F6,0) -> 0
G7: =IF(N7>0.1,N7,"") ->  | H7: 5 | I7: 6 | M7: 1 | N7: =INDEX('org Dünger'!G$8:G$34,M7) -> 0 | O7: =INDEX('org Dünger'!H$9:H$34,M7) -> 5 | P7: =INDEX('org Dünger'!I$9:I$34,M7) -> 6 | Q7: 1 | R7: 0 | S7: 0
Q8: 1 | R8: 0 | S8: 0
Q9: 1 | R9: 0 | S9: =IF(Q9=3,E9-F9,0) -> 0
Q10: 1 | R10: 0 | S10: 0
Q11: 1 | R11: 0 | S11: 0
R12: =SUM(R5:R11) -> 0 | S12: =SUM(S5:S11) -> 0
N18: =IF(D96>0.1,D96*E96*H96,"") -> 
Q24: Dünger wählen
Q25: flüssig
Q26: fest

Sheet Separierung (hidden)
A1: Berechnung Lagerraum für Gülle/Jauche und Stallmist
C2: für tierhaltende Betriebe (ohne Biogas, mit Separierung)
A3: Mindestanforderungen nach Düngeverordnung Entwurf Stand: 10.09.18
A5: Betriebsnummer: | C5: Kalenderjahr: | D5: 2018 | G5: ha LF
A6: Vorname/Name: | G6: ha gesamte Ackerfläche
A7: Straße: | H7: davon Stillleg. Acker
A8: PLZ/Ort: | G8: ha gesamte Grünlandfläche
A9: Telefon: | H9: davon Stillleg. GL
F10: =IF(F6+F8<>F5,"Flächenangaben nicht plausibel",IF(G7>F6,"Flächenangaben nicht plausibel",IF(G9>F8,"Flächenangaben nicht plausibel"," "))) -> 
B11: =IF(AP47=2,IF(F5<0.1,"Flächenangaben nicht plausibel"," ")," ") ->  | G11: zusätzliche Ausbringfläche
B12: =IF(AP47=2,IF(B13<3000,"Milchleistung nicht plausibel"," ")," ") ->  | G12: Fläche im grünen Gebiet (%) ab 2020
A15: Separierung flüssiger Wirtschftsdünger
B17: Menge | C17: TS | D17: N | E17: P2O5 | F17: K2O | G17: TM | H17: Wasser | I17: N | J17: P2O5 | K17: K2O
B18: t, m³ | C18: % | D18: kg/t bzw. m³ | G18: t im Betrieb
A19: org. Dünger | B19: ='Berech. Lagerraum flüssig+fest'!M46 -> 0 | C19: ='Berech. Lagerraum flüssig+fest'!C50 -> 0 | D19: ='Berech. Lagerraum flüssig+fest'!D50 -> 0 | E19: ='Berech. Lagerraum flüssig+fest'!F50 -> 0 | F19: ='Berech. Lagerraum flüssig+fest'!G50 -> 0 | G19: =IF(B19=0," ",B19*C19/100) ->  | H19: =IF(B19=0," ",B19-B19*B37/100) ->  | I19: ='Berech. Lagerraum flüssig+fest'!AA46 -> 0 | J19: ='Berech. Lagerraum flüssig+fest'!AC46 -> 0 | K19: ='Berech. Lagerraum flüssig+fest'!AD46 -> 0
C23: =100-D23 -> 100 | D23: 0 | E23: welcher Anteil des Gärrestanfalls wird separiert
A36: Menge in m³ | B36: =B19*C23/100 -> 0 | D36: Menge in m³ | F36: =IF(B19=0," ",B19-B36-J36) ->  | H36: Menge in t | J36: =IF(B19=0," ",B19*D23/100*((C19-F37)/(J37-F37))) -> 
A37: TS in % | B37: =C19 -> 0 | D37: TS in % | F37: 4 | H37: TS in % | J37: 25

Sheet Tiere (hidden)
A1: (Stand: Januar 2018) | C1: Im Programm hinterlegte Daten aus Tabelle 4a+b+c
V2: t/m³
B3: Tiere für Beech. Lagerraum flüssig+fest
C5: Großvieh- | D5: Nährstoffausscheidung | G5: Gülleanfall in m3 | K5: % TS | L5: Einstreu | M5: Festmist (nach DüV) 5) | P5: % TS | Q5: Jaucheanfall | R5: Jaucheanfall 4) | S5: % TS | T5: Verluste in % | V5: spez. Gewicht | W5: Einstreu | Z5: Lager in Monaten Stallmist | AB5: NH4-N Anteil
B6: Programmname | C6: einheit | D6: kg je mittl. | G6: je mittl. Jahresbestand 2) | K6: Gülle | L6: gering | M6: je mittl. Jahresbestand 2) | P6: Mist | Q6: in m3 je mittl. | R6: in m3 je mittl. | S6: Jauche | T6: Stall- und Lager | V6: Mist | W6: kg je GV und Tag | Z6: bis 2020 | AA6: ab 2020 | AB6: Gülle | AC6: Jauche | AD6: Mist
B7: 49 Tierartengruppen | C7: nach DüV | D7: Jahresbestand 2) | H7: TM | J7: nach | K7: nach DüV | L7: (nach DüV) | M7: Anfall in t/Jahr | P7: nach DüV | Q7: Jahresbest.²) | R7: Jahresbest.²) | U7: Mist, | V7: t/m³
D8: N | E8: P2O5 | F8: K2O | G8: 0.05 | H8: 0.075 | I8: 0.1 | J8: DüV 3) | K8: Anfall | L8: kg/Tag | M8: gering | N8: mittel | O8: hoch | P8: Anfall | Q8: LfL | R8: nach DüV | T8: Gülle | U8: Jauche
A9: Rinder
B10: Ackerbetrieb 1), Stallhaltung
B11: Weibliche Rinder über 6 Monate bis 1 Jahr | C11: 0.3 | D11: 37 | E11: 11 | F11: 46 | G11: 12.5 | H11: 8.3 | I11: 6.2 | J11: 7.6 | K11: 8.2 | L11: 2.5 | M11: 4.5 | N11: 7.4 | O11: 8.9 | P11: 32.2 | Q11: 2.8 | R11: 2 | S11: 1.8 | T11: 15 | U11: 30 | W11: 8.2 | X11: 7 | Y11: 12
B12: Weibliche Rinder über 1 Jahr bis 2 Jahre | C12: 0.7 | D12: 56 | E12: 18 | F12: 69 | G12: 18.9 | H12: 12.6 | I12: 9.4 | J12: 11.5 | K12: 8.2 | L12: 3.7 | M12: 6.8 | N12: 11.8 | O12: 14.6 | P12: 31.1 | Q12: 4.3 | R12: 3 | S12: 1.8 | T12: 15 | U12: 30 | W12: 5.3 | X12: 7 | Y12: 12
B13: Andere weibliche Rinder über 2 Jahre | C13: 1 | D13: 64 | E13: 21 | F13: 78 | G13: 21.5 | H13: 14.3 | I13: 10.7 | J13: 13.1 | K13: 8.2 | L13: 4.2 | M13: 7.8 | N13: 14 | O13: 17.5 | P13: 32.1 | Q13: 4.8 | R13: 3.4 | S13: 1.8 | T13: 15 | U13: 30 | W13: 4.2 | X13: 7 | Y13: 12
B14: Milchkuh (6000 kg Milch) | C14: 1 | D14: 100 | E14: 36 | F14: 104 | G14: 33.8 | H14: 22.5 | I14: 16.9 | J14: 19 | K14: 8.9 | L14: 4 | M14: 15 | N14: 18.6 | O14: 23.4 | P14: 21.7 | Q14: 7.3 | R14: 6 | S14: 1.8 | T14: 15 | U14: 30 | W14: 4 | X14: 7 | Y14: 12
B15: Milchkuh (8000 kg Milch) | C15: 1 | D15: 115 | E15: 42 | F15: 116 | G15: 37.3 | H15: 24.9 | I15: 18.6 | J15: 20 | K15: 9.3 | L15: 4 | M15: 16 | N15: 19.4 | O15: 24.4 | P15: 21.3 | Q15: 8 | R15: 6.4 | S15: 1.8 | T15: 15 | U15: 30 | W15: 4 | X15: 7 | Y15: 12
B16: Milchkuh (10000 kg Milch) | C16: 1 | D16: 133 | E16: 47 | F16: 125 | G16: 39.3 | H16: 26.2 | I16: 19.6 | J16: 21 | K16: 9.4 | L16: 5 | M16: 17 | N16: 20.2 | O16: 25.4 | P16: 23.6 | Q16: 7.7 | R16: 6.8 | S16: 1.8 | T16: 15 | U16: 30 | W16: 5 | X16: 7 | Y16: 12
B17: Milchkuh (12000 kg Milch) | C17: 1 | D17: 152 | E17: 52 | F17: 135 | G17: 45.3 | H17: 30.2 | I17: 22.7 | J17: 22 | K17: 10.3 | L17: 6 | M17: 17 | N17: 21 | O17: 26.4 | P17: 29.4 | Q17: 7.5 | R17: 7.2 | S17: 1.8 | T17: 15 | U17: 30 | W17: 6 | X17: 7 | Y17: 12
B18: Grünlandbetrieb 1), konventionell
B19: Weibliche Rinder über 6 Monate bis 1 Jahr | C19: 0.3 | D19: 47 | E19: 14 | F19: 58 | G19: 12.4 | H19: 8.3 | I19: 6.2 | J19: 7.6 | K19: 8.2 | L19: 2.5 | M19: 4.5 | N19: 7.4 | O19: 8.9 | P19: 32.2 | Q19: 3.5 | R19: 2 | S19: 1.8 | T19: 15 | U19: 30 | W19: 8.2 | X19: 7 | Y19: 12
B20: Weibliche Rinder über 1 Jahr bis 2 Jahre | C20: 0.7 | D20: 72 | E20: 21 | F20: 94 | G20: 19 | H20: 12.7 | I20: 9.5 | J20: 11.7 | K20: 8.1 | L20: 3.8 | M20: 6.9 | N20: 12 | O20: 14.8 | P20: 31.1 | Q20: 5.4 | R20: 3 | S20: 1.8 | T20: 15 | U20: 30 | W20: 5.4 | X20: 7 | Y20: 12
B21: Andere weibliche Rinder über 2 Jahre | C21: 1 | D21: 84 | E21: 23 | F21: 100 | G21: 22.2 | H21: 14.8 | I21: 11.1 | J21: 13.7 | K21: 8.1 | L21: 4.4 | M21: 8.1 | N21: 14.5 | O21: 18.1 | P21: 32.1 | Q21: 6.3 | R21: 3.5 | S21: 1.8 | T21: 15 | U21: 30 | W21: 4.4 | X21: 7 | Y21: 12
B22: Milchkuh (6000 kg Milch) | C22: 1 | D22: 109 | E22: 37 | F22: 129 | G22: 36.5 | H22: 24.3 | I22: 18.2 | J22: 19 | K22: 9.6 | L22: 4 | M22: 14.4 | N22: 18.6 | O22: 23.4 | P22: 24.9 | Q22: 9.6 | R22: 6 | S22: 1.8 | T22: 15 | U22: 30 | W22: 4 | X22: 7 | Y22: 12
B23: Milchkuh (8000 kg Milch) | C23: 1 | D23: 124 | E23: 43 | F23: 134 | G23: 38.1 | H23: 25.4 | I23: 19 | J23: 20 | K23: 9.5 | L23: 4 | M23: 15 | N23: 19.4 | O23: 24.4 | P23: 23.4 | Q23: 9.7 | R23: 6.4 | S23: 1.8 | T23: 15 | U23: 30 | W23: 4 | X23: 7 | Y23: 12
B24: Milchkuh (10000 kg Milch) | C24: 1 | D24: 141 | E24: 48 | F24: 143 | G24: 40.4 | H24: 26.9 | I24: 20.2 | J24: 21 | K24: 9.6 | L24: 5 | M24: 16 | N24: 20.2 | O24: 25.4 | P24: 26 | Q24: 9.5 | R24: 6.8 | S24: 1.8 | T24: 15 | U24: 30 | W24: 5 | X24: 7 | Y24: 12
B26: Grünlandanteil in % | C26: =+'Berech. Lagerraum flüssig+fest'!BD11 -> 0 | D26: =+C26 -> 0 | E26: 0 | F26: 0 | G26: 0 | H26: 0 | I26: 0 | J26: 0 | K26: 0 | L26: =+J26 -> 0 | M26: =+L26 -> 0 | N26: =+M26 -> 0 | O26: =+N26 -> 0 | P26: =+O26 -> 0 | Q26: =+O26 -> 0 | R26: =+Q26 -> 0 | S26: =+R26 -> 0 | T26: =+R26 -> 0 | U26: =+T26 -> 0 | W26: =S26 -> 0 | X26: 0 | Y26: 0
B27: Milchleistung | C27: =+'Berech. Lagerraum flüssig+fest'!B11 -> 0 | D27: =+C27 -> 0 | E27: =+D27 -> 0 | F27: 0 | G27: 0 | H27: 0 | I27: =+H27 -> 0 | J27: =+I27 -> 0 | K27: 0 | L27: =+J27 -> 0 | M27: 0 | N27: 0 | O27: 0 | P27: 0 | Q27: =+O27 -> 0 | R27: =+Q27 -> 0 | S27: =+R27 -> 0 | T27: =+R27 -> 0 | U27: 0 | W27: 0 | X27: 0 | Y27: 0
B28: Milchkuh Acker | C28: =IF(C27<=6000,C14,IF(AND(C27>6000,C27<=8000),C14+(C15-C14)/2000*(C27-6000),IF(AND(C27>8000,C27<=10000),C15+(C16-C15)/2000*(C27-8000),IF(AND(C27>10000,C27<=12000),C16+(C17-C16)/2000*(C27-10000),C17)))) -> 1 | D28: =IF(D27<=6000,D14,IF(AND(D27>6000,D27<=8000),D14+(D15-D14)/2000*(D27-6000),IF(AND(D27>8000,D27<=10000),D15+(D16-D15)/2000*(D27-8000),IF(AND(D27>10000,D27<=12000),D16+(D17-D16)/2000*(D27-10000),D17)))) -> 100 | E28: =IF(E27<=6000,E14,IF(AND(E27>6000,E27<=8000),E14+(E15-E14)/2000*(E27-6000),IF(AND(E27>8000,E27<=10000),E15+(E16-E15)/2000*(E27-8000),IF(AND(E27>10000,E27<=12000),E16+(E17-E16)/2000*(E27-10000),E17)))) -> 36 | F28: =IF(F27<=6000,F14,IF(AND(F27>6000,F27<=8000),F14+(F15-F14)/2000*(F27-6000),IF(AND(F27>8000,F27<=10000),F15+(F16-F15)/2000*(F27-8000),IF(AND(F27>10000,F27<=12000),F16+(F17-F16)/2000*(F27-10000),F17)))) -> 104 | G28: =IF(G27<=6000,G14,IF(AND(G27>6000,G27<=8000),G14+(G15-G14)/2000*(G27-6000),IF(AND(G27>8000,G27<=10000),G15+(G16-G15)/2000*(G27-8000),IF(AND(G27>10000,G27<=12000),G16+(G17-G16)/2000*(G27-10000),G17)))) -> 33.8 | H28: 22.5 | I28: 16.9 | J28: =IF(J27<=6000,J14,IF(AND(J27>6000,J27<=8000),J14+(J15-J14)/2000*(J27-6000),IF(AND(J27>8000,J27<=10000),J15+(J16-J15)/2000*(J27-8000),IF(AND(J27>10000,J27<=12000),J16+(J17-J16)/2000*(J27-10000),J17)))) -> 19 | K28: =IF(K27<=6000,K14,IF(AND(K27>6000,K27<=8000),K14+(K15-K14)/2000*(K27-6000),IF(AND(K27>8000,K27<=10000),K15+(K16-K15)/2000*(K27-8000),IF(AND(K27>10000,K27<=12000),K16+(K17-K16)/2000*(K27-10000),K17)))) -> 8.9 | L28: 4 | M28: 15 | N28: 18.6 | O28: 23.4 | P28: 21.7 | Q28: 7.3 | R28: =IF(R27<=6000,R14,IF(AND(R27>6000,R27<=8000),R14+(R15-R14)/2000*(R27-6000),IF(AND(R27>8000,R27<=10000),R15+(R16-R15)/2000*(R27-8000),IF(AND(R27>10000,R27<=12000),R16+(R17-R16)/2000*(R27-10000),R17)))) -> 6 | S28: =IF(S27<=6000,S14,IF(AND(S27>6000,S27<=8000),S14+(S15-S14)/2000*(S27-6000),IF(AND(S27>8000,S27<=10000),S15+(S16-S15)/2000*(S27-8000),IF(AND(S27>10000,S27<=12000),S16+(S17-S16)/2000*(S27-10000),S17)))) -> 1.8 | T28: 15 | U28: =IF(U27<=6000,U14,IF(AND(U27>6000,U27<=8000),U14+(U15-U14)/2000*(U27-6000),IF(AND(U27>8000,U27<=10000),U15+(U16-U15)/2000*(U27-8000),IF(AND(U27>10000,U27<=12000),U16+(U17-U16)/2000*(U27-10000),U17)))) -> 30 | W28: =IF(W27<=6000,W14,IF(AND(W27>6000,W27<=8000),W14+(W15-W14)/2000*(W27-6000),IF(AND(W27>8000,W27<=10000),W15+(W16-W15)/2000*(W27-8000),IF(AND(W27>10000,W27<=12000),W16+(W17-W16)/2000*(W27-10000),W17)))) -> 4 | X28: =IF(X27<=6000,X14,IF(AND(X27>6000,X27<=8000),X14+(X15-X14)/2000*(X27-6000),IF(AND(X27>8000,X27<=10000),X15+(X16-X15)/2000*(X27-8000),IF(AND(X27>10000,X27<=12000),X16+(X17-X16)/2000*(X27-10000),X17)))) -> 7 | Y28: =IF(Y27<=6000,Y14,IF(AND(Y27>6000,Y27<=8000),Y14+(Y15-Y14)/2000*(Y27-6000),IF(AND(Y27>8000,Y27<=10000),Y15+(Y16-Y15)/2000*(Y27-8000),IF(AND(Y27>10000,Y27<=12000),Y16+(Y17-Y16)/2000*(Y27-10000),Y17)))) -> 12
B29: Milchkuh GL | C29: =IF(C27<=6000,C22,IF(AND(C27>6000,C27<=8000),C22+(C23-C22)/2000*(C27-6000),IF(AND(C27>8000,C27<=10000),C23+(C24-C23)/2000*(C27-8000),C24))) -> 1 | D29: =IF(D27<=6000,D22,IF(AND(D27>6000,D27<=8000),D22+(D23-D22)/2000*(D27-6000),IF(AND(D27>8000,D27<=10000),D23+(D24-D23)/2000*(D27-8000),D24))) -> 109 | E29: =IF(E27<=6000,E22,IF(AND(E27>6000,E27<=8000),E22+(E23-E22)/2000*(E27-6000),IF(AND(E27>8000,E27<=10000),E23+(E24-E23)/2000*(E27-8000),E24))) -> 37 | F29: 129 | G29: 36.5 | H29: 24.3 | I29: 18.2 | J29: 19 | K29: =IF(K27<=6000,K22,IF(AND(K27>6000,K27<=8000),K22+(K23-K22)/2000*(K27-6000),IF(AND(K27>8000,K27<=10000),K23+(K24-K23)/2000*(K27-8000),K24))) -> 9.6 | L29: 4 | M29: 14.4 | N29: 18.6 | O29: 23.4 | P29: 24.9 | Q29: 9.6 | R29: 6 | S29: 1.8 | T29: 15 | U29: 30 | W29: =IF(W27<=6000,W22,IF(AND(W27>6000,W27<=8000),W22+(W23-W22)/2000*(W27-6000),IF(AND(W27>8000,W27<=10000),W23+(W24-W23)/2000*(W27-8000),W24))) -> 4 | X29: =IF(X27<=6000,X22,IF(AND(X27>6000,X27<=8000),X22+(X23-X22)/2000*(X27-6000),IF(AND(X27>8000,X27<=10000),X23+(X24-X23)/2000*(X27-8000),X24))) -> 7 | Y29: =IF(Y27<=6000,Y22,IF(AND(Y27>6000,Y27<=8000),Y22+(Y23-Y22)/2000*(Y27-6000),IF(AND(Y27>8000,Y27<=10000),Y23+(Y24-Y23)/2000*(Y27-8000),Y24))) -> 12
B31: Milchkuh ohne Kalb | C31: =IF(C$26<=0.65,C28,IF(C$26>=0.85,C29,((0.85-C$26)*5*C28)+((C$26-0.65)*5*C29))) -> 1 | D31: =IF(D$26<=0.65,D28,IF(D$26>=0.85,D29,((0.85-D$26)*5*D28)+((D$26-0.65)*5*D29))) -> 100 | E31: =IF(E$26<=0.65,E28,IF(E$26>=0.85,E29,((0.85-E$26)*5*E28)+((E$26-0.65)*5*E29))) -> 36 | F31: 104 | G31: 33.8 | H31: 22.5 | I31: =IF(I$26<=0.65,I28,IF(I$26>=0.85,I29,((0.85-I$26)*5*I28)+((I$26-0.65)*5*I29))) -> 16.9 | J31: =IF(J$26<=0.65,J28,IF(J$26>=0.85,J29,((0.85-J$26)*5*J28)+((J$26-0.65)*5*J29))) -> 19 | K31: =IF(K$26<=0.65,K28,IF(K$26>=0.85,K29,((0.85-K$26)*5*K28)+((K$26-0.65)*5*K29))) -> 8.9 | L31: 4 | M31: 15 | N31: 18.6 | O31: 23.4 | P31: 21.7 | Q31: =IF(Q$26<=0.65,Q28,IF(Q$26>=0.85,Q29,((0.85-Q$26)*5*Q28)+((Q$26-0.65)*5*Q29))) -> 7.3 | R31: 6 | S31: =IF(S$26<=0.65,S28,IF(S$26>=0.85,S29,((0.85-S$26)*5*S28)+((S$26-0.65)*5*S29))) -> 1.8 | T31: 15 | U31: 30 | V31: 0.9 | W31: =IF(W$26<=0.65,W28,IF(W$26>=0.85,W29,((0.85-W$26)*5*W28)+((W$26-0.65)*5*W29))) -> 4 | X31: 7 | Y31: 12 | Z31: 1 | AA31: 2 | AB31: 50 | AC31: 90 | AD31: 10
B32: Kälber (Zucht/Mast) bis 6 Monate | C32: 0.3 | D32: 22 | E32: 7.6 | F32: 22.6 | G32: 7.5 | H32: 5 | I32: 3.7 | J32: 3.3 | K32: 11.4 | L32: 1.5 | M32: 2.7 | N32: 3.5 | O32: 4.6 | P32: 38 | Q32: 1.7 | R32: 1.2 | S32: 1.8 | T32: 15 | U32: 30 | V32: 0.9 | W32: 5 | X32: 7 | Y32: 12 | Z32: 1 | AA32: 2 | AB32: 50 | AC32: 90 | AD32: 10
B33: Weibliche Rinder über 6 Monate bis 1 Jahr | C33: =IF(C$26<=0.65,C11,IF(C$26>=0.85,C19,((0.85-C$26)*5*C11)+((C$26-0.65)*5*C19))) -> 0.3 | D33: =IF(D$26<=0.65,D11,IF(D$26>=0.85,D19,((0.85-D$26)*5*D11)+((D$26-0.65)*5*D19))) -> 37 | E33: =IF(E$26<=0.65,E11,IF(E$26>=0.85,E19,((0.85-E$26)*5*E11)+((E$26-0.65)*5*E19))) -> 11 | F33: 46 | G33: 12.5 | H33: 8.3 | I33: 6.2 | J33: 7.6 | K33: =IF(K$26<=0.65,K11,IF(K$26>=0.85,K19,((0.85-K$26)*5*K11)+((K$26-0.65)*5*K19))) -> 8.2 | L33: 2.5 | M33: 4.5 | N33: 7.4 | O33: 8.9 | P33: =IF(P$26<=0.65,P11,IF(P$26>=0.85,P19,((0.85-P$26)*5*P11)+((P$26-0.65)*5*P19))) -> 32.2 | Q33: 2.8 | R33: 2 | S33: =IF(S$26<=0.65,S11,IF(S$26>=0.85,S19,((0.85-S$26)*5*S11)+((S$26-0.65)*5*S19))) -> 1.8 | T33: 15 | U33: 30 | V33: 0.9 | W33: =IF(W$26<=0.65,W11,IF(W$26>=0.85,W19,((0.85-W$26)*5*W11)+((W$26-0.65)*5*W19))) -> 8.2 | X33: 7 | Y33: 12 | Z33: 1 | AA33: 2 | AB33: 50 | AC33: 90 | AD33: 10
B34: Weibliche Rinder über 1 Jahr bis 2 Jahre | C34: =IF(C$26<=0.65,C12,IF(C$26>=0.85,C20,((0.85-C$26)*5*C12)+((C$26-0.65)*5*C20))) -> 0.7 | D34: 56 | E34: 18 | F34: 69 | G34: 18.9 | H34: 12.6 | I34: 9.4 | J34: 11.5 | K34: =IF(K$26<=0.65,K12,IF(K$26>=0.85,K20,((0.85-K$26)*5*K12)+((K$26-0.65)*5*K20))) -> 8.2 | L34: 3.7 | M34: 6.8 | N34: 11.8 | O34: 14.6 | P34: =IF(P$26<=0.65,P12,IF(P$26>=0.85,P20,((0.85-P$26)*5*P12)+((P$26-0.65)*5*P20))) -> 31.1 | Q34: 4.3 | R34: 3 | S34: =IF(S$26<=0.65,S12,IF(S$26>=0.85,S20,((0.85-S$26)*5*S12)+((S$26-0.65)*5*S20))) -> 1.8 | T34: 15 | U34: 30 | V34: 0.9 | W34: 5.3 | X34: 7 | Y34: 12 | Z34: 1 | AA34: 2 | AB34: 50 | AC34: 90 | AD34: 10
B35: Andere weibliche Rinder über 2 Jahre | C35: =IF(C$26<=0.65,C13,IF(C$26>=0.85,C21,((0.85-C$26)*5*C13)+((C$26-0.65)*5*C21))) -> 1 | D35: 64 | E35: 21 | F35: 78 | G35: 21.5 | H35: 14.3 | I35: 10.7 | J35: 13.1 | K35: =IF(K$26<=0.65,K13,IF(K$26>=0.85,K21,((0.85-K$26)*5*K13)+((K$26-0.65)*5*K21))) -> 8.2 | L35: 4.2 | M35: 7.8 | N35: 14 | O35: 17.5 | P35: =IF(P$26<=0.65,P13,IF(P$26>=0.85,P21,((0.85-P$26)*5*P13)+((P$26-0.65)*5*P21))) -> 32.1 | Q35: 4.8 | R35: =IF(R$26<=0.65,R13,IF(R$26>=0.85,R21,((0.85-R$26)*5*R13)+((R$26-0.65)*5*R21))) -> 3.4 | S35: =IF(S$26<=0.65,S13,IF(S$26>=0.85,S21,((0.85-S$26)*5*S13)+((S$26-0.65)*5*S21))) -> 1.8 | T35: 15 | U35: 30 | V35: 0.9 | W35: 4.2 | X35: 7 | Y35: 12 | Z35: 1 | AA35: 2 | AB35: 50 | AC35: 90 | AD35: 10
B36: Männl. Rinder über 6 Monate bis 1 Jahr | C36: 0.3 | D36: 37.5 | E36: 14.9 | F36: 31.3 | G36: 11.7 | H36: 7.8 | I36: 5.9 | J36: 7 | K36: 8.3 | L36: 1 | M36: 2.9 | N36: 6.4 | O36: 8.3 | P36: 31.3 | Q36: 2.3 | R36: 2.7 | S36: 1.8 | T36: 15 | U36: 30 | V36: 0.9 | W36: 3.3 | X36: 7 | Y36: 12 | Z36: 1 | AA36: 2 | AB36: 50 | AC36: 90 | AD36: 10
B37: Männl. Rinder über 1 Jahr bis zwei Jahre (Mast) | C37: 0.7 | D37: 54.5 | E37: 20.5 | F37: 45.5 | G37: 17.1 | H37: 11.4 | I37: 8.6 | J37: 9.7 | K37: 8.8 | L37: 1.4 | M37: 4.2 | N37: 9.5 | O37: 12.7 | P37: 35 | Q37: 3.4 | R37: 3.9 | S37: 1.8 | T37: 15 | U37: 30 | V37: 0.9 | W37: 2.1 | X37: 7 | Y37: 12 | Z37: 1 | AA37: 2 | AB37: 50 | AC37: 90 | AD37: 10
B38: Männliche Rinder über 2 Jahre, Zuchtbullen | C38: 1 | D38: 64 | E38: 21 | F38: 78 | G38: 21.5 | H38: 14.3 | I38: 10.7 | J38: 13.1 | K38: 8.2 | L38: 4.2 | M38: 7.8 | N38: 14 | O38: 17.5 | P38: 32.1 | Q38: 4.8 | R38: 3.4 | S38: 1.8 | T38: 15 | U38: 30 | V38: 0.9 | W38: 4.2 | X38: 7 | Y38: 12 | Z38: 1 | AA38: 2 | AB38: 50 | AC38: 90 | AD38: 10
B39: Mutterkuh mit Kalb bis 6 Monate | C39: 1 | D39: 105 | E39: 31 | F39: 129 | G39: 32.2 | H39: 21.4 | I39: 16.1 | J39: 20 | K39: 8 | L39: 4 | M39: 15.8 | N39: 19.6 | O39: 24.4 | P39: 18.9 | Q39: 7.6 | R39: 6 | S39: 1.8 | T39: 15 | U39: 30 | V39: 0.9 | W39: 4 | X39: 7 | Y39: 12 | Z39: 1 | AA39: 2 | AB39: 50 | AC39: 90 | AD39: 10
B40: Zuchtsauen mit 25 Ferkel bis 8 kg, Standard | C40: 0.3 | D40: 27.3 | E40: 12.6 | F40: 12.8 | G40: 8.1 | H40: 5.7 | I40: 3.8 | J40: 4.2 | K40: 5.5 | L40: 2 | M40: 3.6 | N40: 4.3 | O40: 5.5 | P40: 25.4 | Q40: 1.2 | R40: 1.3 | S40: 1.8 | T40: 20 | U40: 30 | V40: 0.9 | W40: 6.7 | X40: 7 | Y40: 12 | Z40: 1 | AA40: 2 | AB40: 60 | AC40: 90 | AD40: 10
B41: Zuchtsauen mit 25 Ferkel bis 8 kg, N-/P-reduziert | C41: 0.3 | D41: 24.1 | E41: 11.2 | F41: 11.6 | G41: 7.2 | H41: 5 | I41: 3.4 | J41: 4.2 | K41: 5.5 | L41: 2 | M41: 3.6 | N41: 4.3 | O41: 5.5 | P41: 24.4 | Q41: 1.2 | R41: 1.3 | S41: 1.8 | T41: 20 | U41: 30 | V41: 0.9 | W41: 6.7 | X41: 7 | Y41: 12 | Z41: 1 | AA41: 2 | AB41: 60 | AC41: 90 | AD41: 10
B42: Zuchtsauen mit 28 Ferkel bis 8 kg, Standard | C42: 0.3 | D42: 27.5 | E42: 12.8 | F42: 13.1 | G42: 8.2 | H42: 5.8 | I42: 3.8 | J42: 4.4 | K42: 5.5 | L42: 2 | M42: 3.7 | N42: 4.5 | O42: 5.7 | P42: 25.5 | Q42: 1.2 | R42: 1.4 | S42: 1.8 | T42: 20 | U42: 30 | V42: 0.9 | W42: 6.7 | X42: 7 | Y42: 12 | Z42: 1 | AA42: 2 | AB42: 60 | AC42: 90 | AD42: 10
B43: Zuchtsauen mit 28 Ferkel bis 8 kg, N-/P-reduziert | C43: 0.3 | D43: 24.2 | E43: 11.2 | F43: 11.8 | G43: 7.4 | H43: 5.2 | I43: 3.4 | J43: 4.4 | K43: 5.5 | L43: 2 | M43: 3.7 | N43: 4.5 | O43: 5.7 | P43: 24.6 | Q43: 1.2 | R43: 1.4 | S43: 1.8 | T43: 20 | U43: 30 | V43: 0.9 | W43: 6.7 | X43: 7 | Y43: 12 | Z43: 1 | AA43: 2 | AB43: 60 | AC43: 90 | AD43: 10
B44: Zuchtsauen mit 25 Ferkel bis 28 kg, Standard | C44: 0.3 | D44: 41.1 | E44: 17.9 | F44: 21.1 | G44: 11.9 | H44: 8.3 | I44: 5.5 | J44: 6.5 | K44: 5.5 | L44: 3 | M44: 5.2 | N44: 6.1 | O44: 7.8 | P44: 26 | Q44: 1.2 | R44: 2.4 | S44: 1.8 | T44: 20 | U44: 30 | V44: 0.9 | W44: 10 | X44: 7 | Y44: 12 | Z44: 1 | AA44: 2 | AB44: 60 | AC44: 90 | AD44: 10
B45: Zuchtsauen mit 25 Ferkel bis 28 kg, N-/P-reduziert | C45: 0.3 | D45: 36.8 | E45: 16 | F45: 19.5 | G45: 10.9 | H45: 7.6 | I45: 5.1 | J45: 6.5 | K45: 5.5 | L45: 3 | M45: 5.2 | N45: 6.1 | O45: 7.8 | P45: 25.2 | Q45: 1.2 | R45: 2.4 | S45: 1.8 | T45: 20 | U45: 30 | V45: 0.9 | W45: 10 | X45: 7 | Y45: 12 | Z45: 1 | AA45: 2 | AB45: 60 | AC45: 90 | AD45: 10
B46: Zuchtsauen mit 28 Ferkel bis 28 kg, Standard | C46: 0.3 | D46: 42.9 | E46: 18.6 | F46: 21.3 | G46: 12.5 | H46: 8.7 | I46: 5.8 | J46: 7 | K46: 5.5 | L46: 3 | M46: 5.5 | N46: 6.5 | O46: 8.3 | P46: 25.9 | Q46: 1.2 | R46: 2.6 | S46: 1.8 | T46: 20 | U46: 30 | V46: 0.9 | W46: 10 | X46: 7 | Y46: 12 | Z46: 1 | AA46: 2 | AB46: 60 | AC46: 90 | AD46: 10
B47: Zuchtsauen mit 28 Ferkel bis 28 kg, N-/P-reduziert | C47: 0.3 | D47: 38.4 | E47: 16.7 | F47: 20.7 | G47: 11.5 | H47: 8 | I47: 5.3 | J47: 7 | K47: 5.5 | L47: 3 | M47: 5.5 | N47: 6.5 | O47: 8.3 | P47: 25.1 | Q47: 1.2 | R47: 2.6 | S47: 1.8 | T47: 20 | U47: 30 | V47: 0.9 | W47: 10 | X47: 7 | Y47: 12 | Z47: 1 | AA47: 2 | AB47: 60 | AC47: 90 | AD47: 10
B48: Ferkel von 8 bis 28 kg, Standard | C48: 0.02 | D48: 4.5 | E48: 1.64 | F48: 2.7 | G48: 1.3 | H48: 0.9 | I48: 0.6 | J48: 0.7 | K48: 5.5 | L48: 0.2 | M48: 0.4 | N48: 0.6 | O48: 0.8 | P48: 25.6 | Q48: 0.15 | R48: 0.4 | S48: 1.8 | T48: 20 | U48: 30 | V48: 0.9 | W48: 10 | X48: 7 | Y48: 12 | Z48: 1 | AA48: 2 | AB48: 60 | AC48: 90 | AD48: 10
B49: Ferkel von 8 bis 28 kg, N-/P-reduziert | C49: 0.02 | D49: 4.2 | E49: 1.61 | F49: 2.6 | G49: 1.2 | H49: 0.8 | I49: 0.6 | J49: 0.7 | K49: 5.5 | L49: 0.2 | M49: 0.4 | N49: 0.6 | O49: 0.8 | P49: 25.1 | Q49: 0.15 | R49: 0.4 | S49: 1.8 | T49: 20 | U49: 30 | V49: 0.9 | W49: 10 | X49: 7 | Y49: 12 | Z49: 1 | AA49: 2 | AB49: 60 | AC49: 90 | AD49: 10
B50: Mastschweine (750 g TZ), Jungsauenaufzucht, Standard | C50: 0.16 | D50: 14.1 | E50: 6 | F50: 7 | G50: 3.8 | H50: 2.7 | I50: 1.8 | J50: 1.8 | K50: 5.5 | L50: 0.5 | M50: 1.3 | N50: 1.9 | O50: 2.6 | P50: 22.9 | Q50: 0.7 | R50: 0.7 | S50: 1.8 | T50: 20 | U50: 30 | V50: 0.9 | W50: 3.1 | X50: 7 | Y50: 12 | Z50: 1 | AA50: 2 | AB50: 60 | AC50: 90 | AD50: 10
B51: Mastschweine (750 g TZ), Jungsauenaufzucht, N-/P-reduziert | C51: 0.16 | D51: 13.4 | E51: 5.1 | F51: 6.8 | G51: 3.9 | H51: 2.7 | I51: 1.8 | J51: 1.8 | K51: 5.5 | L51: 0.5 | M51: 1.3 | N51: 1.9 | O51: 2.6 | P51: 23 | Q51: 0.7 | R51: 0.7 | S51: 1.8 | T51: 20 | U51: 30 | V51: 0.9 | W51: 3.1 | X51: 7 | Y51: 12 | Z51: 1 | AA51: 2 | AB51: 60 | AC51: 90 | AD51: 10
B52: Mastschweine (850 g TZ), Standard | C52: 0.16 | D52: 15.4 | E52: 6.3 | F52: 7.5 | G52: 4.1 | H52: 2.9 | I52: 1.9 | J52: 1.9 | K52: 5.5 | L52: 0.5 | M52: 1.4 | N52: 1.9 | O52: 2.6 | P52: 22.1 | Q52: 0.7 | R52: 0.8 | S52: 1.8 | T52: 20 | U52: 30 | V52: 0.9 | W52: 3.1 | X52: 7 | Y52: 12 | Z52: 1 | AA52: 2 | AB52: 60 | AC52: 90 | AD52: 10
B53: Mastschweine (850 g TZ), N-/P-reduziert | C53: 0.16 | D53: 14.8 | E53: 5.4 | F53: 7.3 | G53: 4.2 | H53: 2.9 | I53: 1.9 | J53: 1.9 | K53: 5.5 | L53: 0.5 | M53: 1.4 | N53: 1.9 | O53: 2.6 | P53: 22.2 | Q53: 0.7 | R53: 0.8 | S53: 1.8 | T53: 20 | U53: 30 | V53: 0.9 | W53: 3.1 | X53: 7 | Y53: 12 | Z53: 1 | AA53: 2 | AB53: 60 | AC53: 90 | AD53: 10
B54: Zuchteber | C54: 0.3 | D54: 22.1 | E54: 9.6 | F54: 8.8 | G54: 4.5 | H54: 3.2 | I54: 2.1 | J54: 3.6 | K54: 5.5 | L54: 1 | M54: 2.5 | N54: 3.6 | O54: 4.9 | P54: 19.8 | Q54: 1 | R54: 1.5 | S54: 1.8 | T54: 20 | U54: 30 | V54: 0.9 | W54: 3.3 | X54: 7 | Y54: 12 | Z54: 1 | AA54: 2 | AB54: 60 | AC54: 90 | AD54: 10
B55: Legehennen über 16 Wochen, Standard | C55: 0.004 | D55: 0.85 | E55: 0.44 | F55: 0.38 | L55: 3.7 | M55: =24.4817073170732/1000 -> 0.02448170732 | N55: 0.02448170732 | O55: 0.02448170732 | P55: 50 | Q55: 0 | R55: 0 | T55: 40 | U55: 40 | V55: 0.7 | W55: 0.93 | X55: 0.93 | Y55: 0.93 | Z55: 5 | AA55: 5 | AB55: 50 | AC55: 90 | AD55: 45
B56: Legehennen über 16 Wochen, N-/P-reduziert | C56: 0.004 | D56: 0.81 | E56: 0.39 | F56: 0.38 | L56: 3.7 | M56: 0.02448170732 | N56: 0.02448170732 | O56: 0.02448170732 | P56: 50 | Q56: 0 | R56: 0 | T56: 40 | U56: 40 | V56: 0.7 | W56: 0.93 | X56: 0.93 | Y56: 0.93 | Z56: 5 | AA56: 5 | AB56: 50 | AC56: 90 | AD56: 45
B57: Junghennen bis 16 Wochen, Standard | C57: 0.004 | D57: 0.32 | E57: 0.21 | F57: 0.15 | L57: 2.3 | M57: =8.44907407407407/1000 -> 0.008449074074 | N57: 0.008449074074 | O57: 0.008449074074 | P57: 50 | Q57: 0 | R57: 0 | T57: 40 | U57: 40 | V57: 0.7 | W57: 0.59 | X57: 0.59 | Y57: 0.59 | Z57: 5 | AA57: 5 | AB57: 50 | AC57: 90 | AD57: 45
B58: Junghennen bis 16 Wochen, N-/P-reduziert | C58: 0.004 | D58: 0.3 | E58: 0.18 | F58: 0.15 | L58: 2.3 | M58: 0.008449074074 | N58: 0.008449074074 | O58: 0.008449074074 | P58: 50 | Q58: 0 | R58: 0 | T58: 40 | U58: 40 | V58: 0.7 | W58: 0.59 | X58: 0.59 | Y58: 0.59 | Z58: 5 | AA58: 5 | AB58: 50 | AC58: 90 | AD58: 45
B59: Masthähnchen, Standard | C59: 0.004 | D59: 0.52 | E59: 0.25 | F59: 0.28 | L59: 1.8 | M59: =14.8081140350877/1000 -> 0.01480811404 | N59: 0.01480811404 | O59: 0.01480811404 | P59: 60 | Q59: 0 | R59: 0 | T59: 40 | U59: 40 | V59: 0.7 | W59: 0.46 | X59: 0.46 | Y59: 0.46 | Z59: 5 | AA59: 5 | AB59: 50 | AC59: 90 | AD59: 45
B60: Masthähnchen, N-/P-reduziert | C60: 0.004 | D60: 0.48 | E60: 0.23 | F60: 0.28 | L60: 1.8 | M60: 0.01480811404 | N60: 0.01480811404 | O60: 0.01480811404 | P60: 60 | Q60: 0 | R60: 0 | T60: 40 | U60: 40 | V60: 0.7 | W60: 0.46 | X60: 0.46 | Y60: 0.46 | Z60: 5 | AA60: 5 | AB60: 50 | AC60: 90 | AD60: 45
B61: Putenhähne bis 21 Wochen Mast, Standard | C61: 0.004 | D61: 2.42 | E61: 1.36 | F61: 1.17 | L61: 21.6 | M61: =54.625850340136/1000 -> 0.05462585034 | N61: 0.05462585034 | O61: 0.05462585034 | P61: 50 | Q61: 0 | R61: 0 | T61: 40 | U61: 40 | V61: 0.7 | W61: 5.41 | X61: 5.41 | Y61: 5.41 | Z61: 5 | AA61: 5 | AB61: 50 | AC61: 90 | AD61: 45
B62: Putenhähne bis 21 Wochen Mast, N-/P-reduziert | C62: 0.004 | D62: 2.25 | E62: 1.06 | F62: 1.11 | L62: 21.6 | M62: 0.05462585034 | N62: 0.05462585034 | O62: 0.05462585034 | P62: 50 | Q62: 0 | R62: 0 | T62: 40 | U62: 40 | V62: 0.7 | W62: 5.41 | X62: 5.41 | Y62: 5.41 | Z62: 5 | AA62: 5 | AB62: 50 | AC62: 90 | AD62: 45
B63: Putenhennen bis 16 Wochen Mast, Standard | C63: 0.004 | D63: 1.71 | E63: 0.93 | F63: 0.96 | L63: 17.4 | M63: =60.8333333333333/1000 -> 0.06083333333 | N63: 0.06083333333 | O63: 0.06083333333 | P63: 50 | Q63: 0 | R63: 0 | T63: 40 | U63: 40 | V63: 0.7 | W63: 4.34 | X63: 4.34 | Y63: 4.34 | Z63: 5 | AA63: 5 | AB63: 50 | AC63: 90 | AD63: 45
B64: Putenhennen bis 16 Wochen Mast, N-/P-reduziert | C64: 0.004 | D64: 1.62 | E64: 0.66 | F64: 0.92 | L64: 17.4 | M64: 0.06083333333 | N64: 0.06083333333 | O64: 0.06083333333 | P64: 50 | Q64: 0 | R64: 0 | T64: 40 | U64: 40 | V64: 0.7 | W64: 4.34 | X64: 4.34 | Y64: 4.34 | Z64: 5 | AA64: 5 | AB64: 50 | AC64: 90 | AD64: 45
B65: Gänse Spätmast/Weidemast | C65: 0.004 | D65: 1.87 | E65: 0.58 | F65: 1.79 | L65: 53.3 | M65: =105.328571428571/1000 -> 0.1053285714 | N65: =105.328571428571/1000 -> 0.1053285714 | O65: =105.328571428571/1000 -> 0.1053285714 | P65: 30 | Q65: 0 | R65: 0 | T65: 40 | U65: 40 | V65: 0.7 | W65: 13.33 | X65: 13.33 | Y65: 13.33 | Z65: 5 | AA65: 5 | AB65: 50 | AC65: 90 | AD65: 45
B66: Pekingenten | C66: 0.004 | D66: 0.71 | E66: 0.4 | F66: 0.38 | L66: 6.4 | M66: =67.3846153846154/1000 -> 0.06738461538 | N66: =67.3846153846154/1000 -> 0.06738461538 | O66: =67.3846153846154/1000 -> 0.06738461538 | P66: 30 | Q66: 0 | R66: 0 | T66: 40 | U66: 40 | V66: 0.7 | W66: 1.6 | X66: 1.6 | Y66: 1.6 | Z66: 5 | AA66: 5 | AB66: 50 | AC66: 90 | AD66: 45
B67: Flugenten | C67: 0.004 | D67: 0.63 | E67: 0.4 | F67: 0.31 | L67: 6 | M67: =49.9702380952381/1000 -> 0.0499702381 | N67: =49.9702380952381/1000 -> 0.0499702381 | O67: =49.9702380952381/1000 -> 0.0499702381 | P67: 30 | Q67: 0 | R67: 0 | T67: 40 | U67: 40 | V67: 0.7 | W67: 1.49 | X67: 1.49 | Y67: 1.49 | Z67: 5 | AA67: 5 | AB67: 50 | AC67: 90 | AD67: 45
B68: Perlhuhn | C68: 0.003 | D68: 0.64 | E68: 0.28 | F68: 0.21 | L68: 1 | M68: =9.4/1000 -> 0.0094 | N68: =9.4/1000 -> 0.0094 | O68: =9.4/1000 -> 0.0094 | P68: 30 | Q68: 0 | R68: 0 | T68: 40 | U68: 40 | V68: 0.7 | W68: 0.33 | X68: 0.33 | Y68: 0.33 | Z68: 5 | AA68: 5 | AB68: 50 | AC68: 90 | AD68: 45
B69: Lämmer, Schafe bis 1 Jahr | C69: 0.1 | D69: 5.9 | E69: 1.9 | F69: 6.5 | L69: 0.2 | M69: 0.4 | N69: 0.4 | O69: 0.4 | P69: 30 | Q69: 0 | R69: 0 | T69: 45 | U69: 45 | V69: 0.9 | W69: 4 | X69: 4 | Y69: 4 | Z69: 1 | AA69: 2 | AB69: 50 | AC69: 90 | AD69: 10
B70: Mutterschafe (ohne Lamm), andere Schafe | C70: 0.1 | D70: 14.2 | E70: 4.3 | F70: 15.5 | L70: 0.4 | M70: 1.1 | N70: 1.1 | O70: 1.1 | P70: 30 | Q70: 0 | R70: 0 | T70: 45 | U70: 45 | V70: 0.9 | W70: 4 | X70: 4 | Y70: 4 | Z70: 1 | AA70: 2 | AB70: 50 | AC70: 90 | AD70: 10
B71: Milchziegen mit Lämmer, andere Ziegen | C71: 0.1 | D71: 15.2 | E71: 5.7 | F71: 18 | L71: 0.6 | M71: 1 | N71: 1 | O71: 1 | P71: 30 | Q71: 0 | R71: 0 | T71: 45 | U71: 45 | V71: 0.9 | W71: 6 | X71: 6 | Y71: 6 | Z71: 1 | AA71: 2 | AB71: 50 | AC71: 90 | AD71: 10
B72: Pferde bis ein Jahr, Ponys und Kleinpferde | C72: 0.7 | D72: 33.4 | E72: 15.3 | F72: 51 | L72: 4 | M72: 6.8 | N72: 6.8 | O72: 6.8 | P72: 30 | Q72: 0 | R72: 0 | T72: 45 | U72: 45 | V72: 0.7 | W72: 5.7 | X72: 5.7 | Y72: 5.7 | Z72: 1 | AA72: 2 | AB72: 50 | AC72: 90 | AD72: 10
B73: Pferde über ein Jahr | C73: 0.7 | D73: 53.6 | E73: 23.4 | F73: 67 | L73: 6 | M73: 11.2 | N73: 11.2 | O73: 11.2 | P73: 30 | Q73: 0 | R73: 0 | T73: 45 | U73: 45 | V73: 0.7 | W73: 8.6 | X73: 8.6 | Y73: 8.6 | Z73: 1 | AA73: 2 | AB73: 50 | AC73: 90 | AD73: 10
B74: Kaninchenaufz. bis 3 kg (Häsin + 52 Jungtiere je Jahr) | C74: 0.003 | D74: 9.7 | E74: 5.4 | F74: 8.3 | L74: 0.3 | M74: 0.8 | N74: 0.8 | O74: 0.8 | P74: 30 | Q74: 0 | R74: 0 | T74: 45 | U74: 45 | V74: 0.9 | W74: 106.7 | X74: 106.7 | Y74: 106.7 | Z74: 5 | AA74: 5 | AB74: 50 | AC74: 90 | AD74: 10
B75: Damwild Alttier | C75: 0.15 | D75: 15.8 | E75: 4.5 | F75: 17.6 | Q75: 0 | R75: 0 | T75: 45 | U75: 45 | V75: 0.9 | Z75: 1 | AA75: 2 | AB75: 50 | AC75: 90 | AD75: 10
B76: Damwild Kalb | C76: 0.05 | D76: 5.8 | E76: 1.7 | F76: 6.4 | T76: 45 | U76: 45 | V76: 0.9 | Z76: 1 | AA76: 2 | AB76: 50 | AC76: 90 | AD76: 10
B77: Rotwild Alttier | C77: 0.3 | D77: 22.7 | E77: 7.2 | F77: 27 | Q77: 0 | R77: 0 | T77: 45 | U77: 45 | V77: 0.9 | Z77: 1 | AA77: 2 | AB77: 50 | AC77: 90 | AD77: 10
B78: Rotwild Kalb | C78: 0.1 | D78: 8.3 | E78: 2.7 | F78: 9.9 | T78: 45 | U78: 45 | V78: 0.9 | Z78: 1 | AA78: 2 | AB78: 50 | AC78: 90 | AD78: 10
B79: Lama/Alpaka | C79: 0.3 | D79: 22.7 | E79: 7.2 | F79: 27 | L79: 2 | M79: 3.4 | N79: 3.4 | O79: 3.4 | P79: 30 | Q79: 0 | R79: 0 | T79: 45 | U79: 45 | V79: 0.9 | W79: 6.7 | X79: 6.7 | Y79: 6.7 | Z79: 1 | AA79: 2 | AB79: 50 | AC79: 90 | AD79: 10
G81: NH4-Gehalt
F82: Gülle | G82: Jauche | H82: Mist
D83: --
D84: Rinder | F84: 50 | G84: 90 | H84: 10
D85: Schweine | F85: 60 | G85: 90 | H85: 10
D86: Geflügel | F86: 50 | G86: 90 | H86: 45
D87: andere Tiere | F87: 50 | G87: 90 | H87: 10
D90: Tierart wählen

Sheet Tiere orginal (hidden)
A1: (Stand: Januar 2018) | C1: Im Programm hinterlegte Daten aus Tabelle 4a+b+c
C5: Großvieh- | D5: Nährstoffausscheidung | G5: Gülleanfall in m3 | K5: Einstreu | L5: Festmist (nach DüV) 5) | O5: Jaucheanfall | P5: Jaucheanfall 4) | Q5: Verluste in %
B6: Programmname | C6: einheit | D6: kg je mittl. | G6: je mittl. Jahresbestand 2) | K6: gering | L6: je mittl. Jahresbestand 2) | O6: in m3 je mittl. | P6: in m3 je mittl. | Q6: Stall- und Lager
B7: 49 Tierartengruppen | C7: nach DüV | D7: Jahresbestand 2) | H7: TM | J7: nach | K7: (nach DüV) | L7: Anfall in t/Jahr | O7: Jahresbest.²) | P7: Jahresbest.²) | R7: Mist,
D8: N | E8: P2O5 | F8: K2O | G8: 0.05 | H8: 0.075 | I8: 0.1 | J8: DüV 3) | K8: kg/Tag | L8: gering | M8: mittel | N8: hoch | O8: LfL | P8: nach DüV | Q8: Gülle | R8: Jauche
A9: Rinder
B10: Kälber (Zucht/Mast) bis 6 Monate | C10: 0.3 | D10: 22 | E10: 7.6 | F10: 22.6 | G10: 7.5 | H10: 5 | I10: 3.7 | J10: 3.3 | K10: 1.5 | L10: 2.7 | M10: 3.5 | N10: 4.6 | O10: 1.7 | P10: 1.2 | Q10: 15 | R10: 30
B11: Männl. Rinder über 6 Monate bis 1 Jahr | C11: 0.3 | D11: 37.5 | E11: 14.9 | F11: 31.3 | G11: 11.7 | H11: 7.8 | I11: 5.9 | J11: 7 | K11: 1 | L11: 2.9 | M11: 6.4 | N11: 8.3 | O11: 2.3 | P11: 2.7 | Q11: 15 | R11: 30
B12: Männl. Rinder über 1 Jahr bis zwei Jahre (Mast) | C12: 0.7 | D12: 54.5 | E12: 20.5 | F12: 45.5 | G12: 17.1 | H12: 11.4 | I12: 8.6 | J12: 9.7 | K12: 1.4 | L12: 4.2 | M12: 9.5 | N12: 12.7 | O12: 3.4 | P12: 3.9 | Q12: 15 | R12: 30
B13: Männliche Rinder über 2 Jahre, Zuchtbullen | C13: 1 | D13: 64 | E13: 21 | F13: 78 | G13: 21.5 | H13: 14.3 | I13: 10.7 | J13: 13.1 | K13: 4.2 | L13: 7.8 | M13: 14 | N13: 17.5 | O13: 4.8 | P13: 3.4 | Q13: 15 | R13: 30
B14: Ackerbetrieb 1), Stallhaltung
B15: Weibliche Rinder über 6 Monate bis 1 Jahr | C15: 0.3 | D15: 37 | E15: 11 | F15: 46 | G15: 12.5 | H15: 8.3 | I15: 6.2 | J15: 7.6 | K15: 2.5 | L15: 4.5 | M15: 7.4 | N15: 8.9 | O15: 2.8 | P15: 2 | Q15: 15 | R15: 30
B16: Weibliche Rinder über 1 Jahr bis 2 Jahre | C16: 0.7 | D16: 56 | E16: 18 | F16: 69 | G16: 18.9 | H16: 12.6 | I16: 9.4 | J16: 11.5 | K16: 3.7 | L16: 6.8 | M16: 11.8 | N16: 14.6 | O16: 4.3 | P16: 3 | Q16: 15 | R16: 30
B17: Andere weibliche Rinder über 2 Jahre | C17: 1 | D17: 64 | E17: 21 | F17: 78 | G17: 21.5 | H17: 14.3 | I17: 10.7 | J17: 13.1 | K17: 4.2 | L17: 7.8 | M17: 14 | N17: 17.5 | O17: 4.8 | P17: 3.4 | Q17: 15 | R17: 30
B18: Milchkuh (6000 kg Milch) | C18: 1 | D18: 100 | E18: 36 | F18: 104 | G18: 33.8 | H18: 22.5 | I18: 16.9 | J18: 19 | K18: 4 | L18: 15 | M18: 18.6 | N18: 23.4 | O18: 7.3 | P18: 6 | Q18: 15 | R18: 30
B19: Milchkuh (8000 kg Milch) | C19: 1 | D19: 115 | E19: 42 | F19: 116 | G19: 37.3 | H19: 24.9 | I19: 18.6 | J19: 20 | K19: 4 | L19: 16 | M19: 19.4 | N19: 24.4 | O19: 8 | P19: 6.4 | Q19: 15 | R19: 30
B20: Milchkuh (10000 kg Milch) | C20: 1 | D20: 133 | E20: 47 | F20: 125 | G20: 39.3 | H20: 26.2 | I20: 19.6 | J20: 21 | K20: 5 | L20: 17 | M20: 20.2 | N20: 25.4 | O20: 7.7 | P20: 6.8 | Q20: 15 | R20: 30
B21: Milchkuh (12000 kg Milch) | C21: 1 | D21: 152 | E21: 52 | F21: 135 | G21: 45.3 | H21: 30.2 | I21: 22.7 | J21: 22 | K21: 6 | L21: 17 | M21: 21 | N21: 26.4 | O21: 7.5 | P21: 7.2 | Q21: 15 | R21: 30
B22: Grünlandbetrieb 1), konventionell
B23: Weibliche Rinder über 6 Monate bis 1 Jahr | C23: 0.3 | D23: 47 | E23: 14 | F23: 58 | G23: 12.4 | H23: 8.3 | I23: 6.2 | J23: 7.6 | K23: 2.5 | L23: 4.5 | M23: 7.4 | N23: 8.9 | O23: 3.5 | P23: 2 | Q23: 15 | R23: 30
B24: Weibliche Rinder über 1 Jahr bis 2 Jahre | C24: 0.7 | D24: 72 | E24: 21 | F24: 94 | G24: 19 | H24: 12.7 | I24: 9.5 | J24: 11.7 | K24: 3.8 | L24: 6.9 | M24: 12 | N24: 14.8 | O24: 5.4 | P24: 3 | Q24: 15 | R24: 30
B25: Andere weibliche Rinder über 2 Jahre | C25: 1 | D25: 84 | E25: 23 | F25: 100 | G25: 22.2 | H25: 14.8 | I25: 11.1 | J25: 13.7 | K25: 4.4 | L25: 8.1 | M25: 14.5 | N25: 18.1 | O25: 6.3 | P25: 3.5 | Q25: 15 | R25: 30
B26: Milchkuh (6000 kg Milch) | C26: 1 | D26: 109 | E26: 37 | F26: 129 | G26: 36.5 | H26: 24.3 | I26: 18.2 | J26: 19 | K26: 4 | L26: 14.4 | M26: 18.6 | N26: 23.4 | O26: 9.6 | P26: 6 | Q26: 15 | R26: 30
B27: Milchkuh (8000 kg Milch) | C27: 1 | D27: 124 | E27: 43 | F27: 134 | G27: 38.1 | H27: 25.4 | I27: 19 | J27: 20 | K27: 4 | L27: 15 | M27: 19.4 | N27: 24.4 | O27: 9.7 | P27: 6.4 | Q27: 15 | R27: 30
B28: Milchkuh (10000 kg Milch) | C28: 1 | D28: 141 | E28: 48 | F28: 143 | G28: 40.4 | H28: 26.9 | I28: 20.2 | J28: 21 | K28: 5 | L28: 16 | M28: 20.2 | N28: 25.4 | O28: 9.5 | P28: 6.8 | Q28: 15 | R28: 30
B29: Mutterkuh mit Kalb bis 6 Monate | C29: 1 | D29: 105 | E29: 31 | F29: 129 | G29: 32.2 | H29: 21.4 | I29: 16.1 | J29: 20 | K29: 4 | L29: 15.8 | M29: 19.6 | N29: 24.4 | O29: 7.6 | P29: 6 | Q29: 15 | R29: 30
A30: Schweine | G30: 0.035 | H30: 0.05 | I30: 0.075
B31: Zuchtsauen mit 25 Ferkel bis 8 kg, Standard | C31: 0.3 | D31: 27.3 | E31: 12.6 | F31: 12.8 | G31: 8.1 | H31: 5.7 | I31: 3.8 | J31: 4.2 | K31: 2 | L31: 3.6 | M31: 4.3 | N31: 5.5 | O31: 1.2 | P31: 1.3 | Q31: 20 | R31: 30
B32: Zuchtsauen mit 25 Ferkel bis 8 kg, N-/P-reduziert | C32: 0.3 | D32: 24.1 | E32: 11.2 | F32: 11.6 | G32: 7.2 | H32: 5 | I32: 3.4 | J32: 4.2 | K32: 2 | L32: 3.6 | M32: 4.3 | N32: 5.5 | O32: 1.2 | P32: 1.3 | Q32: 20 | R32: 30
B33: Zuchtsauen mit 28 Ferkel bis 8 kg, Standard | C33: 0.3 | D33: 27.5 | E33: 12.8 | F33: 13.1 | G33: 8.2 | H33: 5.8 | I33: 3.8 | J33: 4.4 | K33: 2 | L33: 3.7 | M33: 4.5 | N33: 5.7 | O33: 1.2 | P33: 1.4 | Q33: 20 | R33: 30
B34: Zuchtsauen mit 28 Ferkel bis 8 kg, N-/P-reduziert | C34: 0.3 | D34: 24.2 | E34: 11.2 | F34: 11.8 | G34: 7.4 | H34: 5.2 | I34: 3.4 | J34: 4.4 | K34: 2 | L34: 3.7 | M34: 4.5 | N34: 5.7 | O34: 1.2 | P34: 1.4 | Q34: 20 | R34: 30
B35: Zuchtsauen mit 25 Ferkel bis 28 kg, Standard | C35: 0.3 | D35: 41.1 | E35: 17.9 | F35: 21.1 | G35: 11.9 | H35: 8.3 | I35: 5.5 | J35: 6.5 | K35: 3 | L35: 5.2 | M35: 6.1 | N35: 7.8 | O35: 1.2 | P35: 2.4 | Q35: 20 | R35: 30
B36: Zuchtsauen mit 25 Ferkel bis 28 kg, N-/P-reduziert | C36: 0.3 | D36: 36.8 | E36: 16 | F36: 19.5 | G36: 10.9 | H36: 7.6 | I36: 5.1 | J36: 6.5 | K36: 3 | L36: 5.2 | M36: 6.1 | N36: 7.8 | O36: 1.2 | P36: 2.4 | Q36: 20 | R36: 30
B37: Zuchtsauen mit 28 Ferkel bis 28 kg, Standard | C37: 0.3 | D37: 42.9 | E37: 18.6 | F37: 21.3 | G37: 12.5 | H37: 8.7 | I37: 5.8 | J37: 7 | K37: 3 | L37: 5.5 | M37: 6.5 | N37: 8.3 | O37: 1.2 | P37: 2.6 | Q37: 20 | R37: 30
B38: Zuchtsauen mit 28 Ferkel bis 28 kg, N-/P-reduziert | C38: 0.3 | D38: 38.4 | E38: 16.7 | F38: 20.7 | G38: 11.5 | H38: 8 | I38: 5.3 | J38: 7 | K38: 3 | L38: 5.5 | M38: 6.5 | N38: 8.3 | O38: 1.2 | P38: 2.6 | Q38: 20 | R38: 30
B39: Ferkel von 8 bis 28 kg, Standard | C39: 0.02 | D39: 4.5 | E39: 1.64 | F39: 2.7 | G39: 1.3 | H39: 0.9 | I39: 0.6 | J39: 0.7 | K39: 0.2 | L39: 0.4 | M39: 0.6 | N39: 0.8 | O39: 0.15 | P39: 0.4 | Q39: 20 | R39: 30
B40: Ferkel von 8 bis 28 kg, N-/P-reduziert | C40: 0.02 | D40: 4.2 | E40: 1.61 | F40: 2.6 | G40: 1.2 | H40: 0.8 | I40: 0.6 | J40: 0.7 | K40: 0.2 | L40: 0.4 | M40: 0.6 | N40: 0.8 | O40: 0.15 | P40: 0.4 | Q40: 20 | R40: 30
B41: Mastschweine (750 g TZ), Jungsauenaufzucht, Standard | C41: 0.16 | D41: 14.1 | E41: 6 | F41: 7 | G41: 3.8 | H41: 2.7 | I41: 1.8 | J41: 1.8 | K41: 0.5 | L41: 1.3 | M41: 1.9 | N41: 2.6 | O41: 0.7 | P41: 0.7 | Q41: 20 | R41: 30
B42: Mastschweine (750 g TZ), Jungsauenaufzucht, N-/P-reduziert | C42: 0.16 | D42: 13.4 | E42: 5.1 | F42: 6.8 | G42: 3.9 | H42: 2.7 | I42: 1.8 | J42: 1.8 | K42: 0.5 | L42: 1.3 | M42: 1.9 | N42: 2.6 | O42: 0.7 | P42: 0.7 | Q42: 20 | R42: 30
B43: Mastschweine (850 g TZ), Standard | C43: 0.16 | D43: 15.4 | E43: 6.3 | F43: 7.5 | G43: 4.1 | H43: 2.9 | I43: 1.9 | J43: 1.9 | K43: 0.5 | L43: 1.4 | M43: 1.9 | N43: 2.6 | O43: 0.7 | P43: 0.8 | Q43: 20 | R43: 30
B44: Mastschweine (850 g TZ), N-/P-reduziert | C44: 0.16 | D44: 14.78 | E44: 5.4 | F44: 7.3 | G44: 4.2 | H44: 2.9 | I44: 1.9 | J44: 1.9 | K44: 0.5 | L44: 1.4 | M44: 1.9 | N44: 2.6 | O44: 0.7 | P44: 0.8 | Q44: 20 | R44: 30
B45: Zuchteber | C45: 0.3 | D45: 22.1 | E45: 9.6 | F45: 8.8 | G45: 4.5 | H45: 3.2 | I45: 2.1 | J45: 3.6 | K45: 1 | L45: 2.5 | M45: 3.6 | N45: 4.9 | O45: 1 | P45: 1.5 | Q45: 20 | R45: 30
A46: Geflügel | K46: je 1000 Tiere | M46: je 1000 Tiere
B47: Legehennen über 16 Wochen, Standard | C47: 0.004 | D47: 0.85 | E47: 0.44 | F47: 0.38 | K47: 3.7 | N47: 24.5 | O47: 0 | P47: 0 | Q47: 40 | R47: 40
B48: Legehennen über 16 Wochen, N-/P-reduziert | C48: 0.004 | D48: 0.81 | E48: 0.39 | F48: 0.38 | K48: 3.7 | N48: 24.5 | O48: 0 | P48: 0 | Q48: 40 | R48: 40
B49: Junghennen bis 16 Wochen, Standard | C49: 0.004 | D49: 0.32 | E49: 0.21 | F49: 0.15 | J49: 0.1 | K49: 2.3 | N49: 8.4 | O49: 0 | P49: 0 | Q49: 40 | R49: 40
B50: Junghennen bis 16 Wochen, N-/P-reduziert | C50: 0.004 | D50: 0.3 | E50: 0.18 | F50: 0.15 | J50: 0.1 | K50: 2.3 | N50: 8.4 | O50: 0 | P50: 0 | Q50: 40 | R50: 40
B51: Masthähnchen, Standard | C51: 0.004 | D51: 0.52 | E51: 0.25 | F51: 0.28 | K51: 1.8 | N51: 14.8 | O51: 0 | P51: 0 | Q51: 40 | R51: 40
B52: Masthähnchen, N-/P-reduziert | C52: 0.004 | D52: 0.48 | E52: 0.23 | F52: 0.28 | K52: 1.8 | N52: 14.8 | O52: 0 | P52: 0 | Q52: 40 | R52: 40
B53: Putenhähne bis 21 Wochen Mast, Standard | C53: 0.004 | D53: 2.42 | E53: 1.36 | F53: 1.17 | J53: 0.3 | K53: 21.6 | N53: 54.6 | O53: 0 | P53: 0 | Q53: 40 | R53: 40
B54: Putenhähne bis 21 Wochen Mast, N-/P-reduziert | C54: 0.004 | D54: 2.25 | E54: 1.06 | F54: 1.11 | J54: 0.3 | K54: 21.6 | N54: 54.6 | O54: 0 | P54: 0 | Q54: 40 | R54: 40
B55: Putenhennen bis 16 Wochen Mast, Standard | C55: 0.004 | D55: 1.71 | E55: 0.93 | F55: 0.96 | K55: 17.4 | N55: 60.8 | O55: 0 | P55: 0 | Q55: 40 | R55: 40
B56: Putenhennen bis 16 Wochen Mast, N-/P-reduziert | C56: 0.004 | D56: 1.62 | E56: 0.66 | F56: 0.92 | K56: 17.4 | N56: 60.8 | O56: 0 | P56: 0 | Q56: 40 | R56: 40
B57: Gänse Spätmast/Weidemast | C57: 0.004 | D57: 1.87 | E57: 0.58 | F57: 1.79 | K57: 53.3 | N57: 105.3 | O57: 0 | P57: 0 | Q57: 40 | R57: 40
B58: Pekingenten | C58: 0.004 | D58: 0.71 | E58: 0.4 | F58: 0.38 | K58: 6.4 | N58: 67.4 | O58: 0 | P58: 0 | Q58: 40 | R58: 40
B59: Flugenten | C59: 0.004 | D59: 0.63 | E59: 0.4 | F59: 0.31 | K59: 6 | N59: 50 | O59: 0 | P59: 0 | Q59: 40 | R59: 40
B60: Perlhuhn | C60: 0.003 | D60: 0.64 | E60: 0.28 | F60: 0.21 | K60: 1 | N60: 9.4 | O60: 0 | P60: 0 | Q60: 40 | R60: 40
A61: Sonstige | K61: je Tier | M61: je Tier
B62: Lämmer, Schafe bis 1 Jahr, konventionell | C62: 0.1 | D62: 5.9 | E62: 1.9 | F62: 6.5 | K62: 0.2 | N62: 0.4 | O62: 0 | P62: 0 | Q62: 45 | R62: 45
B63: Mutterschafe (ohne Lamm), andere Schafe, konventionell | C63: 0.1 | D63: 14.2 | E63: 4.3 | F63: 15.5 | K63: 0.4 | N63: 1.1 | O63: 0 | P63: 0 | Q63: 45 | R63: 45
B64: Milchziegen mit Lämmer, andere Ziegen | C64: 0.1 | D64: 15.2 | E64: 5.7 | F64: 18 | K64: 0.6 | N64: 1 | O64: 0 | P64: 0 | Q64: 45 | R64: 45
B65: Pferde bis ein Jahr, Ponys und Kleinpferde | C65: 0.7 | D65: 33.4 | E65: 15.3 | F65: 51 | K65: 4 | N65: 6.8 | O65: 0 | P65: 0 | Q65: 45 | R65: 45
B66: Pferde über ein Jahr | C66: 0.7 | D66: 53.6 | E66: 23.4 | F66: 67 | K66: 6 | N66: 11.2 | O66: 0 | P66: 0 | Q66: 45 | R66: 45
B67: Kaninchenaufz. bis 3 kg (Häsin + 52 Jungtiere je Jahr) | C67: 0.003 | D67: 9.7 | E67: 5.4 | F67: 8.3 | J67: 0.6 | K67: 0.3 | N67: 0.8 | O67: 0 | P67: 0 | Q67: 45 | R67: 45
B68: Damwild Alttier | C68: 0.15 | D68: 15.8 | E68: 4.5 | F68: 17.6 | O68: 0 | P68: 0 | Q68: 45 | R68: 45
B69: Damwild Kalb | C69: 0.05 | D69: 5.8 | E69: 1.7 | F69: 6.4 | Q69: 45 | R69: 45
B70: Rotwild Alttier | C70: 0.3 | D70: 22.7 | E70: 7.2 | F70: 27 | O70: 0 | P70: 0 | Q70: 45 | R70: 45
B71: Rotwild Kalb | C71: 0.1 | D71: 8.3 | E71: 2.7 | F71: 9.9 | Q71: 45 | R71: 45
B72: Lama/Alpaka | C72: 0.3 | D72: 22.7 | E72: 7.2 | F72: 27 | K72: 2 | N72: 3.4 | O72: 0 | P72: 0 | Q72: 45 | R72: 45

Sheet org Dünger (hidden)
A1: Tabelle 5: Nährstoffgehalte organischer Dünger zum Zeitpunkt der Ausbringung, | I1: Im Programm hinterlegte Daten
A2: die anrechenbaren Stall- und Lagerungsverluste sind berücksichtigt
A3: (Stand: März 2018)
E5: Einheit | F5: TM
A6: Organischer Dünger mit Code-Nr. | C6: Art 2 | D6: Art 3 | F6: in
F7: % | G7: Ngesamt | H7: P2O5 | I7: K2O
A8: Rind
A9: 11 | B9: Milchviehgülle (Grünland, 6 % TM) | C9: 1 | D9: 1 | E9: m3 | F9: 6 | G9: 3.3 | H9: 5 | I9: 6
A10: 12 | B10: Milchviehgülle (Grünland, 7,5 % TM) | C10: 1 | D10: 1 | E10: m3 | F10: 7.5 | G10: 4.2 | H10: 5 | I10: 8
A11: 14 | B11: Milchviehgülle (Acker, 6 % TM) | C11: 1 | D11: 1 | E11: m3 | F11: 6 | G11: 3.1 | H11: 5 | I11: 5
A12: 15 | B12: Milchviehgülle (Acker, 7,5 % TM) | C12: 1 | D12: 1 | E12: m3 | F12: 7.5 | G12: 3.9 | H12: 5 | I12: 5
A13: 16 | B13: Mastbullengülle (7,5 % TM) | C13: 1 | D13: 1 | E13: m3 | F13: 7.5 | G13: 4.1 | H13: 5 | I13: 5
A14: 17 | B14: Rindermist, Kurz-, Mittellangstand (18,5 % TM) | C14: 1 | D14: 2 | E14: t | F14: 18.5 | G14: 4.2 | H14: 5 | I14: 5
A15: 18 | B15: Rindermist, Tiefstall (23 % TM) | C15: 1 | D15: 2 | E15: t | F15: 23.1 | G15: 4.2 | H15: 5 | I15: 5
A16: 19 | B16: Rinderjauche (1,8 % TM) | C16: 1 | D16: 1 | E16: m3 | F16: 1.8 | G16: 3.2 | H16: 5 | I16: 5
A17: Schwein
A18: 21 | B18: Mastschweinegülle (5 % TM), Standardfutter | C18: 2 | D18: 1 | E18: m3 | F18: 5 | G18: 4.2 | H18: 5 | I18: 5
A19: 22 | B19: Mastschweinegülle (5 % TM), N-/P-red. Fütterung | C19: 2 | D19: 1 | E19: m3 | F19: 5 | G19: 4 | H19: 5 | I19: 5
A20: 24 | B20: Zuchtsauengülle (mit Ferkel, 5 % TM), Standardfutter | C20: 2 | D20: 1 | E20: m3 | F20: 5 | G20: 4 | H20: 5 | I20: 5
A21: 25 | B21: Zuchtsauengülle (mit Ferkel, 5 % TM), N-/P-red. Fütterung | C21: 2 | D21: 1 | E21: m3 | F21: 5 | G21: 3.9 | H21: 5 | I21: 5
A22: 27 | B22: Schweinemist (21 % TM) | C22: 2 | D22: 2 | E22: t | F22: 21.1 | G22: 6.4 | H22: 5 | I22: 5
A23: 28 | B23: Schweinejauche (1,8 % TM) | C23: 2 | D23: 1 | E23: m3 | F23: 1.8 | G23: 3.3 | H23: 5 | I23: 5
A24: Geflügel
A25: 31 | B25: Hühnermist (50 % TM) | C25: 3 | D25: 2 | E25: t | F25: 50 | G25: 21.1 | H25: 5 | I25: 5
A26: 32 | B26: Hühnerkot (50 % TM) | C26: 3 | D26: 2 | E26: t | F26: 50 | G26: 22 | H26: 5 | I26: 5
A27: 33 | B27: Putenmist (50 % TM) | C27: 3 | D27: 2 | E27: t | F27: 50 | G27: 22.1 | H27: 5 | I27: 5
A28: 34 | B28: Masthähnchenmist (60 % TM) | C28: 3 | D28: 2 | E28: t | F28: 60 | G28: 21.3 | H28: 5 | I28: 5
A29: 35 | B29: Pekingentenmist (30 % TM) | C29: 3 | D29: 2 | E29: t | F29: 30 | G29: 6.5 | H29: 5 | I29: 5
A30: 36 | B30: Flugentenmist (30 % TM) | C30: 3 | D30: 2 | E30: t | F30: 30 | G30: 7.8 | H30: 5 | I30: 5
A31: sonstige tierische Herkunft
A32: 41 | B32: Pferdemist (30 % TM) | C32: 4 | D32: 2 | E32: t | F32: 30 | G32: 3.6 | H32: 5 | I32: 5
A33: 42 | B33: Schaf- und Ziegenmist (30 % TM) | C33: 4 | D33: 2 | E33: t | F33: 30 | G33: 5.5 | H33: 5 | I33: 5
A34: 43 | B34: Kaninchenmist (30 % TM) | C34: 4 | D34: 2 | E34: t | F34: 30 | G34: 7.4 | H34: 5 | I34: 5

Sheet Stroh (hidden)
A2: 1 | B2: gering
A3: 2 | B3: mittel
A4: 3 | B4: hoch

Sheet Erläuterungen (hidden)
A1: Erläuterung zur Zuordnung der Tiergruppen vom Mehrfachantrag zum 170 kg Programm
A3: Mehrfachantrag | E3: Excel Programm 170 kg
A4: Code | B4: Viehverzeichnis | E4: Tierauswahl
A6: 01 | B6: Kälber (Zucht/Mast) bis 6 Monate | E6: Kälber (Zucht/Mast) bis 6 Monate
A8: 04 | B8: Männliche Rinder über 6 Monate bis 1 Jahr | E8: Männliche Rinder über 6 Monate bis 1 Jahr
A9: 05 | B9: Männliche Rinder über 1 Jahr bis 2 Jahre | E9: Männliche Rinder über 1 Jahr bis zwei Jahre (Mast)
A10: 06 | B10: Männliche Rinder über 2 Jahre, Zuchtbullen | E10: Männliche Rinder über 2 Jahre, Zuchtbullen
A12: 07 | B12: Weibliche Rinder über 6 Monate bis 1 Jahr | E12: Weibliche Rinder über 6 Monate bis 1 Jahr
A13: 10 | B13: Weibliche Rinder über 1 Jahr bis 2 Jahre | E13: Weibliche Rinder über 1 Jahr bis 2 Jahre
A14: 13 | B14: Andere weibliche Rinder über 2 Jahre | E14: Andere weibliche Rinder über 2 Jahre
A16: 18 | B16: Kühe (Milch-, Mutter- und Ammenkühe) | E16: Milchkuh
E17: Mutterkuh mit Kalb bis 6 Monate
A19: 21 | B19: Lämmer, Schafe bis 1 Jahr | E19: Lämmer, Schafe bis 1 Jahr, konventionell
A20: 22 | B20: Mutterschafe
A21: 23 | B21: Andere Schafe über 1 Jahr, einschl. Hammel | E21: Mutterschafe (ohne Lamm), andere Schafe, konvent.
A22: 24 | B22: Schafböcke
A24: 31 | B24: Mutterziegen, einschl. gedeckte Jungziegen | E24: Milchziegen mit Lämmer, andere Ziegen
A25: 32 | B25: Andere Ziegen über 1 Jahr
A27: 41 | B27: Pferde bis 1 Jahr, Ponys und Kleinpferde | E27: Pferde bis ein Jahr, Ponys und Kleinpferde
A28: 42 | B28: Pferde über 1 Jahr | E28: Pferde über ein Jahr
A30: 50 | B30: Ferkel bis unter 30 kg | E30: Ferkel von 8 bis 28 kg, Standard
E31: Ferkel von 8 bis 28 kg, N-/P-reduziert
E33: Zuchtsauen mit 25 Ferkel bis 8 kg, Standard
E34: Zuchtsauen mit 25 Ferkel bis 8 kg, N-/P-reduziert
E35: Zuchtsauen mit 28 Ferkel bis 8 kg, Standard
A36: 51 | B36: Zuchtsauen ab erstem Abferkeln, Jungsauen trächtig | E36: Zuchtsauen mit 28 Ferkel bis 8 kg, N-/P-reduziert
E37: Zuchtsauen mit 25 Ferkel bis 28 kg, Standard
E38: Zuchtsauen mit 25 Ferkel bis 28 kg, N-/P-reduziert
E39: Zuchtsauen mit 28 Ferkel bis 28 kg, Standard
E40: Zuchtsauen mit 28 Ferkel bis 28 kg, N-/P-reduziert
E42: Mastschweine (750 g TZ), Jungsauenaufzucht, Standard
A43: 53 | B43: Andere Zuchtschweine (ohne Eber) ab 50 kg | E43: Mastschweine (750 g TZ), Jungsauenaufzucht, N-/P-red.
A44: 54 | B44: Jungschweine (Zucht/Mast) 30 kg bis unter 50 kg | E44: Mastschweine (850 g TZ), Standard
A45: 55 | B45: Mastschweine (einschl. Eber) ab 50 kg | E45: Mastschweine (850 g TZ), N-/P-reduziert
E46: Zuchteber
A48: 61 | B48: Legehennen über 6 Monate | E48: Legehennen über 16 Wochen, Standard
E49: Legehennen über 16 Wochen, N-/P-reduziert
A51: 62 | B51: Küken und Junghennen bis 6 Monate zur Aufzucht | E51: Junghennen bis 16 Wochen, Standard
E52: Junghennen bis 16 Wochen, N-/P-reduziert
A54: 63 | B54: Masthühner/-hähne und übrige Küken | E54: Masthähnchen, Standard
E55: Masthähnchen, N-/P-reduziert
A57: 64 | B57: Enten | E57: Pekingenten
E58: Flugenten
A60: 65 | B60: Gänse | E60: Gänse Spätmast/Weidemast
E62: Putenhähne bis 21 Wochen Mast, Standard
A63: 66 | B63: Puten | E63: Putenhähne bis 21 Wochen Mast, N-/P-reduziert
E64: Putenhennen bis 16 Wochen Mast, Standard
E65: Putenhennen bis 16 Wochen Mast, N-/P-reduziert
A67: 72 | B67: Kaninchen | E67: Kaninchenaufz. bis 3 kg (Häsin + 52 Jungtiere je Jahr)
A69: 73 | B69: Damwild | E69: Damwild Alttier
E70: Damwild Kalb
A72: 74 | B72: Rotwild | E72: Rotwild Alttier
E73: Rotwild Kalb
A75: 82 | B75: Neuweltkameliden (Lama/Alpaka) | E75: Lama/Alpaka
A77: 85 | B77: Perlhühner | E77: Perlhuhn

Sheet alt Tiere (hidden)
C2: Milchleistung
C3: 6555 | E3: Acker | H3: Milchkuh (6000 kg Milch,0,9 Kalb) | J3: 100 | M3: =IF(C3<=6000,J3,IF(AND(C3>6000,C3<=8000),J3+L4*(C3-6000),IF(AND(C3>8000,C3<=10000),J4+L5*(C3-8000),IF(AND(C3>10000,C3<=12000),J5+L6*(C3-10000),J6)))) -> 104.1625
H4: Milchkuh (8000 kg Milch, 0,9 Kalb) | J4: 115 | L4: =+(J4-J3)/2000 -> 0.0075
H5: Milchkuh (10000 kg Milch, 0,9 Kalb) | J5: 133 | L5: =+(J5-J4)/2000 -> 0.009
C6: Grünlandanteil % | H6: Milchkuh (12000 kg Milch, 0,9 Kalb) | J6: 152 | L6: =+(J6-J5)/2000 -> 0.0095
C7: =+'Berech. Lagerraum flüssig+fest'!BD11 -> 0
E8: Grünland | H8: Milchkuh (6000 kg Milch, 0,9 Kalb) | J8: 109 | M8: =IF(C3<=6000,J8,IF(AND(C3>6000,C3<=8000),J8+L9*(C3-6000),IF(AND(C3>8000,C3<=10000),J9+L10*(C3-8000),J10))) -> 113.1625
H9: Milchkuh (8000 kg Milch, 0,9 Kalb) | J9: 124 | L9: =+(J9-J8)/2000 -> 0.0075
H10: Milchkuh (10000 kg Milch, 0,9 Kalb) | J10: 141 | L10: =+(J10-J9)/2000 -> 0.0085
E13: Acker | H13: Weibliche Rinder über 6 Monate bis 1 Jahr | K13: 37
H14: Weibliche Rinder über 1 bis 2 Jahre | K14: 56
H15: Andere weibliche Rinder über 2 Jahre | K15: 64
E17: Grünland | H17: Weibliche Rinder über 6 Monate bis 1 Jahr | K17: 47
H18: Weibliche Rinder über 1 bis 2 Jahre | K18: 72
H19: Andere weibliche Rinder über 2 Jahre | K19: 84
A21: Tabelle 4a: Nährstoffausscheidung und Grundfutteraufnahme verschiedener Tierarten in kg pro
A22: mittlerem Jahresbestand in Abhängigkeit von Leistung und Fütterung
A23: (Stand: November 2017)
D24: Ausscheidung | I24: Verslust
B25: Produktionsverfahren | C25: Programmname | D25: kg pro mittl. | I25: Stall/Lager
D26: Jahresbestand 2) | I26: Gülle | J26: Mist | M26: gering
D27: N | E27: P2O5 | F27: K2O | G27: MgO | H27: S | I27: % | J27: % | K27: GV | L27: Gülle | M27: Stallmist | N27: Jauch
G28: K*0,25 | H28: N*0,08
A29: Rinder | C29: -- | I29: 15 | J29: 30
B30: Milchkuh ohne Kalb | C30: Milchkuh ohne Kalb | D30: =IF(C7<=0.65,M3,IF(C7>=0.85,M8,((0.85-C7)*5*M3)+((C7-0.65)*5*M8))) -> 104.1625 | I30: 15 | J30: 30
B31: Kälber (Zucht/Mast) bis 6 Monate | C31: Kälber (Zucht/Mast) bis 6 Monate | D31: 22 | I31: 15 | J31: 30
B32: Weibliche Rinder über 6 Monate bis 1 Jahr | C32: Weibliche Rinder über 6 Monate bis 1 Jahr | D32: =IF(C7<=0.65,K13,IF(C7>=0.85,K17,((0.85-C7)*5*K13)+((C7-0.65)*5*K17))) -> 37 | I32: 15 | J32: 30
B33: Weibliche Rinder über 1 bis 2 Jahre | C33: Weibliche Rinder über 1 bis 2 Jahre | D33: =IF(C7<=0.65,K14,IF(C7>=0.85,K18,((0.85-C7)*5*K14)+((C7-0.65)*5*K18))) -> 56 | I33: 15 | J33: 30
B34: Andere weibliche Rinder über 2 Jahre | C34: Andere weibliche Rinder über 2 Jahre | D34: =IF(C7<=0.65,K15,IF(C7>=0.85,K19,((0.85-C7)*5*K15)+((C7-0.65)*5*K19))) -> 64 | I34: 15 | J34: 30
B35: Männl. Rinder über 6 Monate bis 1 Jahr | C35: Männl. Rinder über 6 Monate bis 1 Jahr | D35: 37.5 | E35: 14.9 | F35: 31.3 | G35: 7.8 | H35: 3 | I35: 15 | J35: 30
B36: Männl. Rinder über 1 Jahr bis zwei Jahre (Mast) | C36: Männl. Rinder über 1 Jahr bis zwei Jahre (Mast) | D36: 54.5 | E36: 20.5 | F36: 45.5 | G36: 11.4 | H36: 4.4 | I36: 15 | J36: 30
B37: Männliche Rinder über 2 Jahre, Zuchtbullen | C37: Männliche Rinder über 2 Jahre, Zuchtbullen | D37: 64 | E37: 21 | F37: 78 | G37: 19.5 | H37: 5.1 | I37: 15 | J37: 30
B38: Mutterkuh 700 kg, mit Kalb (6 Mon., 230 kg Absetzgewicht) | C38: Mutterkuh mit Kalb bis 6 Monate | D38: 105 | E38: 31 | F38: 129 | G38: 32.3 | H38: 8.4 | I38: 15 | J38: 30
B39: Zuchtsauen (ab Belegen) mit 25 Ferkel bis 8 kg, Standard | C39: Zuchtsauen mit 25 Ferkel bis 8 kg, Standard | D39: 27.3 | E39: 12.7 | F39: 12.8 | G39: 4.5 | H39: 2.2 | I39: 20 | J39: 30
B40: Zuchtsauen (ab Belegen) mit 25 Ferkel bis 8 kg, N-/P-red. | C40: Zuchtsauen mit 25 Ferkel bis 8 kg, N-/P-reduziert | D40: 24.1 | E40: 11.2 | F40: 11.6 | G40: 4.1 | H40: 1.9 | I40: 20 | J40: 30
B41: Zuchtsauen (ab Belegen) mit 28 Ferkel bis 8 kg, Standard | C41: Zuchtsauen mit 28 Ferkel bis 8 kg, Standard | D41: 27.5 | E41: 12.8 | F41: 13.1 | G41: 4.6 | H41: 2.2 | I41: 20 | J41: 30
B42: Zuchtsauen (ab Belegen) mit 28 Ferkel bis 8 kg, N-/P-red. | C42: Zuchtsauen mit 28 Ferkel bis 8 kg, N-/P-reduziert | D42: 24.2 | E42: 11.2 | F42: 11.8 | G42: 4.1 | H42: 1.9 | I42: 20 | J42: 30
B43: Zuchtsauen (ab Belegen) mit 25 Ferkel bis 28 kg, Standard | C43: Zuchtsauen mit 25 Ferkel bis 28 kg, Standard | D43: 41.1 | E43: 17.8 | F43: 21.1 | G43: 7.4 | H43: 3.3 | I43: 20 | J43: 30
B44: Zuchtsauen (ab Belegen) mit 25 Ferkel bis 28 kg, N-/P-red. | C44: Zuchtsauen mit 25 Ferkel bis 28 kg, N-/P-reduziert | D44: 36.8 | E44: 16.1 | F44: 19.5 | G44: 6.8 | H44: 2.9 | I44: 20 | J44: 30
B45: Zuchtsauen (ab Belegen) mit 28 Ferkel bis 28 kg, Standard | C45: Zuchtsauen mit 28 Ferkel bis 28 kg, Standard | D45: 42.9 | E45: 18.6 | F45: 21.3 | G45: 7.5 | H45: 3.4 | I45: 20 | J45: 30
B46: Zuchtsauen (ab Belegen) mit 28 Ferkel bis 28 kg, N-/P-red. | C46: Zuchtsauen mit 28 Ferkel bis 28 kg, N-/P-reduziert | D46: 38.4 | E46: 16.7 | F46: 20.7 | G46: 7.3 | H46: 3.1 | I46: 20 | J46: 30
B47: Ferkel von 8 bis 28 kg, 450 g TZ, Standard | C47: Ferkel von 8 bis 28 kg, Standard | D47: 4.5 | E47: 1.6 | F47: 2.7 | G47: 1 | H47: 0.4 | I47: 20 | J47: 30
B48: Ferkel von 8 bis 28 kg, 450 g TZ, N-/P-red. | C48: Ferkel von 8 bis 28 kg, N-/P-reduziert | D48: 4.2 | E48: 1.6 | F48: 2.6 | G48: 0.9 | H48: 0.3 | I48: 20 | J48: 30
B49: Mastschweine (750 g TZ), Standard | C49: Mastschweine (750 g TZ), Jungsauenaufzucht, Standard | D49: 14.1 | E49: 6 | F49: 7 | G49: 2.4 | H49: 1.1 | I49: 20 | J49: 30
B50: Mastschweine (750 g TZ), N-/P-red. | C50: Mastschweine (750 g TZ), Jungsauenaufzucht, N-/P-reduziert | D50: 13.4 | E50: 5.1 | F50: 6.8 | G50: 2.4 | H50: 1.1 | I50: 20 | J50: 30
B51: Mastschweine (850 g TZ), Standard | C51: Mastschweine (850 g TZ), Standard | D51: 15.4 | E51: 6.3 | F51: 7.5 | G51: 2.6 | H51: 1.2 | I51: 20 | J51: 30
B52: Mastschweine (850 g TZ), N-/P-red. | C52: Mastschweine (850 g TZ), N-/P-reduziert | D52: 14.8 | E52: 5.4 | F52: 7.3 | G52: 2.5 | H52: 1.2 | I52: 20 | J52: 30
B53: Zuchteber | C53: Zuchteber | D53: 22.1 | E53: 9.6 | F53: 8.8 | G53: 3.1 | H53: 1.8 | I53: 20 | J53: 30
B54: Legehennen über 16 Wochen, 17,6 kg Eimasse, Standard | C54: Legehennen über 16 Wochen, Standard | D54: 0.85 | E54: 0.44 | F54: 0.38 | G54: 0.15 | H54: 0.07 | I54: 40 | J54: 40
B55: Legehennen über 16 Wochen, 17,6 kg Eimasse, N-/P-reduziert | C55: Legehennen über 16 Wochen, N-/P-reduziert | D55: 0.81 | E55: 0.39 | F55: 0.38 | G55: 0.15 | H55: 0.07 | I55: 40 | J55: 40
B56: Junghennen bis 16 Wochen, 3,5 kg Zuw., Standard | C56: Junghennen bis 16 Wochen, Standard | D56: 0.32 | E56: 0.21 | F56: 0.15 | G56: 0.06 | H56: 0.03 | I56: 40 | J56: 40
B57: Junghennen bis 16 Wochen, 3,5 kg Zuw., N-/P-reduziert | C57: Junghennen bis 16 Wochen, N-/P-reduziert | D57: 0.3 | E57: 0.18 | F57: 0.15 | G57: 0.06 | H57: 0.02 | I57: 40 | J57: 40
B58: Masthähnchen 34-38 Tage, 2,3 kg Zuw., Standard | C58: Masthähnchen, Standard | D58: 0.52 | E58: 0.25 | F58: 0.28 | G58: 0.11 | H58: 0.04 | I58: 40 | J58: 40
B59: Masthähnchen 34-38 Tage, 2,3 kg Zuw., N-/P-reduziert | C59: Masthähnchen, N-/P-reduziert | D59: 0.48 | E59: 0.23 | F59: 0.28 | G59: 0.11 | H59: 0.04 | I59: 40 | J59: 40
B60: Putenhähne bis 21 Wochen Mast, 22,1 kg Zuw.,Standard | C60: Putenhähne bis 21 Wochen Mast, Standard | D60: 2.42 | E60: 1.36 | F60: 1.17 | G60: 0.47 | H60: 0.19 | I60: 40 | J60: 40
B61: Putenhähne bis 21 Wochen Mast, 22,1 kg Zuw., N-/P-reduziert | C61: Putenhähne bis 21 Wochen Mast, N-/P-reduziert | D61: 2.25 | E61: 1.06 | F61: 1.11 | G61: 0.44 | H61: 0.18 | I61: 40 | J61: 40
B62: Putenhennen 16 Wochen Mast, 10,9 kg Zuw., Standard | C62: Putenhennen bis 16 Wochen Mast, Standard | D62: 1.71 | E62: 0.93 | F62: 0.96 | G62: 0.38 | H62: 0.14 | I62: 40 | J62: 40
B63: Putenhennen 16 Wochen Mast, 10,9 kg Zuw., N-/P-reduziert | C63: Putenhennen bis 16 Wochen Mast, N-/P-reduziert | D63: 1.62 | E63: 0.66 | F63: 0.92 | G63: 0.37 | H63: 0.13 | I63: 40 | J63: 40
B64: Gänse Spätmast/Weidemast | C64: Gänse Spätmast/Weidemast | D64: 1.87 | E64: 0.58 | F64: 1.79 | G64: 0.72 | H64: 0.15 | I64: 40 | J64: 40
B65: Pekingenten, 3,0 kg Zuw., 6,5 Durchgänge | C65: Pekingenten | D65: 0.71 | E65: 0.4 | F65: 0.38 | G65: 0.15 | H65: 0.06 | I65: 40 | J65: 40
B66: Flugenten (w:m=1:1), 4 Durchgänge | C66: Flugenten | D66: 0.63 | E66: 0.4 | F66: 0.31 | G66: 0.13 | H66: 0.05 | I66: 40 | J66: 40
B67: Perlhuhn | C67: Perlhuhn | D67: 0.64 | E67: 0.28 | F67: 0.21 | G67: 0.08 | H67: 0.05 | I67: 40 | J67: 40
B68: Lämmer, Schafe bis 1 Jahr, konventionell | C68: Lämmer, Schafe bis 1 Jahr, konventionell | D68: 5.9 | E68: 1.9 | F68: 6.5 | G68: 1.6 | H68: 0.5 | I68: 45 | J68: 45
B69: Mutterschafe (ohne Lamm), andere Schafe, konventionell | C69: Mutterschafe (ohne Lamm), andere Schafe, konventionell | D69: 14.2 | E69: 4.3 | F69: 15.5 | G69: 3.9 | H69: 1.1 | I69: 45 | J69: 45
B70: Mutterziegen (mit 1,5 Lämmer), 800 kg Milch; andere Ziegen | C70: Milchziegen mit Lämmer, andere Ziegen | D70: 15.2 | E70: 5.7 | F70: 18 | G70: 4.5 | H70: 1.2 | I70: 45 | J70: 45
B71: Ponys, Pferde bis ein Jahr, 300 kg LM, Stall-/Weidehaltung | C71: Pferde bis ein Jahr, Ponys und Kleinpferde | D71: 33.4 | E71: 15.3 | F71: 51 | G71: 10.2 | H71: 2.7 | I71: 45 | J71: 45
B72: Pferde über ein Jahr, 500-600 kg LM, Stall-/Weidehaltung | C72: Pferde über ein Jahr | D72: 53.6 | E72: 23.4 | F72: 67 | G72: 13.4 | H72: 4.3 | I72: 45 | J72: 45
B73: Kaninchenaufz. bis 3 kg (Häsin + 52 Jungtiere je Häsin u. Jahr) | C73: Kaninchenaufz. bis 3 kg (Häsin + 52 Jungtiere je Jahr) | D73: 9.7 | E73: 5.4 | F73: 8.3 | G73: 2.08 | H73: 0.8 | I73: 45 | J73: 45
B74: Damwild Alttier | C74: Damwild Alttier | D74: 15.8 | E74: 4.5 | F74: 17.6 | G74: 3.5 | H74: 1.3 | I74: 45 | J74: 45
B75: Damwild Kalb | C75: Damwild Kalb | D75: 5.8 | E75: 1.7 | F75: 6.4 | G75: 1.3 | H75: 0.5 | I75: 45 | J75: 45
B76: Rotwild Alttier | C76: Rotwild Alttier | D76: 22.7 | E76: 7.2 | F76: 27 | G76: 5.4 | H76: 1.8 | I76: 45 | J76: 45
B77: Rotwild Kalb | C77: Rotwild Kalb | D77: 8.3 | E77: 2.7 | F77: 9.9 | G77: 2 | H77: 0.7 | I77: 45 | J77: 45
B78: Lama/Alpaka | C78: Lama/Alpaka | D78: 22.7 | E78: 7.2 | F78: 27 | G78: 5.4 | H78: 1.8 | I78: 45 | J78: 45
B80: --
B81: Rinder | I81: 15 | J81: 30
B82: Schweine | I82: 20 | J82: 30
B83: Geflügel | I83: 40 | J83: 40
B84: andere Tiere | I84: 45 | J84: 45

Sheet Tabelle1 (hidden)
A1: Weidestunden in % bezieht sich auf die Gesamtzahl der Tiere einer Haltungsart und gibt die durchschnittlichen Weidestunden eines Jahres gesehen auf alle Tiere wieder. Wenn nur ein Teil der Tiere Zugang zur Weide hat, reduzieren sich die durchschnittlichen Weidestunden je Tier, obwohl einzelne Tiere mehr Weidestunden haben.
B2: Beispiel: 30 % bedeutet, dass die Tiere durchschnittlich in 30 % der Stunden eines Jahres auf der Weide stehen und 70 % im Stall.
C3: Berechnung: Anzahl Tiere mit Weidezugang * Ø tägliche Weidestunden * Anzahl Tage mit Weidestunden/24 Stunden/365 Tage/Gesamtzahl Tiere der Haltungsart= % Weidestunden eines Jahres“

Sheet Tabelle2 (hidden)

Sheet Hinweise zum Programm (hidden)
A2: 2018-09-11 | B2: mit Lichti | C2: für Biogas wird es eine Zeile "sonstige Einsatzstoffe" geben/ diese sonstigen Einsatzstoffe dürfen bis zu 5% der FM betragen
A3: 2018-09-11 | B3: mit Lichti | C3: Eigenstromanteil: wird mit 9% angesetzt
A4: 2018-09-11 | B4: mit Lichti | C4: basisdaten werden von der Landtechnik ergänzt
C5: mit Gasertrag L / kg org TS
C6: Methangehalt
C7: org TS
C8: Methangewicht | G8: kann von Gasertrag und Methangehalt abgeleitet werden
C9: CO2 Gewicht
C10: Wasser in TS (Gewicht)
C11: mittlere Verweildauer in Tagen
A12: 2018-09-11 | B12: mit Lichti | C12: Abbaurate wird mit verkaufen Gasertrag korrigiert

Sheet Tiere2 (hidden)
A1: (Stand: Januar 2018) | C1: Im Programm hinterlegte Daten aus Tabelle 4a+b+c
V2: t/m³
B3: Tiere für Betriebe mit Separation
C5: Großvieh- | D5: Nährstoffausscheidung | G5: Gülleanfall in m3 | K5: % TS | L5: Einstreu | M5: Festmist (nach DüV) 5) | P5: % TS | Q5: Jaucheanfall | R5: Jaucheanfall 4) | S5: % TS | T5: Verluste in % | V5: spez. Gewicht | W5: Einstreu | Z5: Lager in Monaten Stallmist
B6: Programmname | C6: einheit | D6: kg je mittl. | G6: je mittl. Jahresbestand 2) | K6: Gülle | L6: gering | M6: je mittl. Jahresbestand 2) | P6: Mist | Q6: in m3 je mittl. | R6: in m3 je mittl. | S6: Jauche | T6: Stall- und Lager | V6: Mist | W6: kg je GV und Tag | Z6: bis 2020 | AA6: ab 2020
B7: 49 Tierartengruppen | C7: nach DüV | D7: Jahresbestand 2) | H7: TM | J7: nach | K7: nach DüV | L7: (nach DüV) | M7: Anfall in t/Jahr | P7: nach DüV | Q7: Jahresbest.²) | R7: Jahresbest.²) | U7: Mist, | V7: t/m³
D8: N | E8: P2O5 | F8: K2O | G8: 0.05 | H8: 0.075 | I8: 0.1 | J8: DüV 3) | K8: Anfall | L8: kg/Tag | M8: gering | N8: mittel | O8: hoch | P8: Anfall | Q8: LfL | R8: nach DüV | T8: Gülle | U8: Jauche
A9: Rinder
B10: Ackerbetrieb 1), Stallhaltung
B11: Weibliche Rinder über 6 Monate bis 1 Jahr | C11: 0.3 | D11: 37 | E11: 11 | F11: 46 | G11: 12.5 | H11: 8.3 | I11: 6.2 | J11: 7.6 | K11: 8.2 | L11: 2.5 | M11: 4.5 | N11: 7.4 | O11: 8.9 | P11: 32.2 | Q11: 2.8 | R11: 2 | S11: 1.8 | T11: 15 | U11: 30
B12: Weibliche Rinder über 1 Jahr bis 2 Jahre | C12: 0.7 | D12: 56 | E12: 18 | F12: 69 | G12: 18.9 | H12: 12.6 | I12: 9.4 | J12: 11.5 | K12: 8.2 | L12: 3.7 | M12: 6.8 | N12: 11.8 | O12: 14.6 | P12: 31.1 | Q12: 4.3 | R12: 3 | S12: 1.8 | T12: 15 | U12: 30
B13: Andere weibliche Rinder über 2 Jahre | C13: 1 | D13: 64 | E13: 21 | F13: 78 | G13: 21.5 | H13: 14.3 | I13: 10.7 | J13: 13.1 | K13: 8.2 | L13: 4.2 | M13: 7.8 | N13: 14 | O13: 17.5 | P13: 32.1 | Q13: 4.8 | R13: 3.4 | S13: 1.8 | T13: 15 | U13: 30
B14: Milchkuh (6000 kg Milch) | C14: 1 | D14: 100 | E14: 36 | F14: 104 | G14: 33.8 | H14: 22.5 | I14: 16.9 | J14: 19 | K14: 8.9 | L14: 4 | M14: 15 | N14: 18.6 | O14: 23.4 | P14: 21.7 | Q14: 7.3 | R14: 6 | S14: 1.8 | T14: 15 | U14: 30
B15: Milchkuh (8000 kg Milch) | C15: 1 | D15: 115 | E15: 42 | F15: 116 | G15: 37.3 | H15: 24.9 | I15: 18.6 | J15: 20 | K15: 9.3 | L15: 4 | M15: 16 | N15: 19.4 | O15: 24.4 | P15: 21.3 | Q15: 8 | R15: 6.4 | S15: 1.8 | T15: 15 | U15: 30
B16: Milchkuh (10000 kg Milch) | C16: 1 | D16: 133 | E16: 47 | F16: 125 | G16: 39.3 | H16: 26.2 | I16: 19.6 | J16: 21 | K16: 9.4 | L16: 5 | M16: 17 | N16: 20.2 | O16: 25.4 | P16: 23.6 | Q16: 7.7 | R16: 6.8 | S16: 1.8 | T16: 15 | U16: 30
B17: Milchkuh (12000 kg Milch) | C17: 1 | D17: 152 | E17: 52 | F17: 135 | G17: 45.3 | H17: 30.2 | I17: 22.7 | J17: 22 | K17: 10.3 | L17: 6 | M17: 17 | N17: 21 | O17: 26.4 | P17: 29.4 | Q17: 7.5 | R17: 7.2 | S17: 1.8 | T17: 15 | U17: 30
B18: Grünlandbetrieb 1), konventionell
B19: Weibliche Rinder über 6 Monate bis 1 Jahr | C19: 0.3 | D19: 47 | E19: 14 | F19: 58 | G19: 12.4 | H19: 8.3 | I19: 6.2 | J19: 7.6 | K19: 8.2 | L19: 2.5 | M19: 4.5 | N19: 7.4 | O19: 8.9 | P19: 32.2 | Q19: 3.5 | R19: 2 | S19: 1.8 | T19: 15 | U19: 30
B20: Weibliche Rinder über 1 Jahr bis 2 Jahre | C20: 0.7 | D20: 72 | E20: 21 | F20: 94 | G20: 19 | H20: 12.7 | I20: 9.5 | J20: 11.7 | K20: 8.1 | L20: 3.8 | M20: 6.9 | N20: 12 | O20: 14.8 | P20: 31.1 | Q20: 5.4 | R20: 3 | S20: 1.8 | T20: 15 | U20: 30
B21: Andere weibliche Rinder über 2 Jahre | C21: 1 | D21: 84 | E21: 23 | F21: 100 | G21: 22.2 | H21: 14.8 | I21: 11.1 | J21: 13.7 | K21: 8.1 | L21: 4.4 | M21: 8.1 | N21: 14.5 | O21: 18.1 | P21: 32.1 | Q21: 6.3 | R21: 3.5 | S21: 1.8 | T21: 15 | U21: 30
B22: Milchkuh (6000 kg Milch) | C22: 1 | D22: 109 | E22: 37 | F22: 129 | G22: 36.5 | H22: 24.3 | I22: 18.2 | J22: 19 | K22: 9.6 | L22: 4 | M22: 14.4 | N22: 18.6 | O22: 23.4 | P22: 24.9 | Q22: 9.6 | R22: 6 | S22: 1.8 | T22: 15 | U22: 30
B23: Milchkuh (8000 kg Milch) | C23: 1 | D23: 124 | E23: 43 | F23: 134 | G23: 38.1 | H23: 25.4 | I23: 19 | J23: 20 | K23: 9.5 | L23: 4 | M23: 15 | N23: 19.4 | O23: 24.4 | P23: 23.4 | Q23: 9.7 | R23: 6.4 | S23: 1.8 | T23: 15 | U23: 30
B24: Milchkuh (10000 kg Milch) | C24: 1 | D24: 141 | E24: 48 | F24: 143 | G24: 40.4 | H24: 26.9 | I24: 20.2 | J24: 21 | K24: 9.6 | L24: 5 | M24: 16 | N24: 20.2 | O24: 25.4 | P24: 26 | Q24: 9.5 | R24: 6.8 | S24: 1.8 | T24: 15 | U24: 30
B26: Grünlandanteil in % | C26: ='Betriebe mit Separation'!AU13 -> 0 | D26: =+C26 -> 0 | E26: =+D26 -> 0 | F26: =+E26 -> 0 | G26: 0 | H26: =+G26 -> 0 | I26: 0 | J26: =+I26 -> 0 | K26: =+J26 -> 0 | L26: =+J26 -> 0 | M26: 0 | N26: 0 | O26: 0 | P26: 0 | Q26: =+O26 -> 0 | R26: =+Q26 -> 0 | T26: =+R26 -> 0 | U26: 0
B27: Milchleistung | C27: ='Betriebe mit Separation'!B13 -> 10000 | D27: =+C27 -> 10000 | E27: =+D27 -> 10000 | F27: 10000 | G27: 10000 | H27: 10000 | I27: =+H27 -> 10000 | J27: =+I27 -> 10000 | K27: 10000 | L27: =+J27 -> 10000 | M27: 10000 | N27: 10000 | O27: 10000 | P27: 10000 | Q27: =+O27 -> 10000 | R27: =+Q27 -> 10000 | T27: =+R27 -> 10000 | U27: 10000
B28: Milchkuh Acker | C28: =IF(C27<=6000,C14,IF(AND(C27>6000,C27<=8000),C14+(C15-C14)/2000*(C27-6000),IF(AND(C27>8000,C27<=10000),C15+(C16-C15)/2000*(C27-8000),IF(AND(C27>10000,C27<=12000),C16+(C17-C16)/2000*(C27-10000),C17)))) -> 1 | D28: =IF(D27<=6000,D14,IF(AND(D27>6000,D27<=8000),D14+(D15-D14)/2000*(D27-6000),IF(AND(D27>8000,D27<=10000),D15+(D16-D15)/2000*(D27-8000),IF(AND(D27>10000,D27<=12000),D16+(D17-D16)/2000*(D27-10000),D17)))) -> 133 | E28: =IF(E27<=6000,E14,IF(AND(E27>6000,E27<=8000),E14+(E15-E14)/2000*(E27-6000),IF(AND(E27>8000,E27<=10000),E15+(E16-E15)/2000*(E27-8000),IF(AND(E27>10000,E27<=12000),E16+(E17-E16)/2000*(E27-10000),E17)))) -> 47 | F28: =IF(F27<=6000,F14,IF(AND(F27>6000,F27<=8000),F14+(F15-F14)/2000*(F27-6000),IF(AND(F27>8000,F27<=10000),F15+(F16-F15)/2000*(F27-8000),IF(AND(F27>10000,F27<=12000),F16+(F17-F16)/2000*(F27-10000),F17)))) -> 125 | G28: =IF(G27<=6000,G14,IF(AND(G27>6000,G27<=8000),G14+(G15-G14)/2000*(G27-6000),IF(AND(G27>8000,G27<=10000),G15+(G16-G15)/2000*(G27-8000),IF(AND(G27>10000,G27<=12000),G16+(G17-G16)/2000*(G27-10000),G17)))) -> 39.3 | H28: 26.2 | I28: 19.6 | J28: =IF(J27<=6000,J14,IF(AND(J27>6000,J27<=8000),J14+(J15-J14)/2000*(J27-6000),IF(AND(J27>8000,J27<=10000),J15+(J16-J15)/2000*(J27-8000),IF(AND(J27>10000,J27<=12000),J16+(J17-J16)/2000*(J27-10000),J17)))) -> 21 | K28: =IF(K27<=6000,K14,IF(AND(K27>6000,K27<=8000),K14+(K15-K14)/2000*(K27-6000),IF(AND(K27>8000,K27<=10000),K15+(K16-K15)/2000*(K27-8000),IF(AND(K27>10000,K27<=12000),K16+(K17-K16)/2000*(K27-10000),K17)))) -> 9.4 | L28: 5 | M28: 17 | N28: 20.2 | O28: 25.4 | P28: 23.6 | Q28: 7.7 | R28: =IF(R27<=6000,R14,IF(AND(R27>6000,R27<=8000),R14+(R15-R14)/2000*(R27-6000),IF(AND(R27>8000,R27<=10000),R15+(R16-R15)/2000*(R27-8000),IF(AND(R27>10000,R27<=12000),R16+(R17-R16)/2000*(R27-10000),R17)))) -> 6.8 | S28: =IF(S27<=6000,S14,IF(AND(S27>6000,S27<=8000),S14+(S15-S14)/2000*(S27-6000),IF(AND(S27>8000,S27<=10000),S15+(S16-S15)/2000*(S27-8000),IF(AND(S27>10000,S27<=12000),S16+(S17-S16)/2000*(S27-10000),S17)))) -> 1.8 | T28: 15 | U28: =IF(U27<=6000,U14,IF(AND(U27>6000,U27<=8000),U14+(U15-U14)/2000*(U27-6000),IF(AND(U27>8000,U27<=10000),U15+(U16-U15)/2000*(U27-8000),IF(AND(U27>10000,U27<=12000),U16+(U17-U16)/2000*(U27-10000),U17)))) -> 30
B29: Milchkuh GL | C29: =IF(C27<=6000,C22,IF(AND(C27>6000,C27<=8000),C22+(C23-C22)/2000*(C27-6000),IF(AND(C27>8000,C27<=10000),C23+(C24-C23)/2000*(C27-8000),C24))) -> 1 | D29: =IF(D27<=6000,D22,IF(AND(D27>6000,D27<=8000),D22+(D23-D22)/2000*(D27-6000),IF(AND(D27>8000,D27<=10000),D23+(D24-D23)/2000*(D27-8000),D24))) -> 141 | E29: =IF(E27<=6000,E22,IF(AND(E27>6000,E27<=8000),E22+(E23-E22)/2000*(E27-6000),IF(AND(E27>8000,E27<=10000),E23+(E24-E23)/2000*(E27-8000),E24))) -> 48 | F29: 143 | G29: 40.4 | H29: 26.9 | I29: 20.2 | J29: 21 | K29: =IF(K27<=6000,K22,IF(AND(K27>6000,K27<=8000),K22+(K23-K22)/2000*(K27-6000),IF(AND(K27>8000,K27<=10000),K23+(K24-K23)/2000*(K27-8000),K24))) -> 9.6 | L29: 5 | M29: 16 | N29: 20.2 | O29: 25.4 | P29: 26 | Q29: 9.5 | R29: 6.8 | S29: 1.8 | T29: 15 | U29: 30
B31: Milchkuh ohne Kalb | C31: =IF(C$26<=0.65,C28,IF(C$26>=0.85,C29,((0.85-C$26)*5*C28)+((C$26-0.65)*5*C29))) -> 1 | D31: =IF(D$26<=0.65,D28,IF(D$26>=0.85,D29,((0.85-D$26)*5*D28)+((D$26-0.65)*5*D29))) -> 133 | E31: =IF(E$26<=0.65,E28,IF(E$26>=0.85,E29,((0.85-E$26)*5*E28)+((E$26-0.65)*5*E29))) -> 47 | F31: 125 | G31: 39.3 | H31: 26.2 | I31: =IF(I$26<=0.65,I28,IF(I$26>=0.85,I29,((0.85-I$26)*5*I28)+((I$26-0.65)*5*I29))) -> 19.6 | J31: =IF(J$26<=0.65,J28,IF(J$26>=0.85,J29,((0.85-J$26)*5*J28)+((J$26-0.65)*5*J29))) -> 21 | K31: =IF(K$26<=0.65,K28,IF(K$26>=0.85,K29,((0.85-K$26)*5*K28)+((K$26-0.65)*5*K29))) -> 9.4 | L31: 5 | M31: 17 | N31: 20.2 | O31: 25.4 | P31: 23.6 | Q31: =IF(Q$26<=0.65,Q28,IF(Q$26>=0.85,Q29,((0.85-Q$26)*5*Q28)+((Q$26-0.65)*5*Q29))) -> 7.7 | R31: 6.8 | S31: 1.8 | T31: 15 | U31: 30 | V31: 0.9 | W31: 4 | X31: 7 | Y31: 12 | Z31: 1 | AA31: 2
B32: Kälber (Zucht/Mast) bis 6 Monate | C32: 0.3 | D32: 22 | E32: 7.6 | F32: 22.6 | G32: 7.5 | H32: 5 | I32: 3.7 | J32: 3.3 | K32: 11.4 | L32: 1.5 | M32: 2.7 | N32: 3.5 | O32: 4.6 | P32: 38 | Q32: 1.7 | R32: 1.2 | S32: 1.8 | T32: 15 | U32: 30 | V32: 0.9 | W32: 5 | X32: 7 | Y32: 12 | Z32: 1 | AA32: 2
B33: Weibliche Rinder über 6 Monate bis 1 Jahr | C33: =IF(C$26<=0.65,C11,IF(C$26>=0.85,C19,((0.85-C$26)*5*C11)+((C$26-0.65)*5*C19))) -> 0.3 | D33: =IF(D$26<=0.65,D11,IF(D$26>=0.85,D19,((0.85-D$26)*5*D11)+((D$26-0.65)*5*D19))) -> 37 | E33: =IF(E$26<=0.65,E11,IF(E$26>=0.85,E19,((0.85-E$26)*5*E11)+((E$26-0.65)*5*E19))) -> 11 | F33: 46 | G33: 12.5 | H33: 8.3 | I33: 6.2 | J33: 7.6 | K33: =IF(K$26<=0.65,K11,IF(K$26>=0.85,K19,((0.85-K$26)*5*K11)+((K$26-0.65)*5*K19))) -> 8.2 | L33: 2.5 | M33: 4.5 | N33: 7.4 | O33: 8.9 | P33: =IF(P$26<=0.65,P11,IF(P$26>=0.85,P19,((0.85-P$26)*5*P11)+((P$26-0.65)*5*P19))) -> 32.2 | Q33: 2.8 | R33: 2 | S33: 1.8 | T33: 15 | U33: 30 | V33: 0.9 | W33: 8.2 | X33: 7 | Y33: 12 | Z33: 1 | AA33: 2
B34: Weibliche Rinder über 1 Jahr bis 2 Jahre | C34: =IF(C$26<=0.65,C12,IF(C$26>=0.85,C20,((0.85-C$26)*5*C12)+((C$26-0.65)*5*C20))) -> 0.7 | D34: 56 | E34: 18 | F34: 69 | G34: 18.9 | H34: 12.6 | I34: 9.4 | J34: 11.5 | K34: =IF(K$26<=0.65,K12,IF(K$26>=0.85,K20,((0.85-K$26)*5*K12)+((K$26-0.65)*5*K20))) -> 8.2 | L34: 3.7 | M34: 6.8 | N34: 11.8 | O34: 14.6 | P34: =IF(P$26<=0.65,P12,IF(P$26>=0.85,P20,((0.85-P$26)*5*P12)+((P$26-0.65)*5*P20))) -> 31.1 | Q34: 4.3 | R34: 3 | S34: 1.8 | T34: 15 | U34: 30 | V34: 0.9 | W34: 5.3 | X34: 7 | Y34: 12 | Z34: 1 | AA34: 2
B35: Andere weibliche Rinder über 2 Jahre | C35: 1 | D35: 64 | E35: 21 | F35: 78 | G35: 21.5 | H35: 14.3 | I35: 10.7 | J35: 13.1 | K35: =IF(K$26<=0.65,K13,IF(K$26>=0.85,K21,((0.85-K$26)*5*K13)+((K$26-0.65)*5*K21))) -> 8.2 | L35: 4.2 | M35: 7.8 | N35: 14 | O35: 17.5 | P35: =IF(P$26<=0.65,P13,IF(P$26>=0.85,P21,((0.85-P$26)*5*P13)+((P$26-0.65)*5*P21))) -> 32.1 | Q35: 4.8 | R35: =IF(R$26<=0.65,R13,IF(R$26>=0.85,R21,((0.85-R$26)*5*R13)+((R$26-0.65)*5*R21))) -> 3.4 | S35: =IF(S$26<=0.65,S13,IF(S$26>=0.85,S21,((0.85-S$26)*5*S13)+((S$26-0.65)*5*S21))) -> 1.8 | T35: 15 | U35: 30 | V35: 0.9 | W35: 4.2 | X35: 7 | Y35: 12 | Z35: 1 | AA35: 2
B36: Männl. Rinder über 6 Monate bis 1 Jahr | C36: 0.3 | D36: 37.5 | E36: 14.9 | F36: 31.3 | G36: 11.7 | H36: 7.8 | I36: 5.9 | J36: 7 | K36: 8.3 | L36: 1 | M36: 2.9 | N36: 6.4 | O36: 8.3 | P36: 31.3 | Q36: 2.3 | R36: 2.7 | S36: 1 | T36: 15 | U36: 30 | V36: 0.9 | W36: 3.3 | X36: 7 | Y36: 12 | Z36: 1 | AA36: 2
B37: Männl. Rinder über 1 Jahr bis zwei Jahre (Mast) | C37: 0.7 | D37: 54.5 | E37: 20.5 | F37: 45.5 | G37: 17.1 | H37: 11.4 | I37: 8.6 | J37: 9.7 | K37: 8.8 | L37: 1.4 | M37: 4.2 | N37: 9.5 | O37: 12.7 | P37: 35 | Q37: 3.4 | R37: 3.9 | S37: 1.8 | T37: 15 | U37: 30 | V37: 0.9 | W37: 2.1 | X37: 7 | Y37: 12 | Z37: 1 | AA37: 2
B38: Männliche Rinder über 2 Jahre, Zuchtbullen | C38: 1 | D38: 64 | E38: 21 | F38: 78 | G38: 21.5 | H38: 14.3 | I38: 10.7 | J38: 13.1 | K38: 8.2 | L38: 4.2 | M38: 7.8 | N38: 14 | O38: 17.5 | P38: 32.1 | Q38: 4.8 | R38: 3.4 | S38: 1.8 | T38: 15 | U38: 30 | V38: 0.9 | W38: 4.2 | X38: 7 | Y38: 12 | Z38: 1 | AA38: 2
B39: Mutterkuh mit Kalb bis 6 Monate | C39: 1 | D39: 105 | E39: 31 | F39: 129 | G39: 32.2 | H39: 21.4 | I39: 16.1 | J39: 20 | K39: 8 | L39: 4 | M39: 15.8 | N39: 19.6 | O39: 24.4 | P39: 18.9 | Q39: 7.6 | R39: 6 | S39: 1.8 | T39: 15 | U39: 30 | V39: 0.9 | W39: 4 | X39: 7 | Y39: 12 | Z39: 1 | AA39: 2
B40: Zuchtsauen mit 25 Ferkel bis 8 kg, Standard | C40: 0.3 | D40: 27.3 | E40: 12.6 | F40: 12.8 | G40: 8.1 | H40: 5.7 | I40: 3.8 | J40: 4.2 | K40: 5.5 | L40: 2 | M40: 3.6 | N40: 4.3 | O40: 5.5 | P40: 25.4 | Q40: 1.2 | R40: 1.3 | S40: 1.8 | T40: 20 | U40: 30 | V40: 0.9 | W40: 6.7 | X40: 7 | Y40: 12 | Z40: 1 | AA40: 2
B41: Zuchtsauen mit 25 Ferkel bis 8 kg, N-/P-reduziert | C41: 0.3 | D41: 24.1 | E41: 11.2 | F41: 11.6 | G41: 7.2 | H41: 5 | I41: 3.4 | J41: 4.2 | K41: 5.5 | L41: 2 | M41: 3.6 | N41: 4.3 | O41: 5.5 | P41: 24.4 | Q41: 1.2 | R41: 1.3 | S41: 1.8 | T41: 20 | U41: 30 | V41: 0.9 | W41: 6.7 | X41: 7 | Y41: 12 | Z41: 1 | AA41: 2
B42: Zuchtsauen mit 28 Ferkel bis 8 kg, Standard | C42: 0.3 | D42: 27.5 | E42: 12.8 | F42: 13.1 | G42: 8.2 | H42: 5.8 | I42: 3.8 | J42: 4.4 | K42: 5.5 | L42: 2 | M42: 3.7 | N42: 4.5 | O42: 5.7 | P42: 25.5 | Q42: 1.2 | R42: 1.4 | S42: 1.8 | T42: 20 | U42: 30 | V42: 0.9 | W42: 6.7 | X42: 7 | Y42: 12 | Z42: 1 | AA42: 2
B43: Zuchtsauen mit 28 Ferkel bis 8 kg, N-/P-reduziert | C43: 0.3 | D43: 24.2 | E43: 11.2 | F43: 11.8 | G43: 7.4 | H43: 5.2 | I43: 3.4 | J43: 4.4 | K43: 5.5 | L43: 2 | M43: 3.7 | N43: 4.5 | O43: 5.7 | P43: 24.6 | Q43: 1.2 | R43: 1.4 | S43: 1.8 | T43: 20 | U43: 30 | V43: 0.9 | W43: 6.7 | X43: 7 | Y43: 12 | Z43: 1 | AA43: 2
B44: Zuchtsauen mit 25 Ferkel bis 28 kg, Standard | C44: 0.3 | D44: 41.1 | E44: 17.9 | F44: 21.1 | G44: 11.9 | H44: 8.3 | I44: 5.5 | J44: 6.5 | K44: 5.5 | L44: 3 | M44: 5.2 | N44: 6.1 | O44: 7.8 | P44: 26 | Q44: 1.2 | R44: 2.4 | S44: 1.8 | T44: 20 | U44: 30 | V44: 0.9 | W44: 10 | X44: 7 | Y44: 12 | Z44: 1 | AA44: 2
B45: Zuchtsauen mit 25 Ferkel bis 28 kg, N-/P-reduziert | C45: 0.3 | D45: 36.8 | E45: 16 | F45: 19.5 | G45: 10.9 | H45: 7.6 | I45: 5.1 | J45: 6.5 | K45: 5.5 | L45: 3 | M45: 5.2 | N45: 6.1 | O45: 7.8 | P45: 25.2 | Q45: 1.2 | R45: 2.4 | S45: 1.8 | T45: 20 | U45: 30 | V45: 0.9 | W45: 10 | X45: 7 | Y45: 12 | Z45: 1 | AA45: 2
B46: Zuchtsauen mit 28 Ferkel bis 28 kg, Standard | C46: 0.3 | D46: 42.9 | E46: 18.6 | F46: 21.3 | G46: 12.5 | H46: 8.7 | I46: 5.8 | J46: 7 | K46: 5.5 | L46: 3 | M46: 5.5 | N46: 6.5 | O46: 8.3 | P46: 25.9 | Q46: 1.2 | R46: 2.6 | S46: 1.8 | T46: 20 | U46: 30 | V46: 0.9 | W46: 10 | X46: 7 | Y46: 12 | Z46: 1 | AA46: 2
B47: Zuchtsauen mit 28 Ferkel bis 28 kg, N-/P-reduziert | C47: 0.3 | D47: 38.4 | E47: 16.7 | F47: 20.7 | G47: 11.5 | H47: 8 | I47: 5.3 | J47: 7 | K47: 5.5 | L47: 3 | M47: 5.5 | N47: 6.5 | O47: 8.3 | P47: 25.1 | Q47: 1.2 | R47: 2.6 | S47: 1.8 | T47: 20 | U47: 30 | V47: 0.9 | W47: 10 | X47: 7 | Y47: 12 | Z47: 1 | AA47: 2
B48: Ferkel von 8 bis 28 kg, Standard | C48: 0.02 | D48: 4.5 | E48: 1.64 | F48: 2.7 | G48: 1.3 | H48: 0.9 | I48: 0.6 | J48: 0.7 | K48: 5.5 | L48: 0.2 | M48: 0.4 | N48: 0.6 | O48: 0.8 | P48: 25.6 | Q48: 0.15 | R48: 0.4 | S48: 1.8 | T48: 20 | U48: 30 | V48: 0.9 | W48: 10 | X48: 7 | Y48: 12 | Z48: 1 | AA48: 2
B49: Ferkel von 8 bis 28 kg, N-/P-reduziert | C49: 0.02 | D49: 4.2 | E49: 1.61 | F49: 2.6 | G49: 1.2 | H49: 0.8 | I49: 0.6 | J49: 0.7 | K49: 5.5 | L49: 0.2 | M49: 0.4 | N49: 0.6 | O49: 0.8 | P49: 25.1 | Q49: 0.15 | R49: 0.4 | S49: 1.8 | T49: 20 | U49: 30 | V49: 0.9 | W49: 10 | X49: 7 | Y49: 12 | Z49: 1 | AA49: 2
B50: Mastschweine (750 g TZ), Jungsauenaufzucht, Standard | C50: 0.16 | D50: 14.1 | E50: 6 | F50: 7 | G50: 3.8 | H50: 2.7 | I50: 1.8 | J50: 1.8 | K50: 5.5 | L50: 0.5 | M50: 1.3 | N50: 1.9 | O50: 2.6 | P50: 22.9 | Q50: 0.7 | R50: 0.7 | S50: 1.8 | T50: 20 | U50: 30 | V50: 0.9 | W50: 3.1 | X50: 7 | Y50: 12 | Z50: 1 | AA50: 2
B51: Mastschweine (750 g TZ), Jungsauenaufzucht, N-/P-reduziert | C51: 0.16 | D51: 13.4 | E51: 5.1 | F51: 6.8 | G51: 3.9 | H51: 2.7 | I51: 1.8 | J51: 1.8 | K51: 5.5 | L51: 0.5 | M51: 1.3 | N51: 1.9 | O51: 2.6 | P51: 23 | Q51: 0.7 | R51: 0.7 | S51: 1.8 | T51: 20 | U51: 30 | V51: 0.9 | W51: 3.1 | X51: 7 | Y51: 12 | Z51: 1 | AA51: 2
B52: Mastschweine (850 g TZ), Standard | C52: 0.16 | D52: 15.4 | E52: 6.3 | F52: 7.5 | G52: 4.1 | H52: 2.9 | I52: 1.9 | J52: 1.9 | K52: 5.5 | L52: 0.5 | M52: 1.4 | N52: 1.9 | O52: 2.6 | P52: 22.1 | Q52: 0.7 | R52: 0.8 | S52: 1.8 | T52: 20 | U52: 30 | V52: 0.9 | W52: 3.1 | X52: 7 | Y52: 12 | Z52: 1 | AA52: 2
B53: Mastschweine (850 g TZ), N-/P-reduziert | C53: 0.16 | D53: 14.78 | E53: 5.4 | F53: 7.3 | G53: 4.2 | H53: 2.9 | I53: 1.9 | J53: 1.9 | K53: 5.5 | L53: 0.5 | M53: 1.4 | N53: 1.9 | O53: 2.6 | P53: 22.2 | Q53: 0.7 | R53: 0.8 | S53: 1.8 | T53: 20 | U53: 30 | V53: 0.9 | W53: 3.1 | X53: 7 | Y53: 12 | Z53: 1 | AA53: 2
B54: Zuchteber | C54: 0.3 | D54: 22.1 | E54: 9.6 | F54: 8.8 | G54: 4.5 | H54: 3.2 | I54: 2.1 | J54: 3.6 | K54: 5.5 | L54: 1 | M54: 2.5 | N54: 3.6 | O54: 4.9 | P54: 19.8 | Q54: 1 | R54: 1.5 | S54: 1.8 | T54: 20 | U54: 30 | V54: 0.9 | W54: 3.3 | X54: 7 | Y54: 12 | Z54: 1 | AA54: 2
B55: Legehennen über 16 Wochen, Standard | C55: 0.004 | D55: 0.85 | E55: 0.44 | F55: 0.38 | L55: 3.7 | M55: =24.4817073170732/1000 -> 0.02448170732 | N55: 0.02448170732 | O55: 0.02448170732 | P55: 50 | Q55: 0 | R55: 0 | T55: 40 | U55: 40 | V55: 0.7 | W55: 0.93 | X55: 0.93 | Y55: 0.93 | Z55: 5 | AA55: 5
B56: Legehennen über 16 Wochen, N-/P-reduziert | C56: 0.004 | D56: 0.81 | E56: 0.39 | F56: 0.38 | L56: 3.7 | M56: 0.02448170732 | N56: 0.02448170732 | O56: 0.02448170732 | P56: 50 | Q56: 0 | R56: 0 | T56: 40 | U56: 40 | V56: 0.7 | W56: 0.93 | X56: 0.93 | Y56: 0.93 | Z56: 5 | AA56: 5
B57: Junghennen bis 16 Wochen, Standard | C57: 0.004 | D57: 0.32 | E57: 0.21 | F57: 0.15 | L57: 2.3 | M57: =8.44907407407407/1000 -> 0.008449074074 | N57: 0.008449074074 | O57: 0.008449074074 | P57: 50 | Q57: 0 | R57: 0 | T57: 40 | U57: 40 | V57: 0.7 | W57: 0.59 | X57: 0.59 | Y57: 0.59 | Z57: 5 | AA57: 5
B58: Junghennen bis 16 Wochen, N-/P-reduziert | C58: 0.004 | D58: 0.3 | E58: 0.18 | F58: 0.15 | L58: 2.3 | M58: 0.008449074074 | N58: 0.008449074074 | O58: 0.008449074074 | P58: 50 | Q58: 0 | R58: 0 | T58: 40 | U58: 40 | V58: 0.7 | W58: 0.59 | X58: 0.59 | Y58: 0.59 | Z58: 5 | AA58: 5
B59: Masthähnchen, Standard | C59: 0.004 | D59: 0.52 | E59: 0.25 | F59: 0.28 | L59: 1.8 | M59: =14.8081140350877/1000 -> 0.01480811404 | N59: 0.01480811404 | O59: 0.01480811404 | P59: 60 | Q59: 0 | R59: 0 | T59: 40 | U59: 40 | V59: 0.7 | W59: 0.46 | X59: 0.46 | Y59: 0.46 | Z59: 5 | AA59: 5
B60: Masthähnchen, N-/P-reduziert | C60: 0.004 | D60: 0.48 | E60: 0.23 | F60: 0.28 | L60: 1.8 | M60: 0.01480811404 | N60: 0.01480811404 | O60: 0.01480811404 | P60: 60 | Q60: 0 | R60: 0 | T60: 40 | U60: 40 | V60: 0.7 | W60: 0.46 | X60: 0.46 | Y60: 0.46 | Z60: 5 | AA60: 5
B61: Putenhähne bis 21 Wochen Mast, Standard | C61: 0.004 | D61: 2.42 | E61: 1.36 | F61: 1.17 | L61: 21.6 | M61: =54.625850340136/1000 -> 0.05462585034 | N61: 0.05462585034 | O61: 0.05462585034 | P61: 50 | Q61: 0 | R61: 0 | T61: 40 | U61: 40 | V61: 0.7 | W61: 5.41 | X61: 5.41 | Y61: 5.41 | Z61: 5 | AA61: 5
B62: Putenhähne bis 21 Wochen Mast, N-/P-reduziert | C62: 0.004 | D62: 2.25 | E62: 1.06 | F62: 1.11 | L62: 21.6 | M62: 0.05462585034 | N62: 0.05462585034 | O62: 0.05462585034 | P62: 50 | Q62: 0 | R62: 0 | T62: 40 | U62: 40 | V62: 0.7 | W62: 5.41 | X62: 5.41 | Y62: 5.41 | Z62: 5 | AA62: 5
B63: Putenhennen bis 16 Wochen Mast, Standard | C63: 0.004 | D63: 1.71 | E63: 0.93 | F63: 0.96 | L63: 17.4 | M63: =60.8333333333333/1000 -> 0.06083333333 | N63: 0.06083333333 | O63: 0.06083333333 | P63: 50 | Q63: 0 | R63: 0 | T63: 40 | U63: 40 | V63: 0.7 | W63: 4.34 | X63: 4.34 | Y63: 4.34 | Z63: 5 | AA63: 5
B64: Putenhennen bis 16 Wochen Mast, N-/P-reduziert | C64: 0.004 | D64: 1.62 | E64: 0.66 | F64: 0.92 | L64: 17.4 | M64: 0.06083333333 | N64: 0.06083333333 | O64: 0.06083333333 | P64: 50 | Q64: 0 | R64: 0 | T64: 40 | U64: 40 | V64: 0.7 | W64: 4.34 | X64: 4.34 | Y64: 4.34 | Z64: 5 | AA64: 5
B65: Gänse Spätmast/Weidemast | C65: 0.004 | D65: 1.87 | E65: 0.58 | F65: 1.79 | L65: 53.3 | M65: =105.328571428571/1000 -> 0.1053285714 | N65: =105.328571428571/1000 -> 0.1053285714 | O65: =105.328571428571/1000 -> 0.1053285714 | P65: 30 | Q65: 0 | R65: 0 | T65: 40 | U65: 40 | V65: 0.7 | W65: 13.33 | X65: 13.33 | Y65: 13.33 | Z65: 5 | AA65: 5
B66: Pekingenten | C66: 0.004 | D66: 0.71 | E66: 0.4 | F66: 0.38 | L66: 6.4 | M66: =67.3846153846154/1000 -> 0.06738461538 | N66: =67.3846153846154/1000 -> 0.06738461538 | O66: =67.3846153846154/1000 -> 0.06738461538 | P66: 30 | Q66: 0 | R66: 0 | T66: 40 | U66: 40 | V66: 0.7 | W66: 1.6 | X66: 1.6 | Y66: 1.6 | Z66: 5 | AA66: 5
B67: Flugenten | C67: 0.004 | D67: 0.63 | E67: 0.4 | F67: 0.31 | L67: 6 | M67: =49.9702380952381/1000 -> 0.0499702381 | N67: =49.9702380952381/1000 -> 0.0499702381 | O67: =49.9702380952381/1000 -> 0.0499702381 | P67: 30 | Q67: 0 | R67: 0 | T67: 40 | U67: 40 | V67: 0.7 | W67: 1.49 | X67: 1.49 | Y67: 1.49 | Z67: 5 | AA67: 5
B68: Perlhuhn | C68: 0.003 | D68: 0.64 | E68: 0.28 | F68: 0.21 | L68: 1 | M68: =9.4/1000 -> 0.0094 | N68: =9.4/1000 -> 0.0094 | O68: =9.4/1000 -> 0.0094 | P68: 30 | Q68: 0 | R68: 0 | T68: 40 | U68: 40 | V68: 0.7 | W68: 0.33 | X68: 0.33 | Y68: 0.33 | Z68: 5 | AA68: 5
B69: Lämmer, Schafe bis 1 Jahr, konventionell | C69: 0.1 | D69: 5.9 | E69: 1.9 | F69: 6.5 | L69: 0.2 | M69: 0.4 | N69: 0.4 | O69: 0.4 | P69: 30 | Q69: 0 | R69: 0 | T69: 45 | U69: 45 | V69: 0.9 | W69: 4 | X69: 4 | Y69: 4 | Z69: 1 | AA69: 2
B70: Mutterschafe (ohne Lamm), andere Schafe, konventionell | C70: 0.1 | D70: 14.2 | E70: 4.3 | F70: 15.5 | L70: 0.4 | M70: 1.1 | N70: 1.1 | O70: 1.1 | P70: 30 | Q70: 0 | R70: 0 | T70: 45 | U70: 45 | V70: 0.9 | W70: 4 | X70: 4 | Y70: 4 | Z70: 1 | AA70: 2
B71: Milchziegen mit Lämmer, andere Ziegen | C71: 0.1 | D71: 15.2 | E71: 5.7 | F71: 18 | L71: 0.6 | M71: 1 | N71: 1 | O71: 1 | P71: 30 | Q71: 0 | R71: 0 | T71: 45 | U71: 45 | V71: 0.9 | W71: 6 | X71: 6 | Y71: 6 | Z71: 1 | AA71: 2
B72: Pferde bis ein Jahr, Ponys und Kleinpferde | C72: 0.7 | D72: 33.4 | E72: 15.3 | F72: 51 | L72: 4 | M72: 6.8 | N72: 6.8 | O72: 6.8 | P72: 30 | Q72: 0 | R72: 0 | T72: 45 | U72: 45 | V72: 0.7 | W72: 5.7 | X72: 5.7 | Y72: 5.7 | Z72: 1 | AA72: 2
B73: Pferde über ein Jahr | C73: 0.7 | D73: 53.6 | E73: 23.4 | F73: 67 | L73: 6 | M73: 11.2 | N73: 11.2 | O73: 11.2 | P73: 30 | Q73: 0 | R73: 0 | T73: 45 | U73: 45 | V73: 0.7 | W73: 8.6 | X73: 8.6 | Y73: 8.6 | Z73: 1 | AA73: 2
B74: Kaninchenaufz. bis 3 kg (Häsin + 52 Jungtiere je Jahr) | C74: 0.003 | D74: 9.7 | E74: 5.4 | F74: 8.3 | L74: 0.3 | M74: 0.8 | N74: 0.8 | O74: 0.8 | P74: 30 | Q74: 0 | R74: 0 | T74: 45 | U74: 45 | V74: 0.9 | W74: 106.7 | X74: 106.7 | Y74: 106.7 | Z74: 5 | AA74: 5
B75: Damwild Alttier | C75: 0.15 | D75: 15.8 | E75: 4.5 | F75: 17.6 | Q75: 0 | R75: 0 | T75: 45 | U75: 45 | V75: 0.9 | Z75: 1 | AA75: 2
B76: Damwild Kalb | C76: 0.05 | D76: 5.8 | E76: 1.7 | F76: 6.4 | T76: 45 | U76: 45 | V76: 0.9 | Z76: 1 | AA76: 2
B77: Rotwild Alttier | C77: 0.3 | D77: 22.7 | E77: 7.2 | F77: 27 | Q77: 0 | R77: 0 | T77: 45 | U77: 45 | V77: 0.9 | Z77: 1 | AA77: 2
B78: Rotwild Kalb | C78: 0.1 | D78: 8.3 | E78: 2.7 | F78: 9.9 | T78: 45 | U78: 45 | V78: 0.9 | Z78: 1 | AA78: 2
B79: Lama/Alpaka | C79: 0.3 | D79: 22.7 | E79: 7.2 | F79: 27 | L79: 2 | M79: 3.4 | N79: 3.4 | O79: 3.4 | P79: 30 | Q79: 0 | R79: 0 | T79: 45 | U79: 45 | V79: 0.9 | W79: 6.7 | X79: 6.7 | Y79: 6.7 | Z79: 1 | AA79: 2
D83: --
D84: Rinder
D85: Schweine
D86: Geflügel
D87: andere Tiere
D90: Tierart wählen

Sheet Lagerr. GL. rote Gebiete (hidden)
A1: Güllelager
M3: Anfall/Jahr | O3: Monat
M4: je ha in kg N | O4: 1 | P4: 2 | Q4: 3 | R4: 4 | S4: 5 | T4: 6 | U4: 7 | V4: 8 | W4: 9 | X4: 10 | Y4: 11 | Z4: 12 | AA4: Summe | AB4: %
M5: 170 | O5: =+M5/12 -> 14.16666667 | P5: =+O5 -> 14.16666667 | Q5: =+P5 -> 14.16666667 | R5: 14.16666667 | S5: 14.16666667 | T5: 14.16666667 | U5: 14.16666667 | V5: 14.16666667 | W5: 14.16666667 | X5: 14.16666667 | Y5: 14.16666667 | Z5: 14.16666667 | AA5: =SUM(O5:Z5) -> 170 | AB5: 100
D6: Düngung flüssiger org. Dünger
D7: optimale Düngung | E7: je nach Fruchtfolge | F7: Acker nicht | G7: keine Düngung | M7: Acker | N7: Lager | O7: =+O5 -> 14.16666667 | P7: =+P5 -> 14.16666667 | T7: =+T5 -> 14.16666667 | U7: 14.16666667 | V7: 14.16666667 | W7: 14.16666667 | X7: 14.16666667 | Y7: 14.16666667 | Z7: 14.16666667 | AA7: =SUM(O7:Z7) -> 127.5 | AB7: =+AA7/AA$5*100 -> 75
D8: Acker und GL | E8: Acker/GL | F8: GL ggf. möglich | G8: möglich | N8: Ausgebracht | Q8: 14.2 | R8: 14.2 | S8: 14.2
C9: Monate | D9: 3 | E9: 3 | F9: 1.5 | G9: 4.5
M10: Grünland | N10: Lager | O10: =+O7 -> 14.16666667 | P10: =+P7 -> 14.16666667 | Y10: =+Y7 -> 14.16666667 | Z10: =+Z7 -> 14.16666667 | AA10: =SUM(O10:Z10) -> 56.66666667 | AB10: =+AA10/AA$5*100 -> 33.33333333
C11: Acker | N11: Ausgebracht | Q11: 14.2 | R11: 14.2 | S11: 14.2 | T11: 14.2 | U11: 14.2 | V11: 14.2 | W11: 14.2 | X11: 14.2
C12: Grünland
C16: Gülleabgabe | I16: --> 9 Monate Lagerraum | M16: Anfall/Jahr | O16: Monat
C17: Acker eigene Ausbringflächen | I17: --> 6 Monate Lagerraum | M17: je ha | O17: 1 | P17: 2 | Q17: 3 | R17: 4 | S17: 5 | T17: 6 | U17: 7 | V17: 8 | W17: 9 | X17: 10 | Y17: 11 | Z17: 12 | AA17: Summe | AB17: %
C18: Grünland eigene Ausbringflächen | I18: --> 4,5 Monate Lagerraum | M18: 340 | O18: =+M18/12 -> 28.33333333 | P18: =+O18 -> 28.33333333 | Q18: =+P18 -> 28.33333333 | R18: 28.33333333 | S18: 28.33333333 | T18: 28.33333333 | U18: 28.33333333 | V18: 28.33333333 | W18: 28.33333333 | X18: 28.33333333 | Y18: 28.33333333 | Z18: 28.33333333 | AA18: =SUM(O18:Z18) -> 340 | AB18: 100
E20: Monate | F20: %
C21: Anfall Betrieb | D21: 340 | F21: 100 | M21: Acker | N21: Lager | O21: =+O18 -> 28.33333333 | P21: =+P18 -> 28.33333333 | T21: =+T18 -> 28.33333333 | U21: 28.33333333 | V21: 28.33333333 | W21: 28.33333333 | X21: 28.33333333 | Y21: 28.33333333 | Z21: 28.33333333 | AA21: =SUM(O21:Z21) -> 255 | AB21: =+AA21/AA$18*100 -> 75
C22: Gülleabgabe | D22: 170 | E22: 9 | F22: =+D22/D$21 -> 0.5 | N22: Ausgebracht | Q22: 28.3 | R22: 28.3 | S22: 28.3 | AA22: =SUM(O22:Z22) -> 84.9
C23: Acker eigene Ausbringflächen | D23: 0 | E23: 6 | F23: =+D23/D$21 -> 0
C24: Grünland eigene Ausbringflächen | D24: =+D21-D22-D23 -> 170 | E24: 4.5 | F24: =+D24/D$21 -> 0.5
D25: =IF((D22+D23+D24)=D21," ","Fehler") ->  | E25: =+F22*E22+F23*E23+F24*E24 -> 6.75 | M25: Grünland | N25: Lager | O25: =+O21 -> 28.33333333 | P25: =+P21 -> 28.33333333 | Q25: =IF(Q18>(170/8),Q18-(170/8),0) -> 7.083333333 | R25: 7.083333333 | S25: 7.083333333 | T25: 7.083333333 | U25: 7.083333333 | V25: 7.083333333 | W25: 7.083333333 | X25: 7.083333333 | Y25: =+Y21 -> 28.33333333 | Z25: =+Z21 -> 28.33333333 | AA25: =SUM(O25:Z25) -> 170 | AB25: =+AA25/AA$18*100 -> 50
N26: Ausgebracht | Q26: =+Q18-Q25 -> 21.25 | R26: =+R18-R25 -> 21.25 | S26: 21.25 | T26: 21.25 | U26: 21.25 | V26: 21.25 | W26: 21.25 | X26: 21.25 | AA26: =SUM(O26:Z26) -> 170
M31: Anfall/Jahr | O31: Monat
M32: je ha | O32: 1 | P32: 2 | Q32: 3 | R32: 4 | S32: 5 | T32: 6 | U32: 7 | V32: 8 | W32: 9 | X32: 10 | Y32: 11 | Z32: 12 | AA32: Summe | AB32: % | AC32: Monate
M33: 170 | O33: =+M33/12 -> 14.16666667 | P33: =+O33 -> 14.16666667 | Q33: 14.16666667 | R33: 14.16666667 | S33: 14.16666667 | T33: 14.16666667 | U33: 14.16666667 | V33: 14.16666667 | W33: 14.16666667 | X33: 14.16666667 | Y33: 14.16666667 | Z33: 14.16666667 | AA33: =SUM(O33:Z33) -> 170 | AB33: 100
K36: 0 | N36: Lager | O36: =+O33+Z36-O38 -> -14.16666667 | P36: =+P33+O36-P38 -> 2.238209618e-13 | Q36: =+Q33+K36-Q38 -> -28.33333333 | R36: =+R33+Q36-R38 -> -56.66666667 | S36: -85 | T36: -85 | U36: -85 | V36: -85 | W36: -70.83333333 | X36: -56.66666667 | Y36: -42.5 | Z36: -28.33333333 | AA36: =MIN(O36:Z36) -> -85
M37: Lager | N37: =+AA36*-1 -> 85 | O37: =+O36+$N$37 -> 70.83333333 | P37: =+P36+$N$37 -> 85 | Q37: 56.66666667 | R37: 28.33333333 | S37: 0 | T37: 0 | U37: 0 | V37: 0 | W37: 14.16666667 | X37: 28.33333333 | Y37: 42.5 | Z37: 56.66666667 | AA37: =MAX(O37:Z37) -> 85 | AB37: =+AA37/M33 -> 0.5 | AC37: =12*AB37 -> 6
N38: Ausgebracht/Verkauf | O38: =SUM(O40:O42) -> 0 | P38: =SUM(P40:P42) -> 0 | Q38: 42.5 | R38: 42.5 | S38: 42.5 | T38: 14.16666667 | U38: 14.16666667 | V38: 14.16666667 | W38: 0 | X38: 0 | Y38: 0 | Z38: 0 | AA38: =SUM(O38:Z38) -> 170
N40: Verkauf | Q40: =+K36/3 -> 0 | R40: =+Q40 -> 0 | S40: =+R40 -> 0
L41: Fläche | M41: 1 | N41: Acker | Q41: =28.3333333333333*1.5*$M$41 -> 42.5 | R41: =28.3333333333333*1.5*$M$41 -> 42.5 | S41: =28.3333333333333*1.5*$M$41 -> 42.5 | T41: =28.3333333333333/2*$M$41 -> 14.16666667 | U41: =28.3333333333333/2*$M$41 -> 14.16666667 | V41: =28.3333333333333/2*$M$41 -> 14.16666667 | AA41: =SUM(O41:Z41) -> 170
M42: 0 | N42: GL | Q42: =35*$M$42 -> 0 | R42: =36*$M$42 -> 0 | S42: =35*$M$42 -> 0 | T42: =22.5*$M$42 -> 0 | U42: =17.5*$M$42 -> 0 | V42: =10*$M$42 -> 0 | W42: =9*$M$42 -> 0 | X42: =5*$M$42 -> 0 | Y42: 0 | AA42: =SUM(O42:Z42) -> 0

Sheet Tabelle3 (hidden)

Sheet Niederschläge (hidden)
A1: LKR_txt | B1: lkrname | D1: MEAN | E1: mm
A2: 161 | B2: Ingolstadt | C2: Ingolstadt | D2: 709.2941176 | E2: mm | G2: =LEFT('Berech. Lagerraum flüssig+fest'!$P$9,3) -> 0 | H2: =+G2 -> 0 | I2: =VALUE(H2) -> 0 | J2: =IF(I2=A2,1,0) -> 0 | K2: =IF(J2>0,D2,0) -> 0
A3: 162 | B3: M┬ünchen | C3: München | D3: 993.3322476 | E3: mm | G3: =LEFT('Berech. Lagerraum flüssig+fest'!$P$9,3) -> 0 | H3: =+G3 -> 0 | I3: =VALUE(H3) -> 0 | J3: =IF(I3=A3,1,0) -> 0 | K3: =IF(J3>0,D3,0) -> 0
A4: 163 | B4: Rosenheim | C4: Rosenheim | D4: 1146.285714 | E4: mm | G4: =LEFT('Berech. Lagerraum flüssig+fest'!$P$9,3) -> 0 | H4: 0 | I4: 0 | J4: 0 | K4: 0
A5: 171 | B5: AltÔÇØtting | C5: Altötting | D5: 956.4787986 | E5: mm | G5: =LEFT('Berech. Lagerraum flüssig+fest'!$P$9,3) -> 0 | H5: 0 | I5: 0 | J5: 0 | K5: 0
A6: 172 | B6: Berchtesgadener Land | C6: Berchtesgadener Land | D6: 1877.546554 | E6: mm | G6: =LEFT('Berech. Lagerraum flüssig+fest'!$P$9,3) -> 0 | H6: 0 | I6: 0 | J6: 0 | K6: 0
A7: 173 | B7: Bad TÔÇØlz-Wolfratshausen | C7: Bad Tölz-Wolfratshausen | D7: 1624.000907 | E7: mm | G7: =LEFT('Berech. Lagerraum flüssig+fest'!$P$9,3) -> 0 | H7: 0 | I7: 0 | J7: 0 | K7: 0
A8: 174 | B8: Dachau | C8: Dachau | D8: 900.5632582 | E8: mm | G8: =LEFT('Berech. Lagerraum flüssig+fest'!$P$9,3) -> 0 | H8: 0 | I8: 0 | J8: 0 | K8: 0
A9: 175 | B9: Ebersberg | C9: Ebersberg | D9: 1074.524324 | E9: mm | G9: =LEFT('Berech. Lagerraum flüssig+fest'!$P$9,3) -> 0 | H9: 0 | I9: 0 | J9: 0 | K9: 0
A10: 176 | B10: EichstÔÇ×tt | C10: Eichstätt | D10: 790.4534979 | E10: mm | G10: =LEFT('Berech. Lagerraum flüssig+fest'!$P$9,3) -> 0 | H10: 0 | I10: 0 | J10: 0 | K10: 0
A11: 177 | B11: Erding | C11: Erding | D11: 925.0521437 | E11: mm | G11: =LEFT('Berech. Lagerraum flüssig+fest'!$P$9,3) -> 0 | H11: 0 | I11: 0 | J11: 0 | K11: 0
A12: 178 | B12: Freising | C12: Freising | D12: 853.45375 | E12: mm | G12: =LEFT('Berech. Lagerraum flüssig+fest'!$P$9,3) -> 0 | H12: 0 | I12: 0 | J12: 0 | K12: 0
A13: 179 | B13: F┬ürstenfeldbruck | C13: Fürstenfeldbruck | D13: 970.3826879 | E13: mm | G13: =LEFT('Berech. Lagerraum flüssig+fest'!$P$9,3) -> 0 | H13: 0 | I13: 0 | J13: 0 | K13: 0
A14: 180 | B14: Garmisch-Partenkirchen | C14: Garmisch-Partenkirchen | D14: 1685.791751 | E14: mm | G14: =LEFT('Berech. Lagerraum flüssig+fest'!$P$9,3) -> 0 | H14: 0 | I14: 0 | J14: 0 | K14: 0
A15: 181 | B15: Landsberg am Lech | C15: Landsberg am Lech | D15: 1040.006258 | E15: mm | G15: =LEFT('Berech. Lagerraum flüssig+fest'!$P$9,3) -> 0 | H15: 0 | I15: 0 | J15: 0 | K15: 0
A16: 182 | B16: Miesbach | C16: Miesbach | D16: 1732.189595 | E16: mm | G16: =LEFT('Berech. Lagerraum flüssig+fest'!$P$9,3) -> 0 | H16: 0 | I16: 0 | J16: 0 | K16: 0
A17: 183 | B17: M┬ühldorf a.Inn | C17: Mühldorf a.Inn | D17: 947.9303483 | E17: mm | G17: =LEFT('Berech. Lagerraum flüssig+fest'!$P$9,3) -> 0 | H17: 0 | I17: 0 | J17: 0 | K17: 0
A18: 184 | B18: M┬ünchen | C18: München | D18: 1087.584821 | E18: mm | G18: =LEFT('Berech. Lagerraum flüssig+fest'!$P$9,3) -> 0 | H18: 0 | I18: 0 | J18: 0 | K18: 0
A19: 185 | B19: Neuburg-Schrobenhausen | C19: Neuburg-Schrobenhausen | D19: 767.9850136 | E19: mm | G19: =LEFT('Berech. Lagerraum flüssig+fest'!$P$9,3) -> 0 | H19: 0 | I19: 0 | J19: 0 | K19: 0
A20: 186 | B20: Pfaffenhofen a.d.Ilm | C20: Pfaffenhofen a.d.Ilm | D20: 829.5328947 | E20: mm | G20: =LEFT('Berech. Lagerraum flüssig+fest'!$P$9,3) -> 0 | H20: 0 | I20: 0 | J20: 0 | K20: 0
A21: 187 | B21: Rosenheim | C21: Rosenheim | D21: 1283.693863 | E21: mm | G21: =LEFT('Berech. Lagerraum flüssig+fest'!$P$9,3) -> 0 | H21: 0 | I21: 0 | J21: 0 | K21: 0
A22: 188 | B22: Starnberg | C22: Starnberg | D22: 1092.461382 | E22: mm | G22: =LEFT('Berech. Lagerraum flüssig+fest'!$P$9,3) -> 0 | H22: 0 | I22: 0 | J22: 0 | K22: 0
A23: 189 | B23: Traunstein | C23: Traunstein | D23: 1453.229967 | E23: mm | G23: =LEFT('Berech. Lagerraum flüssig+fest'!$P$9,3) -> 0 | H23: 0 | I23: 0 | J23: 0 | K23: 0
A24: 190 | B24: Weilheim-Schongau | C24: Weilheim-Schongau | D24: 1219.594008 | E24: mm | G24: =LEFT('Berech. Lagerraum flüssig+fest'!$P$9,3) -> 0 | H24: 0 | I24: 0 | J24: 0 | K24: 0
A25: 261 | B25: Landshut | C25: Landshut | D25: 808.28125 | E25: mm | G25: =LEFT('Berech. Lagerraum flüssig+fest'!$P$9,3) -> 0 | H25: 0 | I25: 0 | J25: 0 | K25: 0
A26: 262 | B26: Passau | C26: Passau | D26: 921.7313433 | E26: mm | G26: =LEFT('Berech. Lagerraum flüssig+fest'!$P$9,3) -> 0 | H26: 0 | I26: 0 | J26: 0 | K26: 0
A27: 263 | B27: Straubing | C27: Straubing | D27: 751.4328358 | E27: mm | G27: =LEFT('Berech. Lagerraum flüssig+fest'!$P$9,3) -> 0 | H27: 0 | I27: 0 | J27: 0 | K27: 0
A28: 271 | B28: Deggendorf | C28: Deggendorf | D28: 1020.381839 | E28: mm | G28: =LEFT('Berech. Lagerraum flüssig+fest'!$P$9,3) -> 0 | H28: 0 | I28: 0 | J28: 0 | K28: 0
A29: 272 | B29: Freyung-Grafenau | C29: Freyung-Grafenau | D29: 1187.783894 | E29: mm | G29: =LEFT('Berech. Lagerraum flüssig+fest'!$P$9,3) -> 0 | H29: 0 | I29: 0 | J29: 0 | K29: 0
A30: 273 | B30: Kelheim | C30: Kelheim | D30: 786.3242991 | E30: mm | G30: =LEFT('Berech. Lagerraum flüssig+fest'!$P$9,3) -> 0 | H30: 0 | I30: 0 | J30: 0 | K30: 0
A31: 274 | B31: Landshut | C31: Landshut | D31: 839.5048041 | E31: mm | G31: =LEFT('Berech. Lagerraum flüssig+fest'!$P$9,3) -> 0 | H31: 0 | I31: 0 | J31: 0 | K31: 0
A32: 275 | B32: Passau | C32: Passau | D32: 963.5900458 | E32: mm | G32: =LEFT('Berech. Lagerraum flüssig+fest'!$P$9,3) -> 0 | H32: 0 | I32: 0 | J32: 0 | K32: 0
A33: 276 | B33: Regen | C33: Regen | D33: 1219.776639 | E33: mm | G33: =LEFT('Berech. Lagerraum flüssig+fest'!$P$9,3) -> 0 | H33: 0 | I33: 0 | J33: 0 | K33: 0
A34: 277 | B34: Rottal-Inn | C34: Rottal-Inn | D34: 917.3580343 | E34: mm | G34: =LEFT('Berech. Lagerraum flüssig+fest'!$P$9,3) -> 0 | H34: 0 | I34: 0 | J34: 0 | K34: 0
A35: 278 | B35: Straubing-Bogen | C35: Straubing-Bogen | D35: 852.1554447 | E35: mm | G35: =LEFT('Berech. Lagerraum flüssig+fest'!$P$9,3) -> 0 | H35: 0 | I35: 0 | J35: 0 | K35: 0
A36: 279 | B36: Dingolfing-Landau | C36: Dingolfing-Landau | D36: 828.1443182 | E36: mm | G36: =LEFT('Berech. Lagerraum flüssig+fest'!$P$9,3) -> 0 | H36: 0 | I36: 0 | J36: 0 | K36: 0
A37: 361 | B37: Amberg | C37: Amberg | D37: 737.1730769 | E37: mm | G37: =LEFT('Berech. Lagerraum flüssig+fest'!$P$9,3) -> 0 | H37: 0 | I37: 0 | J37: 0 | K37: 0
A38: 362 | B38: Regensburg | C38: Regensburg | D38: 694.4567901 | E38: mm | G38: =LEFT('Berech. Lagerraum flüssig+fest'!$P$9,3) -> 0 | H38: 0 | I38: 0 | J38: 0 | K38: 0
A39: 363 | B39: Weiden i.d.OPf. | C39: Weiden i.d.OPf. | D39: 756.5915493 | E39: mm | G39: =LEFT('Berech. Lagerraum flüssig+fest'!$P$9,3) -> 0 | H39: 0 | I39: 0 | J39: 0 | K39: 0
A40: 371 | B40: Amberg-Sulzbach | C40: Amberg-Sulzbach | D40: 831.5126984 | E40: mm | G40: =LEFT('Berech. Lagerraum flüssig+fest'!$P$9,3) -> 0 | H40: 0 | I40: 0 | J40: 0 | K40: 0
A41: 372 | B41: Cham | C41: Cham | D41: 884.4717362 | E41: mm | G41: =LEFT('Berech. Lagerraum flüssig+fest'!$P$9,3) -> 0 | H41: 0 | I41: 0 | J41: 0 | K41: 0
A42: 373 | B42: Neumarkt i.d.OPf. | C42: Neumarkt i.d.OPf. | D42: 866.4780343 | E42: mm | G42: =LEFT('Berech. Lagerraum flüssig+fest'!$P$9,3) -> 0 | H42: 0 | I42: 0 | J42: 0 | K42: 0
A43: 374 | B43: Neustadt a.d.Waldnaab | C43: Neustadt a.d.Waldnaab | D43: 824.309591 | E43: mm | G43: =LEFT('Berech. Lagerraum flüssig+fest'!$P$9,3) -> 0 | H43: 0 | I43: 0 | J43: 0 | K43: 0
A44: 375 | B44: Regensburg | C44: Regensburg | D44: 765.897711 | E44: mm | G44: =LEFT('Berech. Lagerraum flüssig+fest'!$P$9,3) -> 0 | H44: 0 | I44: 0 | J44: 0 | K44: 0
A45: 376 | B45: Schwandorf | C45: Schwandorf | D45: 783.602861 | E45: mm | G45: =LEFT('Berech. Lagerraum flüssig+fest'!$P$9,3) -> 0 | H45: 0 | I45: 0 | J45: 0 | K45: 0
A46: 377 | B46: Tirschenreuth | C46: Tirschenreuth | D46: 859.6923792 | E46: mm | G46: =LEFT('Berech. Lagerraum flüssig+fest'!$P$9,3) -> 0 | H46: 0 | I46: 0 | J46: 0 | K46: 0
A47: 461 | B47: Bamberg | C47: Bamberg | D47: 682.375 | E47: mm | G47: =LEFT('Berech. Lagerraum flüssig+fest'!$P$9,3) -> 0 | H47: 0 | I47: 0 | J47: 0 | K47: 0
A48: 462 | B48: Bayreuth | C48: Bayreuth | D48: 810.6567164 | E48: mm | G48: =LEFT('Berech. Lagerraum flüssig+fest'!$P$9,3) -> 0 | H48: 0 | I48: 0 | J48: 0 | K48: 0
A49: 463 | B49: Coburg | C49: Coburg | D49: 802.4782609 | E49: mm | G49: =LEFT('Berech. Lagerraum flüssig+fest'!$P$9,3) -> 0 | H49: 0 | I49: 0 | J49: 0 | K49: 0
A50: 464 | B50: Hof | C50: Hof | D50: 774.9285714 | E50: mm | G50: =LEFT('Berech. Lagerraum flüssig+fest'!$P$9,3) -> 0 | H50: 0 | I50: 0 | J50: 0 | K50: 0
A51: 471 | B51: Bamberg | C51: Bamberg | D51: 777.2461538 | E51: mm | G51: =LEFT('Berech. Lagerraum flüssig+fest'!$P$9,3) -> 0 | H51: 0 | I51: 0 | J51: 0 | K51: 0
A52: 472 | B52: Bayreuth | C52: Bayreuth | D52: 943.992163 | E52: mm | G52: =LEFT('Berech. Lagerraum flüssig+fest'!$P$9,3) -> 0 | H52: 0 | I52: 0 | J52: 0 | K52: 0
A53: 473 | B53: Coburg | C53: Coburg | D53: 785.2988115 | E53: mm | G53: =LEFT('Berech. Lagerraum flüssig+fest'!$P$9,3) -> 0 | H53: 0 | I53: 0 | J53: 0 | K53: 0
A54: 474 | B54: Forchheim | C54: Forchheim | D54: 871.3219285 | E54: mm | G54: =LEFT('Berech. Lagerraum flüssig+fest'!$P$9,3) -> 0 | H54: 0 | I54: 0 | J54: 0 | K54: 0
A55: 475 | B55: Hof | C55: Hof | D55: 900.1962096 | E55: mm | G55: =LEFT('Berech. Lagerraum flüssig+fest'!$P$9,3) -> 0 | H55: 0 | I55: 0 | J55: 0 | K55: 0
A56: 476 | B56: Kronach | C56: Kronach | D56: 984.2784615 | E56: mm | G56: =LEFT('Berech. Lagerraum flüssig+fest'!$P$9,3) -> 0 | H56: 0 | I56: 0 | J56: 0 | K56: 0
A57: 477 | B57: Kulmbach | C57: Kulmbach | D57: 888.5106061 | E57: mm | G57: =LEFT('Berech. Lagerraum flüssig+fest'!$P$9,3) -> 0 | H57: 0 | I57: 0 | J57: 0 | K57: 0
A58: 478 | B58: Lichtenfels | C58: Lichtenfels | D58: 788.1061776 | E58: mm | G58: =LEFT('Berech. Lagerraum flüssig+fest'!$P$9,3) -> 0 | H58: 0 | I58: 0 | J58: 0 | K58: 0
A59: 479 | B59: Wunsiedel i.Fichtelgebirge | C59: Wunsiedel i.Fichtelgebirge | D59: 875.2728785 | E59: mm | G59: =LEFT('Berech. Lagerraum flüssig+fest'!$P$9,3) -> 0 | H59: 0 | I59: 0 | J59: 0 | K59: 0
A60: 561 | B60: Ansbach | C60: Ansbach | D60: 735.1212121 | E60: mm | G60: =LEFT('Berech. Lagerraum flüssig+fest'!$P$9,3) -> 0 | H60: 0 | I60: 0 | J60: 0 | K60: 0
A61: 562 | B61: Erlangen | C61: Erlangen | D61: 711.8333333 | E61: mm | G61: =LEFT('Berech. Lagerraum flüssig+fest'!$P$9,3) -> 0 | H61: 0 | I61: 0 | J61: 0 | K61: 0
A62: 563 | B62: F┬ürth | C62: Fürth | D62: 667.7580645 | E62: mm | G62: =LEFT('Berech. Lagerraum flüssig+fest'!$P$9,3) -> 0 | H62: 0 | I62: 0 | J62: 0 | K62: 0
A63: 564 | B63: N┬ürnberg | C63: Nürnberg | D63: 690 | E63: mm | G63: =LEFT('Berech. Lagerraum flüssig+fest'!$P$9,3) -> 0 | H63: 0 | I63: 0 | J63: 0 | K63: 0
A64: 565 | B64: Schwabach | C64: Schwabach | D64: 703.6097561 | E64: mm | G64: =LEFT('Berech. Lagerraum flüssig+fest'!$P$9,3) -> 0 | H64: 0 | I64: 0 | J64: 0 | K64: 0
A65: 571 | B65: Ansbach | C65: Ansbach | D65: 760.887931 | E65: mm | G65: =LEFT('Berech. Lagerraum flüssig+fest'!$P$9,3) -> 0 | H65: 0 | I65: 0 | J65: 0 | K65: 0
A66: 572 | B66: Erlangen-HÔÇØchstadt | C66: Erlangen-Höchstadt | D66: 732.9714286 | E66: mm | G66: =LEFT('Berech. Lagerraum flüssig+fest'!$P$9,3) -> 0 | H66: 0 | I66: 0 | J66: 0 | K66: 0
A67: 573 | B67: F┬ürth | C67: Fürth | D67: 688.3419355 | E67: mm | G67: =LEFT('Berech. Lagerraum flüssig+fest'!$P$9,3) -> 0 | H67: =+G67 -> 0 | I67: =VALUE(H67) -> 0 | J67: =IF(I67=A67,1,0) -> 0 | K67: =IF(J67>0,D67,0) -> 0
A68: 574 | B68: N┬ürnberger Land | C68: Nürnberger Land | D68: 925.0050188 | E68: mm | G68: =LEFT('Berech. Lagerraum flüssig+fest'!$P$9,3) -> 0 | H68: 0 | I68: 0 | J68: 0 | K68: 0
A69: 575 | B69: Neustadt a.d.Aisch-Bad Windsheim | C69: Neustadt a.d.Aisch-Bad Windsheim | D69: 714.797797 | E69: mm | G69: =LEFT('Berech. Lagerraum flüssig+fest'!$P$9,3) -> 0 | H69: 0 | I69: 0 | J69: 0 | K69: 0
A70: 576 | B70: Roth | C70: Roth | D70: 770.4368715 | E70: mm | G70: =LEFT('Berech. Lagerraum flüssig+fest'!$P$9,3) -> 0 | H70: 0 | I70: 0 | J70: 0 | K70: 0
A71: 577 | B71: Wei├íenburg-Gunzenhausen | C71: Weißenburg-Gunzenhausen | D71: 807.5215606 | E71: mm | G71: =LEFT('Berech. Lagerraum flüssig+fest'!$P$9,3) -> 0 | H71: 0 | I71: 0 | J71: 0 | K71: 0
A72: 661 | B72: Aschaffenburg | C72: Aschaffenburg | D72: 751.016129 | E72: mm | G72: =LEFT('Berech. Lagerraum flüssig+fest'!$P$9,3) -> 0 | H72: 0 | I72: 0 | J72: 0 | K72: 0
A73: 662 | B73: Schweinfurt | C73: Schweinfurt | D73: 631.3428571 | E73: mm | G73: =LEFT('Berech. Lagerraum flüssig+fest'!$P$9,3) -> 0 | H73: 0 | I73: 0 | J73: 0 | K73: 0
A74: 663 | B74: W┬ürzburg | C74: Würzburg | D74: 664.5054945 | E74: mm | G74: =LEFT('Berech. Lagerraum flüssig+fest'!$P$9,3) -> 0 | H74: 0 | I74: 0 | J74: 0 | K74: 0
A75: 671 | B75: Aschaffenburg | C75: Aschaffenburg | D75: 927.2316547 | E75: mm | G75: =LEFT('Berech. Lagerraum flüssig+fest'!$P$9,3) -> 0 | H75: 0 | I75: 0 | J75: 0 | K75: 0
A76: 672 | B76: Bad Kissingen | C76: Bad Kissingen | D76: 826.7414248 | E76: mm | G76: =LEFT('Berech. Lagerraum flüssig+fest'!$P$9,3) -> 0 | H76: 0 | I76: 0 | J76: 0 | K76: 0
A77: 673 | B77: RhÔÇØn-Grabfeld | C77: Rhön-Grabfeld | D77: 772.5232558 | E77: mm | G77: =LEFT('Berech. Lagerraum flüssig+fest'!$P$9,3) -> 0 | H77: 0 | I77: 0 | J77: 0 | K77: 0
A78: 674 | B78: Ha├íberge | C78: Haßberge | D78: 738.3829344 | E78: mm | G78: =LEFT('Berech. Lagerraum flüssig+fest'!$P$9,3) -> 0 | H78: 0 | I78: 0 | J78: 0 | K78: 0
A79: 675 | B79: Kitzingen | C79: Kitzingen | D79: 653.529927 | E79: mm | G79: =LEFT('Berech. Lagerraum flüssig+fest'!$P$9,3) -> 0 | H79: 0 | I79: 0 | J79: 0 | K79: 0
A80: 676 | B80: Miltenberg | C80: Miltenberg | D80: 850.1 | E80: mm | G80: =LEFT('Berech. Lagerraum flüssig+fest'!$P$9,3) -> 0 | H80: 0 | I80: 0 | J80: 0 | K80: 0
A81: 677 | B81: Main-Spessart | C81: Main-Spessart | D81: 856.4416855 | E81: mm | G81: =LEFT('Berech. Lagerraum flüssig+fest'!$P$9,3) -> 0 | H81: 0 | I81: 0 | J81: 0 | K81: 0
A82: 678 | B82: Schweinfurt | C82: Schweinfurt | D82: 681.9145608 | E82: mm | G82: =LEFT('Berech. Lagerraum flüssig+fest'!$P$9,3) -> 0 | H82: 0 | I82: 0 | J82: 0 | K82: 0
A83: 679 | B83: W┬ürzburg | C83: Würzburg | D83: 694.7964509 | E83: mm | G83: =LEFT('Berech. Lagerraum flüssig+fest'!$P$9,3) -> 0 | H83: 0 | I83: 0 | J83: 0 | K83: 0
A84: 761 | B84: Augsburg | C84: Augsburg | D84: 863.9589041 | E84: mm | G84: =LEFT('Berech. Lagerraum flüssig+fest'!$P$9,3) -> 0 | H84: 0 | I84: 0 | J84: 0 | K84: 0
A85: 762 | B85: Kaufbeuren | C85: Kaufbeuren | D85: 1189.261905 | E85: mm | G85: =LEFT('Berech. Lagerraum flüssig+fest'!$P$9,3) -> 0 | H85: 0 | I85: 0 | J85: 0 | K85: 0
A86: 763 | B86: Kempten (AllgÔÇ×u) | C86: Kempten (Allgäu) | D86: 1377.791045 | E86: mm | G86: =LEFT('Berech. Lagerraum flüssig+fest'!$P$9,3) -> 0 | H86: 0 | I86: 0 | J86: 0 | K86: 0
A87: 764 | B87: Memmingen | C87: Memmingen | D87: 1037.6 | E87: mm | G87: =LEFT('Berech. Lagerraum flüssig+fest'!$P$9,3) -> 0 | H87: 0 | I87: 0 | J87: 0 | K87: 0
A88: 771 | B88: Aichach-Friedberg | C88: Aichach-Friedberg | D88: 870.9705128 | E88: mm | G88: =LEFT('Berech. Lagerraum flüssig+fest'!$P$9,3) -> 0 | H88: 0 | I88: 0 | J88: 0 | K88: 0
A89: 772 | B89: Augsburg | C89: Augsburg | D89: 898.268338 | E89: mm | G89: =LEFT('Berech. Lagerraum flüssig+fest'!$P$9,3) -> 0 | H89: 0 | I89: 0 | J89: 0 | K89: 0
A90: 773 | B90: Dillingen a.d.Donau | C90: Dillingen a.d.Donau | D90: 776.5687264 | E90: mm | G90: =LEFT('Berech. Lagerraum flüssig+fest'!$P$9,3) -> 0 | H90: 0 | I90: 0 | J90: 0 | K90: 0
A91: 774 | B91: G┬ünzburg | C91: Günzburg | D91: 873.010568 | E91: mm | G91: =LEFT('Berech. Lagerraum flüssig+fest'!$P$9,3) -> 0 | H91: 0 | I91: 0 | J91: 0 | K91: 0
A92: 775 | B92: Neu-Ulm | C92: Neu-Ulm | D92: 878.8314176 | E92: mm | G92: =LEFT('Berech. Lagerraum flüssig+fest'!$P$9,3) -> 0 | H92: 0 | I92: 0 | J92: 0 | K92: 0
A93: 776 | B93: Lindau (Bodensee) | C93: Lindau (Bodensee) | D93: 1688.911315 | E93: mm | G93: =LEFT('Berech. Lagerraum flüssig+fest'!$P$9,3) -> 0 | H93: 0 | I93: 0 | J93: 0 | K93: 0
A94: 777 | B94: OstallgÔÇ×u | C94: Ostallgäu | D94: 1367.761699 | E94: mm | G94: =LEFT('Berech. Lagerraum flüssig+fest'!$P$9,3) -> 0 | H94: 0 | I94: 0 | J94: 0 | K94: 0
A95: 778 | B95: UnterallgÔÇ×u | C95: Unterallgäu | D95: 1046 | E95: mm | G95: =LEFT('Berech. Lagerraum flüssig+fest'!$P$9,3) -> 0 | H95: 0 | I95: 0 | J95: 0 | K95: 0
A96: 779 | B96: Donau-Ries | C96: Donau-Ries | D96: 765.4051724 | E96: mm | G96: =LEFT('Berech. Lagerraum flüssig+fest'!$P$9,3) -> 0 | H96: 0 | I96: 0 | J96: 0 | K96: 0
A97: 780 | B97: OberallgÔÇ×u | C97: Oberallgäu | D97: 1920.432415 | E97: mm | G97: =LEFT('Berech. Lagerraum flüssig+fest'!$P$9,3) -> 0 | H97: 0 | I97: 0 | J97: 0 | K97: 0
K98: =SUM(K2:K97) -> 0 | L98: =IF(K98>0,K98,0) -> 0
